Workbook

Sheet Pivot
A3: Zeilenbeschriftungen | B3: Summe von 12.11.2024
A4: HVB KK Holding | B4: 367497.2324
A5: HVB KK Projekt | B5: 739035.679
A6: HVB KK Vertrieb | B6: 5721098.467
A7: Sonst. Girokonten | B7: 36979.78354
A8: Sonstige Konten | B8: 627237.5145
A9: Tagesgeldkonten | B9: 86769.59579
A10: Gesamtergebnis | B10: 7578618.273

Sheet Input
B8: Konto | C8: Bezeichnung | D8: Nevaris | E8: Firma | F8: Typ | G8: Reporting | H8: 30.12.2022 | I8: 31.01.2023 | J8: 01.02.2023 | K8: 28.02.2023 | L8: 31.03.2023 | M8: 30.06.2023 | N8: 31.07.2023 | O8: 31.08.2023 | P8: 01.09.2023 | Q8: 04.09.2023 | R8: 05.09.2023 | S8: 06.09.2023 | T8: 07.09.2023 | U8: 08.09.2023 | V8: 11.09.2023 | W8: 12.09.2023 | X8: 13.09.2023 | Y8: 14.09.2023 | Z8: 15.09.2023 | AA8: 18.09.2023 | AB8: 19.09.2023 | AC8: 20.09.2023 | AD8: 21.09.2023 | AE8: 22.09.2023 | AF8: 25.09.2023 | AG8: 26.09.2023 | AH8: 27.09.2023 | AI8: 28.09.2023 | AJ8: 29.09.2023 | AK8: 02.10.2023 | AL8: 03.10.2023 | AM8: 04.10.2023 | AN8: 05.10.2023 | AO8: 06.10.2023 | AP8: 09.10.2023 | AQ8: 10.10.2023 | AR8: 11.10.2023 | AS8: 12.10.2023 | AT8: 13.10.2023 | AU8: 16.10.2023 | AV8: 17.10.2023 | AW8: 18.10.2023 | AX8: 19.10.2023 | AY8: 20.10.2023 | AZ8: 23.10.2023 | BA8: 24.10.2023 | BB8: 25.10.2023 | BC8: 26.10.2023 | BD8: 27.10.2023 | BE8: 30.10.2023 | BF8: 31.10.2023 | BG8: 01.11.2023 | BH8: 02.11.2023 | BI8: 03.11.2023 | BJ8: 06.11.2023 | BK8: 07.11.2023 | BL8: 08.11.2023 | BM8: 09.11.2023 | BN8: 10.11.2023 | BO8: 13.11.2023 | BP8: 14.11.2023 | BQ8: 15.11.2023 | BR8: 16.11.2023 | BS8: 17.11.2023 | BT8: 20.11.2023 | BU8: 21.11.2023 | BV8: 22.11.2023 | BW8: 23.11.2023 | BX8: 24.11.2023 | BY8: 27.11.2023 | BZ8: 28.11.2023 | CA8: 29.11.2023 | CB8: 30.11.2023 | CC8: 01.12.2023 | CD8: 04.12.2023 | CE8: 05.12.2023 | CF8: 06.12.2023 | CG8: 07.12.2023 | CH8: 08.12.2023 | CI8: 11.12.2023 | CJ8: 12.12.2023 | CK8: 13.12.2023 | CL8: 14.12.2023 | CM8: 15.12.2023 | CN8: 18.12.2023 | CO8: 19.12.2023 | CP8: 20.12.2023 | CQ8: 21.12.2023 | CR8: 22.12.2023 | CS8: 27.12.2023 | CT8: 28.12.2023 | CU8: 29.12.2023 | CV8: 02.01.2024 | CW8: 03.01.2024 | CX8: 04.01.2024 | CY8: 05.01.2024 | CZ8: 08.01.2024 | DA8: 09.01.2024 | DB8: 10.01.2024 | DC8: 11.01.2024 | DD8: 12.01.2024 | DE8: 15.01.2024 | DF8: 16.01.2024 | DG8: 17.01.2024 | DH8: 18.01.2024 | DI8: 19.01.2024 | DJ8: 22.01.2024 | DK8: 23.01.2024 | DL8: 24.01.2024 | DM8: 25.01.2024 | DN8: 26.01.2024 | DO8: 29.01.2024 | DP8: 30.01.2024 | DQ8: 31.01.2024 | DR8: 01.02.2024 | DS8: 02.02.2024 | DT8: 05.02.2024 | DU8: 06.02.2024 | DV8: 07.02.2024 | DW8: 08.02.2024 | DX8: 09.02.2024 | DY8: 12.02.2024 | DZ8: 13.02.2024 | EA8: 14.02.2024 | EB8: 15.02.2024 | EC8: 16.02.2024 | ED8: 19.02.2024 | EE8: 20.02.2024 | EF8: 21.02.2024 | EG8: 22.02.2024 | EH8: 23.02.2024 | EI8: 26.02.2024 | EJ8: 27.02.2024 | EK8: 28.02.2024 | EL8: 29.02.2024 | EM8: 01.03.2024 | EN8: 04.03.2024 | EO8: 05.03.2024 | EP8: 06.03.2024 | EQ8: 07.03.2024 | ER8: 08.03.2024 | ES8: 11.03.2024 | ET8: 12.03.2024 | EU8: 13.03.2024 | EV8: 14.03.2024 | EW8: 15.03.2024 | EX8: 18.03.2024 | EY8: 19.03.2024 | EZ8: 20.03.2024 | FA8: 21.03.2024 | FB8: 22.03.2024 | FC8: 25.03.2024 | FD8: 26.03.2024 | FE8: 27.03.2024 | FF8: 28.03.2024 | FG8: 02.04.2024 | FH8: 03.04.2024 | FI8: 04.04.2024 | FJ8: 05.04.2024 | FK8: 08.04.2024 | FL8: 09.04.2024 | FM8: 10.04.2024 | FN8: 11.04.2024 | FO8: 12.04.2024 | FP8: 15.04.2024 | FQ8: 16.04.2024 | FR8: 17.04.2024 | FS8: 18.04.2024 | FT8: 19.04.2024 | FU8: 22.04.2024 | FV8: 23.04.2024 | FW8: 24.04.2024 | FX8: 25.04.2024 | FY8: 26.04.2024 | FZ8: 29.04.2024 | GA8: 30.04.2024 | GB8: 02.05.2024 | GC8: 03.05.2024 | GD8: 06.05.2024 | GE8: 07.05.2024 | GF8: 08.05.2024 | GG8: 09.05.2024 | GH8: 10.05.2024 | GI8: 13.05.2024 | GJ8: 14.05.2024 | GK8: 15.05.2024 | GL8: 16.05.2024 | GM8: 17.05.2024 | GN8: 20.05.2024 | GO8: 21.05.2024 | GP8: 22.05.2024 | GQ8: 23.05.2024 | GR8: 24.05.2024 | GS8: 27.05.2024 | GT8: 28.05.2024 | GU8: 29.05.2024 | GV8: 30.05.2024 | GW8: 31.05.2024 | GX8: 03.06.2024 | GY8: 04.06.2024 | GZ8: 05.06.2024 | HA8: 06.06.2024 | HB8: 07.06.2024 | HC8: 10.06.2024 | HD8: 11.06.2024 | HE8: 12.06.2024 | HF8: 13.06.2024 | HG8: 14.06.2024 | HH8: 17.06.2024 | HI8: 18.06.2024 | HJ8: 19.06.2024 | HK8: 20.06.2024 | HL8: 21.06.2024 | HM8: 24.06.2024 | HN8: 25.06.2024 | HO8: 26.06.2024 | HP8: 27.06.2024 | HQ8: 28.06.2024 | HR8: 01.07.2024 | HS8: 02.07.2024 | HT8: 03.07.2024 | HU8: 04.07.2024 | HV8: 05.07.2024 | HW8: 08.07.2024 | HX8: 09.07.2024 | HY8: 10.07.2024 | HZ8: 11.07.2024 | IA8: 12.07.2024 | IB8: 15.07.2024 | IC8: 16.07.2024 | ID8: 17.07.2024 | IE8: 18.07.2024 | IF8: 19.07.2024 | IG8: 22.07.2024 | IH8: 23.07.2024 | II8: 24.07.2024 | IJ8: 25.07.2024 | IK8: 26.07.2024 | IL8: 29.07.2024 | IM8: 30.07.2024 | IN8: 31.07.2024 | IO8: 01.08.2024 | IP8: 02.08.2024 | IQ8: 05.08.2024 | IR8: 06.08.2024 | IS8: 07.08.2024 | IT8: 08.08.2024 | IU8: 09.08.2024 | IV8: 12.08.2024 | IW8: 13.08.2024 | IX8: 14.08.2024 | IY8: 15.08.2024 | IZ8: 16.08.2024 | JA8: 19.08.2024 | JB8: 20.08.2024 | JC8: 21.08.2024 | JD8: 22.08.2024 | JE8: 23.08.2024 | JF8: 26.08.2024 | JG8: 27.08.2024 | JH8: 28.08.2024 | JI8: 29.08.2024 | JJ8: 30.08.2024 | JK8: 02.09.2024 | JL8: 03.09.2024 | JM8: 04.09.2024 | JN8: 05.09.2024 | JO8: 06.09.2024 | JP8: 09.09.2024 | JQ8: 10.09.2024 | JR8: 11.09.2024 | JS8: 12.09.2024 | JT8: 13.09.2024 | JU8: 16.09.2024 | JV8: 18.09.2024 | JW8: 19.09.2024 | JX8: 23.09.2024 | JY8: 24.09.2024 | JZ8: 25.09.2024 | KA8: 02.10.2024 | KB8: 08.10.2024 | KC8: 10.10.2024 | KD8: 17.10.2024 | KE8: 21.10.2024 | KF8: 22.10.2024 | KG8: 23.10.2024 | KH8: 31.10.2024 | KI8: 04.11.2024 | KJ8: 07.11.2024 | KK8: 08.11.2024 | KL8: 12.11.2024 | KM8: nn1 | KN8: nn2 | KO8: nn3 | KP8: nn4 | KQ8: nn5 | KR8: nn6 | KS8: nn7 | KT8: nn8 | KU8: nn9 | KV8: nn10 | KW8: nn11 | KX8: nn12 | KY8: nn13 | KZ8: nn14 | LA8: nn15 | LB8: nn16 | LC8: nn17 | LD8: nn18 | LE8: nn19 | LF8: nn20 | LG8: nn21 | LH8: nn22 | LI8: nn23 | LJ8: nn24 | LK8: nn25 | LL8: nn26 | LM8: nn27 | LN8: nn28 | LO8: nn29 | LP8: nn30 | LQ8: nn31 | LR8: nn32 | LS8: nn33 | LT8: nn34 | LU8: nn35 | LV8: nn36 | LW8: nn37 | LX8: nn38 | LY8: nn39 | LZ8: nn40 | MA8: nn41 | MB8: nn42 | MC8: nn43 | MD8: nn44 | ME8: nn45 | MF8: nn46 | MG8: nn47 | MH8: nn48 | MI8: nn49 | MJ8: nn50 | MK8: nn51 | ML8: nn52 | MM8: nn53 | MN8: nn54 | MO8: nn55 | MP8: nn56 | MQ8: nn57 | MR8: nn58 | MS8: nn59 | MT8: nn60
C9: HVB | E9: LXH | G9: Tagesgeldkonten | H9: 9596.0617 | I9: 9596.0617 | J9: 9596.0617 | K9: 9596.0617 | L9: 9596.0617 | M9: 0 | N9: 0 | O9: 0 | P9: 0 | Q9: 0 | R9: 0 | S9: 0 | T9: 0 | U9: 0 | V9: 0 | W9: 0 | X9: 0 | Y9: 0 | Z9: 0 | AA9: 0 | AB9: 0 | AC9: 0 | AD9: 0 | AE9: 0 | AF9: 0 | AG9: 0 | AH9: 0 | AI9: 0 | AJ9: 0 | AK9: 0 | AL9: 0 | AM9: 0 | AN9: 0 | AO9: 0 | AP9: 0 | AQ9: 0 | AR9: 0 | AS9: 0 | AT9: 0 | AU9: 0 | AV9: 0 | AW9: 0 | AX9: 0 | AY9: 0 | AZ9: 0 | BA9: 0 | BB9: 0 | BC9: 0 | BD9: 0 | BE9: 0 | BF9: 0 | BG9: 0 | BH9: 0 | BI9: 0 | BJ9: 0 | BK9: 0 | BL9: 0 | BM9: 0 | BN9: 0 | BO9: 0 | BP9: 0 | BQ9: 0 | BR9: 0 | BS9: 0 | BT9: 0 | BU9: 0 | BV9: 0 | BW9: 0 | BX9: 0 | BY9: 0 | BZ9: 0 | CA9: 0 | CB9: 0 | CC9: 0 | CD9: 0 | CE9: 0 | CF9: 0 | CG9: 0 | CH9: 0 | CI9: 0 | CJ9: 0 | CK9: 0 | CL9: 0 | CM9: 0 | CN9: 0 | CO9: 0 | CP9: 0 | CQ9: 0 | CR9: 0 | CS9: 0 | CT9: 0 | CU9: 0 | CV9: 0 | CW9: 0 | CX9: 0 | CY9: 0 | CZ9: 0 | DA9: 0 | DB9: 0 | DC9: 0 | DD9: 0 | DE9: 0 | DF9: 0 | DG9: 0 | DH9: 0 | DI9: 0 | DJ9: 0 | DK9: 0 | DL9: 0 | DM9: 0 | DN9: 0 | DO9: 0 | DP9: 0 | DQ9: 0 | DR9: 0 | DS9: 0 | DT9: 0 | DU9: 0 | DV9: 0 | DW9: 0 | DX9: 0 | DY9: 0 | DZ9: 0 | EA9: 0 | EB9: 0 | EC9: 0 | ED9: 0 | EE9: 0 | EF9: 0 | EG9: 0 | EH9: 0 | EI9: 0 | EJ9: 0 | EK9: 0 | EL9: 0 | EM9: 0 | EN9: 0 | EO9: 0 | EP9: 0 | EQ9: 0 | ER9: 0 | ES9: 0 | ET9: 0 | EU9: 0 | EV9: 0 | EW9: 0 | EX9: 0 | EY9: 0 | EZ9: 0 | FA9: 0 | FB9: 0 | FC9: 0 | FD9: 0 | FE9: 0 | FF9: 0 | FG9: 0 | FH9: 0 | FI9: 0 | FJ9: 0 | FK9: 0 | FL9: 0 | FM9: 0 | FN9: 0 | FO9: 0 | FP9: 0 | FQ9: 0 | FR9: 0 | FS9: 0 | FT9: 0 | FU9: 0 | FV9: 0 | FW9: 0 | FX9: 0 | FY9: 0 | FZ9: 0 | GA9: 0 | GB9: 0 | GC9: 0 | GD9: 0 | GE9: 0 | GF9: 0 | GG9: 0 | GH9: 0 | GI9: 0 | GJ9: 0 | GK9: 0 | GL9: 0 | GM9: 0 | GN9: 0 | GO9: 0 | GP9: 0 | GQ9: 0 | GR9: 0 | GS9: 0 | GT9: 0 | GU9: 0 | GV9: 0 | GW9: 0 | GX9: 0 | GY9: 0 | GZ9: 0 | HA9: 0 | HB9: 0 | HC9: 0 | HD9: 0 | HE9: 0 | HF9: 0 | HG9: 0 | HH9: 0 | HI9: 0 | HJ9: 0 | HK9: 0 | HL9: 0 | HM9: 0 | HN9: 0 | HO9: 0 | HP9: 0 | HQ9: 0 | HR9: 0 | HS9: 0 | HT9: 0 | HU9: 0 | HV9: 0 | HW9: 0 | HX9: 0 | HY9: 0 | HZ9: 0 | IA9: 0 | IB9: 0 | IC9: 0 | ID9: 0 | IE9: 0 | IF9: 0 | IG9: 0 | IH9: 0 | II9: 0 | IJ9: 0 | IK9: 0 | IL9: 0 | IM9: 0 | IN9: 0 | IO9: 0 | IP9: 0 | IQ9: 0 | IR9: 0 | IS9: 0 | IT9: 0 | IU9: 0 | IV9: 0 | IW9: 0 | IX9: 0 | IY9: 0 | IZ9: 0 | JA9: 0 | JB9: 0 | JC9: 0 | JD9: 0 | JE9: 0 | JF9: 0 | JG9: 0 | JH9: 0 | JI9: 0 | JJ9: 0 | JK9: 0 | JL9: 0 | JM9: 0 | JN9: 0 | JO9: 0 | JP9: 0 | JQ9: 0 | JR9: 0 | JS9: 0 | JT9: 0 | JU9: =(JT9)*0.911004101199225 -> 0 | JV9: =(JU9)*0.911004101199225 -> 0 | JW9: 0 | JX9: =(JW9)*0.911004101199225 -> 0 | JY9: 0 | JZ9: =(+JY9)*0.911004101199225 -> 0 | KA9: =(+JZ9)*0.911004101199225 -> 0 | KB9: =(+KA9)*0.911004101199225 -> 0 | KC9: =(+KB9)*0.911004101199225 -> 0 | KD9: =(KC9)*0.911004101199225 -> 0 | KE9: 0 | KF9: =(KE9)*0.911004101199225 -> 0 | KG9: =(KF9)*0.911004101199225 -> 0 | KH9: =(KG9)*0.911004101199225 -> 0 | KI9: =(+KH9)*0.911004101199225 -> 0 | KJ9: =(KI9)*0.911004101199225 -> 0 | KK9: 0 | KL9: 0 | KM9: 0 | KN9: 0 | KO9: 0 | KP9: 0 | KQ9: 0 | KR9: 0 | KS9: 0 | KT9: 0 | KU9: 0 | KV9: 0 | KW9: 0 | KX9: 0 | KY9: 0 | KZ9: 0 | LA9: 0 | LB9: 0 | LC9: 0 | LD9: 0 | LE9: 0 | LF9: 0 | LG9: 0 | LH9: 0 | LI9: 0 | LJ9: 0 | LK9: 0 | LL9: 0 | LM9: 0 | LN9: 0 | LO9: 0 | LP9: 0 | LQ9: 0 | LR9: 0 | LS9: 0 | LT9: 0 | LU9: 0 | LV9: 0 | LW9: 0 | LX9: 0 | LY9: 0 | LZ9: 0 | MA9: 0 | MB9: 0 | MC9: 0 | MD9: 0 | ME9: 0 | MF9: 0 | MG9: 0 | MH9: 0 | MI9: 0 | MJ9: 0 | MK9: 0 | ML9: 0 | MM9: 0 | MN9: 0 | MO9: 0 | MP9: 0 | MQ9: 0 | MR9: 0 | MS9: 0 | MT9: 0
C10: HVB | E10: LXH | G10: Sonst. Girokonten | H10: 0 | I10: 0 | J10: 0 | K10: 0 | L10: 0 | M10: 0 | N10: 0 | O10: 0 | P10: 0 | Q10: 0 | R10: 0 | S10: 0 | T10: 0 | U10: 0 | V10: 0 | W10: 0 | X10: 0 | Y10: 0 | Z10: 0 | AA10: 0 | AB10: 0 | AC10: 0 | AD10: 0 | AE10: 0 | AF10: 0 | AG10: 0 | AH10: 0 | AI10: 0 | AJ10: 0 | AK10: 0 | AL10: 0 | AM10: 0 | AN10: 0 | AO10: 0 | AP10: 0 | AQ10: 0 | AR10: 0 | AS10: 0 | AT10: 0 | AU10: 0 | AV10: 0 | AW10: 0 | AX10: 0 | AY10: 0 | AZ10: 0 | BA10: 0 | BB10: 0 | BC10: 0 | BD10: 0 | BE10: 0 | BF10: 0 | BG10: 0 | BH10: 0 | BI10: 0 | BJ10: 0 | BK10: 0 | BL10: 0 | BM10: 0 | BN10: 0 | BO10: 0 | BP10: 0 | BQ10: 0 | BR10: 0 | BS10: 0 | BT10: 0 | BU10: 0 | BV10: 0 | BW10: 0 | BX10: 0 | BY10: 0 | BZ10: 0 | CA10: 0 | CB10: 0 | CC10: 0 | CD10: 0 | CE10: 0 | CF10: 0 | CG10: 0 | CH10: 0 | CI10: 0 | CJ10: 0 | CK10: 0 | CL10: 0 | CM10: 0 | CN10: 0 | CO10: 0 | CP10: 0 | CQ10: 0 | CR10: 0 | CS10: 0 | CT10: 0 | CU10: 0 | CV10: 0 | CW10: 0 | CX10: 0 | CY10: 0 | CZ10: 0 | DA10: 0 | DB10: 0 | DC10: 0 | DD10: 0 | DE10: 0 | DF10: 0 | DG10: 0 | DH10: 0 | DI10: 0 | DJ10: 0 | DK10: 0 | DL10: 0 | DM10: 0 | DN10: 0 | DO10: 0 | DP10: 0 | DQ10: 0 | DR10: 0 | DS10: 0 | DT10: 0 | DU10: 0 | DV10: 0 | DW10: 0 | DX10: 0 | DY10: 0 | DZ10: 0 | EA10: 0 | EB10: 0 | EC10: 0 | ED10: 0 | EE10: 0 | EF10: 0 | EG10: 0 | EH10: 0 | EI10: 0 | EJ10: 0 | EK10: 0 | EL10: 0 | EM10: 0 | EN10: 0 | EO10: 0 | EP10: 0 | EQ10: 0 | ER10: 0 | ES10: 0 | ET10: 0 | EU10: 0 | EV10: 0 | EW10: 0 | EX10: 0 | EY10: 0 | EZ10: 0 | FA10: 0 | FB10: 0 | FC10: 0 | FD10: 0 | FE10: 0 | FF10: 0 | FG10: 0 | FH10: 0 | FI10: 0 | FJ10: 0 | FK10: 0 | FL10: 0 | FM10: 0 | FN10: 0 | FO10: 0 | FP10: 0 | FQ10: 0 | FR10: 0 | FS10: 0 | FT10: 0 | FU10: 0 | FV10: 0 | FW10: 0 | FX10: 0 | FY10: 0 | FZ10: 0 | GA10: 0 | GB10: 0 | GC10: 0 | GD10: 0 | GE10: 0 | GF10: 0 | GG10: 0 | GH10: 0 | GI10: 0 | GJ10: 0 | GK10: 0 | GL10: 0 | GM10: 0 | GN10: 0 | GO10: 0 | GP10: 0 | GQ10: 0 | GR10: 0 | GS10: 0 | GT10: 0 | GU10: 0 | GV10: 0 | GW10: 0 | GX10: 0 | GY10: 0 | GZ10: 0 | HA10: 0 | HB10: 0 | HC10: 0 | HD10: 0 | HE10: 0 | HF10: 0 | HG10: 0 | HH10: 0 | HI10: 0 | HJ10: 0 | HK10: 0 | HL10: 0 | HM10: 0 | HN10: 0 | HO10: 0 | HP10: 0 | HQ10: 0 | HR10: 0 | HS10: 0 | HT10: 0 | HU10: 0 | HV10: 0 | HW10: 0 | HX10: 0 | HY10: 0 | HZ10: 0 | IA10: 0 | IB10: 0 | IC10: 0 | ID10: 0 | IE10: 0 | IF10: 0 | IG10: 0 | IH10: 0 | II10: 0 | IJ10: 0 | IK10: 0 | IL10: 0 | IM10: 0 | IN10: 0 | IO10: 0 | IP10: 0 | IQ10: 0 | IR10: 0 | IS10: 0 | IT10: 0 | IU10: 0 | IV10: 0 | IW10: 0 | IX10: 0 | IY10: 0 | IZ10: 0 | JA10: 0 | JB10: 0 | JC10: 0 | JD10: 0 | JE10: 0 | JF10: 0 | JG10: 0 | JH10: 0 | JI10: 0 | JJ10: 0 | JK10: 0 | JL10: 0 | JM10: 0 | JN10: 0 | JO10: 0 | JP10: 0 | JQ10: 0 | JR10: 0 | JS10: 0 | JT10: 0 | JU10: 0 | JV10: 0 | JW10: 0 | JX10: 0 | JY10: 0 | JZ10: 0 | KA10: 0 | KB10: 0 | KC10: 0 | KD10: 0 | KE10: 0 | KF10: 0 | KG10: 0 | KH10: 0 | KI10: 0 | KJ10: 0 | KK10: 1463.063476 | KL10: 1463.063476 | KM10: 0 | KN10: 0 | KO10: 0 | KP10: 0 | KQ10: 0 | KR10: 0 | KS10: 0 | KT10: 0 | KU10: 0 | KV10: 0 | KW10: 0 | KX10: 0 | KY10: 0 | KZ10: 0 | LA10: 0 | LB10: 0 | LC10: 0 | LD10: 0 | LE10: 0 | LF10: 0 | LG10: 0 | LH10: 0 | LI10: 0 | LJ10: 0 | LK10: 0 | LL10: 0 | LM10: 0 | LN10: 0 | LO10: 0 | LP10: 0 | LQ10: 0 | LR10: 0 | LS10: 0 | LT10: 0 | LU10: 0 | LV10: 0 | LW10: 0 | LX10: 0 | LY10: 0 | LZ10: 0 | MA10: 0 | MB10: 0 | MC10: 0 | MD10: 0 | ME10: 0 | MF10: 0 | MG10: 0 | MH10: 0 | MI10: 0 | MJ10: 0 | MK10: 0 | ML10: 0 | MM10: 0 | MN10: 0 | MO10: 0 | MP10: 0 | MQ10: 0 | MR10: 0 | MS10: 0 | MT10: 0
C11: HVB | E11: LXH | G11: HVB KK Holding | H11: 28305.98152 | I11: 27011.34448 | J11: 28824.65259 | K11: 8851.334067 | L11: 26593.42135 | M11: 655834.1209 | N11: 528014.743 | O11: 387005.1281 | P11: 313617.0792 | Q11: 313285.6468 | R11: 305928.9789 | S11: 301373.9584 | T11: 300918.4563 | U11: 299996.9757 | V11: 299306.8536 | W11: 299306.8536 | X11: 299245.0602 | Y11: 298776.7312 | Z11: 292117.1364 | AA11: 260283.1731 | AB11: 260283.1731 | AC11: 259732.3891 | AD11: 247388.1287 | AE11: 247905.579 | AF11: 247905.579 | AG11: 247760.5836 | AH11: 244010.5445 | AI11: 209273.0198 | AJ11: 209254.7997 | AK11: 212203.9751 | AL11: 212038.1723 | AM11: 291617.4233 | AN11: 288455.0001 | AO11: 276418.7319 | AP11: 275963.2299 | AQ11: 277515.5809 | AR11: 277453.7875 | AS11: 276493.2794 | AT11: 276024.9504 | AU11: 251255.8603 | AV11: 220738.3253 | AW11: 218718.7658 | AX11: 218601.3283 | AY11: 217648.172 | AZ11: 216388.1987 | BA11: 198006.2859 | BB11: 198006.2859 | BC11: 194546.511 | BD11: 222691.6365 | BE11: 187496.314 | BF11: 186862.2551 | BG11: 189501.1698 | BH11: 188193.8243 | BI11: 203773.4156 | BJ11: 190356.9489 | BK11: 208283.3596 | BL11: 206873.8541 | BM11: 206873.8541 | BN11: 206836.7762 | BO11: 202286.3107 | BP11: 202286.3107 | BQ11: 198397.0702 | BR11: 141638.0711 | BS11: 141638.0711 | BT11: 141319.7481 | BU11: 141319.7481 | BV11: 132693.8146 | BW11: 132693.8146 | BX11: 132693.8146 | BY11: 132633.0415 | BZ11: 128952.1659 | CA11: 78822.90806 | CB11: 77689.40943 | CC11: 113715.2124 | CD11: 108998.9441 | CE11: 122386.8782 | CF11: 122386.8782 | CG11: 121931.3762 | CH11: 577394.3993 | CI11: 577394.3993 | CJ11: 590082.409 | CK11: 590082.409 | CL11: 590082.409 | CM11: 550291.3714 | CN11: 523090.6383 | CO11: 523090.6383 | CP11: 539139.0961 | CQ11: 994454.573 | CR11: 994454.573 | CS11: 990528.3549 | CT11: 953345.431 | CU11: 931696.4024 | CV11: 929815.0149 | CW11: 929990.7476 | CX11: 927769.2823 | CY11: 927528.7773 | CZ11: 911462.8464 | DA11: 911462.8464 | DB11: 911462.8464 | DC11: 911462.8464 | DD11: 910554.7302 | DE11: 905500.1333 | DF11: 880074.0908 | DG11: 847135.2161 | DH11: 846580.9248 | DI11: 861648.0034 | DJ11: 861144.5643 | DK11: 843123.4638 | DL11: 862470.7494 | DM11: 862470.7494 | DN11: 862470.7494 | DO11: 858727.2605 | DP11: 824520.8147 | DQ11: 824502.5947 | DR11: 824037.7093 | DS11: 840368.5145 | DT11: 840247.852 | DU11: 839415.1487 | DV11: 839415.1487 | DW11: 838493.6681 | DX11: 838493.6681 | DY11: 838493.6681 | DZ11: 836822.2671 | EA11: 836822.2671 | EB11: 826901.7057 | EC11: 823651.234 | ED11: 799147.9111 | EE11: 799006.0678 | EF11: 797758.3384 | EG11: 797690.8603 | EH11: 815578.4258 | EI11: 808838.5806 | EJ11: 805095.0917 | EK11: 777466.3506 | EL11: 777448.1305 | EM11: 777301.5682 | EN11: 777301.5682 | EO11: 777301.5682 | EP11: 779513.0215 | EQ11: 1235015.072 | ER11: 1254796.797 | ES11: 1254796.797 | ET11: 1249433.671 | EU11: 1249433.671 | EV11: 1250212.679 | EW11: 1225641.669 | EX11: 1189681.968 | EY11: 1187213.876 | EZ11: 1186929.151 | FA11: 1186929.151 | FB11: 1179393.243 | FC11: 1178097.768 | FD11: 1174354.279 | FE11: 1194053.34 | FF11: 1143120.503 | FG11: 1143134.269 | FH11: 1158101.948 | FI11: 1157987.38 | FJ11: 1157987.38 | FK11: 1123837.48 | FL11: 1109114.415 | FM11: 1109114.415 | FN11: 1109114.415 | FO11: 1108854.769 | FP11: 1108480.265 | FQ11: 1044468.252 | FR11: 1011896.156 | FS11: 1011896.156 | FT11: 1030388.21 | FU11: 1029948.769 | FV11: 1029948.769 | FW11: 1024814.058 | FX11: 1028813.12 | FY11: 981897.6842 | FZ11: 981858.6568 | GA11: 974734.3132 | GB11: 977373.2552 | GC11: 990765.8628 | GD11: 990603.4581 | GE11: 991347.1927 | GF11: 989957.3831 | GG11: 989957.3831 | GH11: 989810.7114 | GI11: 989687.1246 | GJ11: 989687.1246 | GK11: 998284.4798 | GL11: 971358.7697 | GM11: 939565.2914 | GN11: 939565.2914 | GO11: 939335.4451 | GP11: 939335.4451 | GQ11: 939335.4451 | GR11: 939335.4451 | GS11: 939335.4451 | GT11: 939114.3444 | GU11: 899375.061 | GV11: 899375.061 | GW11: 897554.228 | GX11: 897028.2506 | GY11: 896793.9404 | GZ11: 913124.7457 | HA11: 911587.1165 | HB11: 911179.8977 | HC11: 911033.226 | HD11: 910111.7454 | HE11: 909750.9877 | HF11: 911804.1906 | HG11: 887125.0894 | HH11: 853785.7465 | HI11: 853785.7465 | HJ11: 873484.8072 | HK11: 872928.4024 | HL11: 874149.2936 | HM11: 874149.2936 | HN11: 873004.5441 | HO11: 826155.7027 | HP11: 825627.2019 | HQ11: 824818.959 | HR11: 825276.6931 | HS11: 825276.6931 | HT11: 839016.4387 | HU11: 815823.7774 | HV11: 815368.6489 | HW11: 814961.4301 | HX11: 814961.4301 | HY11: 814814.7584 | HZ11: 815841.3598 | IA11: 815691.8458 | IB11: 815691.8458 | IC11: 753478.073 | ID11: 773174.0546 | IE11: 773174.0546 | IF11: 773174.0546 | IG11: 770813.0508 | IH11: 770813.0508 | II11: 770813.0508 | IJ11: 770813.0508 | IK11: 770813.0508 | IL11: 697691.1517 | IM11: 696989.0135 | IN11: 694846.9423 | IO11: 695352.0029 | IP11: 706952.4194 | IQ11: 706018.9408 | IR11: 706018.9408 | IS11: 761704.1667 | IT11: 761704.1667 | IU11: 761704.1667 | IV11: 750136.2002 | IW11: 740433.551 | IX11: 760798.3736 | IY11: 749403.9169 | IZ11: 711028.2335 | JA11: 663447.3912 | JB11: 663033.1486 | JC11: 662111.6679 | JD11: 662111.6679 | JE11: 662111.6679 | JF11: 662111.6679 | JG11: 630615.8784 | JH11: 576695.4861 | JI11: 576695.4861 | JJ11: 573861.6165 | JK11: 574144.9753 | JL11: 573410.7059 | JM11: 589205.8955 | JN11: 589205.8955 | JO11: 589205.8955 | JP11: 588707.5762 | JQ11: 588560.9046 | JR11: 588469.8042 | JS11: 588469.8315 | JT11: 606729.3873 | JU11: 545755.4 | JV11: =(+JU11)*0.911004101199225 -> 497185.4076 | JW11: =(JV11)*0.911004101199225 -> 452937.9454 | JX11: 545531.1199 | JY11: 543361.1081 | JZ11: =(+JY11)*0.911004101199225 -> 495004.1979 | KA11: 501902.8784 | KB11: 499650.2203 | KC11: 485730.9887 | KD11: 424780.2593 | KE11: =(+KD11)*0.911004101199225 -> 386976.5583 | KF11: 424187.1956 | KG11: =(KF11)*0.911004101199225 -> 386436.2749 | KH11: 370917.1418 | KI11: 353187.18 | KJ11: 368661.6232 | KK11: =(+KJ11)*0.911004101199225 -> 335852.2507 | KL11: 367497.2324 | KM11: 0 | KN11: 0 | KO11: 0 | KP11: 0 | KQ11: 0 | KR11: 0 | KS11: 0 | KT11: 0 | KU11: 0 | KV11: 0 | KW11: 0 | KX11: 0 | KY11: 0 | KZ11: 0 | LA11: 0 | LB11: 0 | LC11: 0 | LD11: 0 | LE11: 0 | LF11: 0 | LG11: 0 | LH11: 0 | LI11: 0 | LJ11: 0 | LK11: 0 | LL11: 0 | LM11: 0 | LN11: 0 | LO11: 0 | LP11: 0 | LQ11: 0 | LR11: 0 | LS11: 0 | LT11: 0 | LU11: 0 | LV11: 0 | LW11: 0 | LX11: 0 | LY11: 0 | LZ11: 0 | MA11: 0 | MB11: 0 | MC11: 0 | MD11: 0 | ME11: 0 | MF11: 0 | MG11: 0 | MH11: 0 | MI11: 0 | MJ11: 0 | MK11: 0 | ML11: 0 | MM11: 0 | MN11: 0 | MO11: 0 | MP11: 0 | MQ11: 0 | MR11: 0 | MS11: 0 | MT11: 0
C12: Commerzbank | E12: LXH | G12: Sonst. Girokonten | H12: 15551.833 | I12: 15551.833 | J12: 15551.833 | K12: 15551.833 | L12: 15551.833 | M12: 15255.02787 | N12: 15255.02787 | O12: 15255.02787 | P12: 15255.02787 | Q12: 15255.02787 | R12: 15255.02787 | S12: 15255.02787 | T12: 15255.02787 | U12: 15255.02787 | V12: 15255.02787 | W12: 15255.02787 | X12: 15255.02787 | Y12: 15255.02787 | Z12: 15255.02787 | AA12: 15255.02787 | AB12: 15255.02787 | AC12: 15255.02787 | AD12: 15255.02787 | AE12: 15255.02787 | AF12: 15255.02787 | AG12: 15255.02787 | AH12: 15255.02787 | AI12: 15255.02787 | AJ12: 15255.02787 | AK12: 15255.02787 | AL12: 15255.02787 | AM12: 15255.02787 | AN12: 15255.02787 | AO12: 15255.02787 | AP12: 15255.02787 | AQ12: 15255.02787 | AR12: 15255.02787 | AS12: 15255.02787 | AT12: 15255.02787 | AU12: 15255.02787 | AV12: 15255.02787 | AW12: 15255.02787 | AX12: 15255.02787 | AY12: 15255.02787 | AZ12: 15255.02787 | BA12: 15255.02787 | BB12: 15255.02787 | BC12: 15255.02787 | BD12: 15255.02787 | BE12: 15255.02787 | BF12: 15255.02787 | BG12: 15255.02787 | BH12: 15255.02787 | BI12: 15255.02787 | BJ12: 15255.02787 | BK12: 15255.02787 | BL12: 15255.02787 | BM12: 15255.02787 | BN12: 15255.02787 | BO12: 15255.02787 | BP12: 15255.02787 | BQ12: 15255.02787 | BR12: 15255.02787 | BS12: 15255.02787 | BT12: 15255.02787 | BU12: 15255.02787 | BV12: 15255.02787 | BW12: 15255.02787 | BX12: 15255.02787 | BY12: 15255.02787 | BZ12: 15255.02787 | CA12: 15255.02787 | CB12: 15255.02787 | CC12: 15255.02787 | CD12: 15255.02787 | CE12: 15255.02787 | CF12: 15255.02787 | CG12: 15255.02787 | CH12: 15255.02787 | CI12: 15255.02787 | CJ12: 678.9622466 | CK12: 678.9622466 | CL12: 678.9622466 | CM12: 678.9622466 | CN12: 678.9622466 | CO12: 678.9622466 | CP12: 678.9622466 | CQ12: 678.9622466 | CR12: 678.9622466 | CS12: 678.9622466 | CT12: 678.9622466 | CU12: 678.9622466 | CV12: 678.9622466 | CW12: 678.9622466 | CX12: 678.9622466 | CY12: 678.9622466 | CZ12: 678.9622466 | DA12: 678.9622466 | DB12: 678.9622466 | DC12: 678.9622466 | DD12: 678.9622466 | DE12: 678.9622466 | DF12: 678.9622466 | DG12: 678.9622466 | DH12: 678.9622466 | DI12: 678.9622466 | DJ12: 678.9622466 | DK12: 678.9622466 | DL12: 678.9622466 | DM12: 678.9622466 | DN12: 678.9622466 | DO12: 678.9622466 | DP12: 678.9622466 | DQ12: 678.9622466 | DR12: 678.9622466 | DS12: 678.9622466 | DT12: 678.9622466 | DU12: 678.9622466 | DV12: 678.9622466 | DW12: 678.9622466 | DX12: 678.9622466 | DY12: 678.9622466 | DZ12: 678.9622466 | EA12: 678.9622466 | EB12: 678.9622466 | EC12: 678.9622466 | ED12: 678.9622466 | EE12: 678.9622466 | EF12: 678.9622466 | EG12: 678.9622466 | EH12: 678.9622466 | EI12: 678.9622466 | EJ12: 678.9622466 | EK12: 678.9622466 | EL12: 678.9622466 | EM12: 678.9622466 | EN12: 678.9622466 | EO12: 678.9622466 | EP12: 678.9622466 | EQ12: 678.9622466 | ER12: 678.9622466 | ES12: 678.9622466 | ET12: 678.9622466 | EU12: 678.9622466 | EV12: 678.9622466 | EW12: 678.9622466 | EX12: 678.9622466 | EY12: 678.9622466 | EZ12: 678.9622466 | FA12: 678.9622466 | FB12: 678.9622466 | FC12: 678.9622466 | FD12: 678.9622466 | FE12: 678.9622466 | FF12: 678.9622466 | FG12: 678.9622466 | FH12: 678.9622466 | FI12: 678.9622466 | FJ12: 678.9622466 | FK12: 678.9622466 | FL12: 678.9622466 | FM12: 678.9622466 | FN12: 678.9622466 | FO12: 678.9622466 | FP12: 678.9622466 | FQ12: 678.9622466 | FR12: 678.9622466 | FS12: 678.9622466 | FT12: 678.9622466 | FU12: 678.9622466 | FV12: 678.9622466 | FW12: 678.9622466 | FX12: 678.9622466 | FY12: 678.9622466 | FZ12: 678.9622466 | GA12: 678.9622466 | GB12: 678.9622466 | GC12: 678.9622466 | GD12: 678.9622466 | GE12: 678.9622466 | GF12: 678.9622466 | GG12: 678.9622466 | GH12: 678.9622466 | GI12: 678.9622466 | GJ12: 678.9622466 | GK12: 678.9622466 | GL12: 678.9622466 | GM12: 678.9622466 | GN12: 678.9622466 | GO12: 678.9622466 | GP12: 678.9622466 | GQ12: 678.9622466 | GR12: 678.9622466 | GS12: 678.9622466 | GT12: 678.9622466 | GU12: 678.9622466 | GV12: 678.9622466 | GW12: 678.9622466 | GX12: 678.9622466 | GY12: 678.9622466 | GZ12: 678.9622466 | HA12: 678.9622466 | HB12: 678.9622466 | HC12: 678.9622466 | HD12: 678.9622466 | HE12: 678.9622466 | HF12: 678.9622466 | HG12: 678.9622466 | HH12: 678.9622466 | HI12: 678.9622466 | HJ12: 678.9622466 | HK12: 678.9622466 | HL12: 678.9622466 | HM12: 678.9622466 | HN12: 678.9622466 | HO12: 678.9622466 | HP12: 678.9622466 | HQ12: 678.9622466 | HR12: 388.944091 | HS12: 388.944091 | HT12: 388.944091 | HU12: 388.944091 | HV12: 388.944091 | HW12: 388.944091 | HX12: 388.944091 | HY12: 388.944091 | HZ12: 388.944091 | IA12: 388.944091 | IB12: 388.944091 | IC12: 388.944091 | ID12: 388.944091 | IE12: 388.944091 | IF12: 388.944091 | IG12: 388.944091 | IH12: 388.944091 | II12: 388.944091 | IJ12: 388.944091 | IK12: 388.944091 | IL12: 388.944091 | IM12: 388.944091 | IN12: 388.944091 | IO12: 388.944091 | IP12: 388.944091 | IQ12: 388.944091 | IR12: 388.944091 | IS12: 388.944091 | IT12: 388.944091 | IU12: 388.944091 | IV12: 388.944091 | IW12: 388.944091 | IX12: 388.944091 | IY12: 388.944091 | IZ12: 388.944091 | JA12: 388.944091 | JB12: 388.944091 | JC12: 388.944091 | JD12: 388.944091 | JE12: 388.944091 | JF12: 388.944091 | JG12: 388.944091 | JH12: 388.944091 | JI12: 388.944091 | JJ12: 388.944091 | JK12: 388.944091 | JL12: 388.944091 | JM12: 388.944091 | JN12: 388.944091 | JO12: 388.944091 | JP12: 388.944091 | JQ12: 388.944091 | JR12: 388.944091 | JS12: 388.944091 | JT12: 388.944091 | JU12: =(JT12)*0.911004101199225 -> 354.329662 | JV12: 322.7957753 | JW12: 294.0682751 | JX12: =(JW12)*0.911004101199225 -> 267.8974047 | JY12: =(+JX12)*0.911004101199225 -> 244.0556343 | JZ12: 222.3356838 | KA12: =(+JZ12)*0.911004101199225 -> 202.5487198 | KB12: 184.5227144 | KC12: 168.1009496 | KD12: =(KC12)*0.911004101199225 -> 153.1406545 | KE12: 139.5117643 | KF12: =(KE12)*0.911004101199225 -> 127.0957895 | KG12: 115.7847854 | KH12: =(KG12)*0.911004101199225 -> 105.4804144 | KI12: =(+KH12)*0.911004101199225 -> 96.09309011 | KJ12: =(KI12)*0.911004101199225 -> 87.54119919 | KK12: 79.75039148 | KL12: =(KK12)*0.911004101199225 -> 72.65293371 | KM12: 0 | KN12: 0 | KO12: 0 | KP12: 0 | KQ12: 0 | KR12: 0 | KS12: 0 | KT12: 0 | KU12: 0 | KV12: 0 | KW12: 0 | KX12: 0 | KY12: 0 | KZ12: 0 | LA12: 0 | LB12: 0 | LC12: 0 | LD12: 0 | LE12: 0 | LF12: 0 | LG12: 0 | LH12: 0 | LI12: 0 | LJ12: 0 | LK12: 0 | LL12: 0 | LM12: 0 | LN12: 0 | LO12: 0 | LP12: 0 | LQ12: 0 | LR12: 0 | LS12: 0 | LT12: 0 | LU12: 0 | LV12: 0 | LW12: 0 | LX12: 0 | LY12: 0 | LZ12: 0 | MA12: 0 | MB12: 0 | MC12: 0 | MD12: 0 | ME12: 0 | MF12: 0 | MG12: 0 | MH12: 0 | MI12: 0 | MJ12: 0 | MK12: 0 | ML12: 0 | MM12: 0 | MN12: 0 | MO12: 0 | MP12: 0 | MQ12: 0 | MR12: 0 | MS12: 0 | MT12: 0
C13: Deutsche Bank | E13: LXH | G13: Tagesgeldkonten | H13: 1341773.311 | I13: 1341773.311 | J13: 1341773.311 | K13: 430769.2094 | L13: 430769.2094 | M13: 430769.2094 | N13: 430769.2094 | O13: 439710.0496 | P13: 439710.0496 | Q13: 439710.0496 | R13: 439710.0496 | S13: 439710.0496 | T13: 439710.0496 | U13: 439710.0496 | V13: 439710.0496 | W13: 439710.0496 | X13: 439710.0496 | Y13: 439710.0496 | Z13: 439710.0496 | AA13: 439710.0496 | AB13: 439710.0496 | AC13: 439710.0496 | AD13: 439710.0496 | AE13: 439710.0496 | AF13: 439710.0496 | AG13: 439710.0496 | AH13: 439710.0496 | AI13: 439710.0496 | AJ13: 439710.0496 | AK13: 439710.0496 | AL13: 439710.0496 | AM13: 439710.0496 | AN13: 439710.0496 | AO13: 439710.0496 | AP13: 439710.0496 | AQ13: 439710.0496 | AR13: 439710.0496 | AS13: 439710.0496 | AT13: 439710.0496 | AU13: 439710.0496 | AV13: 439710.0496 | AW13: 439710.0496 | AX13: 439710.0496 | AY13: 439710.0496 | AZ13: 439710.0496 | BA13: 439710.0496 | BB13: 439710.0496 | BC13: 439710.0496 | BD13: 439710.0496 | BE13: 439710.0496 | BF13: 439710.0496 | BG13: 439710.0496 | BH13: 439710.0496 | BI13: 439710.0496 | BJ13: 439710.0496 | BK13: 439710.0496 | BL13: 439710.0496 | BM13: 439710.0496 | BN13: 439710.0496 | BO13: 439710.0496 | BP13: 439710.0496 | BQ13: 439710.0496 | BR13: 439710.0496 | BS13: 439710.0496 | BT13: 439710.0496 | BU13: 439710.0496 | BV13: 439710.0496 | BW13: 439710.0496 | BX13: 439710.0496 | BY13: 439710.0496 | BZ13: 439710.0496 | CA13: 439710.0496 | CB13: 439710.0496 | CC13: 439710.0496 | CD13: 439710.0496 | CE13: 439710.0496 | CF13: 439710.0496 | CG13: 439710.0496 | CH13: 439710.0496 | CI13: 439710.0496 | CJ13: 439710.0496 | CK13: 439710.0496 | CL13: 439710.0496 | CM13: 439710.0496 | CN13: 439710.0496 | CO13: 439710.0496 | CP13: 439710.0496 | CQ13: 439710.0496 | CR13: 439710.0496 | CS13: 439710.0496 | CT13: 439710.0496 | CU13: 439710.0496 | CV13: 439710.0496 | CW13: 439710.0496 | CX13: 439710.0496 | CY13: 439710.0496 | CZ13: 439710.0496 | DA13: 439710.0496 | DB13: 439710.0496 | DC13: 439710.0496 | DD13: 439710.0496 | DE13: 439710.0496 | DF13: 439710.0496 | DG13: 439710.0496 | DH13: 439710.0496 | DI13: 439710.0496 | DJ13: 439710.0496 | DK13: 439710.0496 | DL13: 439710.0496 | DM13: 439710.0496 | DN13: 439710.0496 | DO13: 439710.0496 | DP13: 439710.0496 | DQ13: 439710.0496 | DR13: 439710.0496 | DS13: 439710.0496 | DT13: 439710.0496 | DU13: 439710.0496 | DV13: 439710.0496 | DW13: 439710.0496 | DX13: 439710.0496 | DY13: 439710.0496 | DZ13: 439710.0496 | EA13: 439710.0496 | EB13: 439710.0496 | EC13: 439710.0496 | ED13: 439710.0496 | EE13: 439710.0496 | EF13: 439710.0496 | EG13: 439710.0496 | EH13: 439710.0496 | EI13: 439710.0496 | EJ13: 439710.0496 | EK13: 439710.0496 | EL13: 439710.0496 | EM13: 439710.0496 | EN13: 439710.0496 | EO13: 439710.0496 | EP13: 439710.0496 | EQ13: 439710.0496 | ER13: 439710.0496 | ES13: 439710.0496 | ET13: 439710.0496 | EU13: 439710.0496 | EV13: 439710.0496 | EW13: 439710.0496 | EX13: 439710.0496 | EY13: 439710.0496 | EZ13: 439710.0496 | FA13: 439710.0496 | FB13: 439710.0496 | FC13: 439710.0496 | FD13: 439710.0496 | FE13: 439710.0496 | FF13: 439710.0496 | FG13: 439710.0496 | FH13: 439710.0496 | FI13: 439710.0496 | FJ13: 439710.0496 | FK13: 439710.0496 | FL13: 439710.0496 | FM13: 439710.0496 | FN13: 439710.0496 | FO13: 439710.0496 | FP13: 439710.0496 | FQ13: 439710.0496 | FR13: 439710.0496 | FS13: 439710.0496 | FT13: 439710.0496 | FU13: 439710.0496 | FV13: 439710.0496 | FW13: 439710.0496 | FX13: 439710.0496 | FY13: 439710.0496 | FZ13: 439710.0496 | GA13: 439710.0496 | GB13: 439710.0496 | GC13: 439710.0496 | GD13: 439710.0496 | GE13: 439710.0496 | GF13: 439710.0496 | GG13: 439710.0496 | GH13: 439710.0496 | GI13: 439710.0496 | GJ13: 439710.0496 | GK13: 439710.0496 | GL13: 439710.0496 | GM13: 439710.0496 | GN13: 439710.0496 | GO13: 439710.0496 | GP13: 439710.0496 | GQ13: 439710.0496 | GR13: 439710.0496 | GS13: 439710.0496 | GT13: 439710.0496 | GU13: 439710.0496 | GV13: 439710.0496 | GW13: 439710.0496 | GX13: 439710.0496 | GY13: 439710.0496 | GZ13: 439710.0496 | HA13: 439710.0496 | HB13: 439710.0496 | HC13: 439710.0496 | HD13: 439710.0496 | HE13: 439710.0496 | HF13: 439710.0496 | HG13: 439710.0496 | HH13: 439710.0496 | HI13: 439710.0496 | HJ13: 439710.0496 | HK13: 439710.0496 | HL13: 439710.0496 | HM13: 439710.0496 | HN13: 439710.0496 | HO13: 439710.0496 | HP13: 439710.0496 | HQ13: 439710.0496 | HR13: 439710.0496 | HS13: 439710.0496 | HT13: 439710.0496 | HU13: 439710.0496 | HV13: 439710.0496 | HW13: 439710.0496 | HX13: 439710.0496 | HY13: 439710.0496 | HZ13: 439710.0496 | IA13: 439710.0496 | IB13: 439710.0496 | IC13: 439710.0496 | ID13: 439710.0496 | IE13: 439710.0496 | IF13: 439710.0496 | IG13: 439710.0496 | IH13: 439710.0496 | II13: 439710.0496 | IJ13: 439710.0496 | IK13: 439710.0496 | IL13: 439710.0496 | IM13: 439710.0496 | IN13: 439710.0496 | IO13: 439710.0496 | IP13: 439710.0496 | IQ13: 439710.0496 | IR13: 439710.0496 | IS13: 439710.0496 | IT13: 439710.0496 | IU13: 439710.0496 | IV13: 439710.0496 | IW13: 439710.0496 | IX13: 439710.0496 | IY13: 439710.0496 | IZ13: 439710.0496 | JA13: 439710.0496 | JB13: 439710.0496 | JC13: 439710.0496 | JD13: 439710.0496 | JE13: 439710.0496 | JF13: 439710.0496 | JG13: 439710.0496 | JH13: 439710.0496 | JI13: 439710.0496 | JJ13: 439710.0496 | JK13: 439710.0496 | JL13: 439710.0496 | JM13: 439710.0496 | JN13: 439710.0496 | JO13: 439710.0496 | JP13: 439710.0496 | JQ13: 439710.0496 | JR13: 439710.0496 | JS13: 439710.0496 | JT13: 439710.0496 | JU13: 400577.6585 | JV13: 364927.8898 | JW13: 332450.8042 | JX13: 302864.0461 | JY13: 275910.3881 | JZ13: 251355.4951 | KA13: 228985.8869 | KB13: 208607.0821 | KC13: 190041.9073 | KD13: 173128.957 | KE13: 157721.1898 | KF13: 143684.6508 | KG13: 130897.3061 | KH13: 119247.9827 | KI13: 108635.4013 | KJ13: 98967.29615 | KK13: 90159.61267 | KL13: 82135.77691 | KM13: 0 | KN13: 0 | KO13: 0 | KP13: 0 | KQ13: 0 | KR13: 0 | KS13: 0 | KT13: 0 | KU13: 0 | KV13: 0 | KW13: 0 | KX13: 0 | KY13: 0 | KZ13: 0 | LA13: 0 | LB13: 0 | LC13: 0 | LD13: 0 | LE13: 0 | LF13: 0 | LG13: 0 | LH13: 0 | LI13: 0 | LJ13: 0 | LK13: 0 | LL13: 0 | LM13: 0 | LN13: 0 | LO13: 0 | LP13: 0 | LQ13: 0 | LR13: 0 | LS13: 0 | LT13: 0 | LU13: 0 | LV13: 0 | LW13: 0 | LX13: 0 | LY13: 0 | LZ13: 0 | MA13: 0 | MB13: 0 | MC13: 0 | MD13: 0 | ME13: 0 | MF13: 0 | MG13: 0 | MH13: 0 | MI13: 0 | MJ13: 0 | MK13: 0 | ML13: 0 | MM13: 0 | MN13: 0 | MO13: 0 | MP13: 0 | MQ13: 0 | MR13: 0 | MS13: 0 | MT13: 0
C14: Oddo Bank | E14: LXH | G14: Sonstige Konten | H14: 0 | I14: 0 | J14: 0 | K14: 0 | L14: 0 | M14: 0 | N14: 0 | O14: 0 | P14: 0 | Q14: 0 | R14: 0 | S14: 0 | T14: 0 | U14: 0 | V14: 0 | W14: 0 | X14: 0 | Y14: 0 | Z14: 0 | AA14: 0 | AB14: 0 | AC14: 0 | AD14: 0 | AE14: 0 | AF14: 0 | AG14: 0 | AH14: 0 | AI14: 0 | AJ14: 0 | AK14: 0 | AL14: 0 | AM14: 0 | AN14: 0 | AO14: 0 | AP14: 0 | AQ14: 0 | AR14: 0 | AS14: 0 | AT14: 0 | AU14: 0 | AV14: 0 | AW14: 0 | AX14: 0 | AY14: 0 | AZ14: 0 | BA14: 0 | BB14: 0 | BC14: 0 | BD14: 0 | BE14: 0 | BF14: 0 | BG14: 0 | BH14: 0 | BI14: 0 | BJ14: 0 | BK14: 0 | BL14: 0 | BM14: 0 | BN14: 0 | BO14: 0 | BP14: 0 | BQ14: 0 | BR14: 0 | BS14: 0 | BT14: 0 | BU14: 0 | BV14: 0 | BW14: 0 | BX14: 0 | BY14: 0 | BZ14: 0 | CA14: 0 | CB14: 0 | CC14: 0 | CD14: 0 | CE14: 0 | CF14: 0 | CG14: 0 | CH14: 0 | CI14: 0 | CJ14: 0 | CK14: 0 | CL14: 0 | CM14: 0 | CN14: 0 | CO14: 0 | CP14: 0 | CQ14: 0 | CR14: 0 | CS14: 0 | CT14: 0 | CU14: 0 | CV14: 0 | CW14: 0 | CX14: 0 | CY14: 0 | CZ14: 0 | DA14: 0 | DB14: 0 | DC14: 0 | DD14: 0 | DE14: 0 | DF14: 0 | DG14: 0 | DH14: 0 | DI14: 0 | DJ14: 0 | DK14: 0 | DL14: 0 | DM14: 0 | DN14: 0 | DO14: 0 | DP14: 0 | DQ14: 0 | DR14: 0 | DS14: 0 | DT14: 0 | DU14: 0 | DV14: 0 | DW14: 0 | DX14: 0 | DY14: 0 | DZ14: 0 | EA14: 0 | EB14: 0 | EC14: 0 | ED14: 0 | EE14: 0 | EF14: 0 | EG14: 0 | EH14: 0 | EI14: 0 | EJ14: 0 | EK14: 0 | EL14: 0 | EM14: 0 | EN14: 0 | EO14: 0 | EP14: 0 | EQ14: 0 | ER14: 0 | ES14: 0 | ET14: 0 | EU14: 0 | EV14: 0 | EW14: 0 | EX14: 0 | EY14: 0 | EZ14: 0 | FA14: 0 | FB14: 0 | FC14: 0 | FD14: 0 | FE14: 0 | FF14: 0 | FG14: 0 | FH14: 0 | FI14: 0 | FJ14: 0 | FK14: 0 | FL14: 0 | FM14: 0 | FN14: 0 | FO14: 0 | FP14: 0 | FQ14: 0 | FR14: 0 | FS14: 0 | FT14: 0 | FU14: 0 | FV14: 0 | FW14: 0 | FX14: 0 | FY14: 0 | FZ14: 0 | GA14: 0 | GB14: 0 | GC14: 0 | GD14: 0 | GE14: 0 | GF14: 0 | GG14: 0 | GH14: 0 | GI14: 0 | GJ14: 0 | GK14: 0 | GL14: 0 | GM14: 0 | GN14: 0 | GO14: 0 | GP14: 0 | GQ14: 0 | GR14: 0 | GS14: 0 | GT14: 0 | GU14: 0 | GV14: 0 | GW14: 0 | GX14: 0 | GY14: 0 | GZ14: 0 | HA14: 0 | HB14: 0 | HC14: 0 | HD14: 0 | HE14: 0 | HF14: 0 | HG14: 0 | HH14: 0 | HI14: 0 | HJ14: 0 | HK14: 0 | HL14: 0 | HM14: 0 | HN14: 0 | HO14: 0 | HP14: 0 | HQ14: 0 | HR14: 120784.7955 | HS14: 120784.7955 | HT14: 120784.7955 | HU14: 120784.7955 | HV14: 120784.7955 | HW14: 120784.7955 | HX14: 120784.7955 | HY14: 120784.7955 | HZ14: 120784.7955 | IA14: 120784.7955 | IB14: 120784.7955 | IC14: 120784.7955 | ID14: 120784.7955 | IE14: 120784.7955 | IF14: 120784.7955 | IG14: 120784.7955 | IH14: 120784.7955 | II14: 120784.7955 | IJ14: 120784.7955 | IK14: 120784.7955 | IL14: 120784.7955 | IM14: 120784.7955 | IN14: 120784.7955 | IO14: 120784.7955 | IP14: 120784.7955 | IQ14: 120784.7955 | IR14: 120784.7955 | IS14: 120784.7955 | IT14: 120784.7955 | IU14: 120784.7955 | IV14: 120784.7955 | IW14: 120784.7955 | IX14: 120784.7955 | IY14: 120784.7955 | IZ14: 120784.7955 | JA14: 120784.7955 | JB14: 120784.7955 | JC14: 120784.7955 | JD14: 120784.7955 | JE14: 120784.7955 | JF14: 120784.7955 | JG14: 120784.7955 | JH14: 120784.7955 | JI14: 120784.7955 | JJ14: 120784.7955 | JK14: 120784.7955 | JL14: 120784.7955 | JM14: 120784.7955 | JN14: 120784.7955 | JO14: 120784.7955 | JP14: 120784.7955 | JQ14: 120784.7955 | JR14: 120784.7955 | JS14: 120784.7955 | JT14: 120784.7955 | JU14: 110035.4441 | JV14: 100242.7408 | JW14: 91321.548 | JX14: 83194.30476 | JY14: 75790.35283 | JZ14: 69045.32226 | KA14: 62900.57175 | KB14: 57302.67883 | KC14: 52202.97543 | KD14: 47557.12471 | KE14: 43324.73565 | KF14: 39469.01186 | KG14: 35956.43167 | KH14: 32756.45672 | KI14: 29841.26641 | KJ14: 27185.51609 | KK14: 24766.11665 | KL14: 22562.03384 | KM14: 0 | KN14: 0 | KO14: 0 | KP14: 0 | KQ14: 0 | KR14: 0 | KS14: 0 | KT14: 0 | KU14: 0 | KV14: 0 | KW14: 0 | KX14: 0 | KY14: 0 | KZ14: 0 | LA14: 0 | LB14: 0 | LC14: 0 | LD14: 0 | LE14: 0 | LF14: 0 | LG14: 0 | LH14: 0 | LI14: 0 | LJ14: 0 | LK14: 0 | LL14: 0 | LM14: 0 | LN14: 0 | LO14: 0 | LP14: 0 | LQ14: 0 | LR14: 0 | LS14: 0 | LT14: 0 | LU14: 0 | LV14: 0 | LW14: 0 | LX14: 0 | LY14: 0 | LZ14: 0 | MA14: 0 | MB14: 0 | MC14: 0 | MD14: 0 | ME14: 0 | MF14: 0 | MG14: 0 | MH14: 0 | MI14: 0 | MJ14: 0 | MK14: 0 | ML14: 0 | MM14: 0 | MN14: 0 | MO14: 0 | MP14: 0 | MQ14: 0 | MR14: 0 | MS14: 0 | MT14: 0
C15: Sparkasse Mittelfranken | E15: LXH | G15: Tagesgeldkonten | H15: 24806.9332 | I15: 24806.9332 | J15: 24806.9332 | K15: 24806.9332 | L15: 24806.9332 | M15: 24806.9332 | N15: 24806.9332 | O15: 24806.9332 | P15: 24806.9332 | Q15: 24806.9332 | R15: 24806.9332 | S15: 24806.9332 | T15: 24806.9332 | U15: 24806.9332 | V15: 24806.9332 | W15: 24806.9332 | X15: 24806.9332 | Y15: 24806.9332 | Z15: 24806.9332 | AA15: 24806.9332 | AB15: 24806.9332 | AC15: 24806.9332 | AD15: 24806.9332 | AE15: 24806.9332 | AF15: 24806.9332 | AG15: 24806.9332 | AH15: 24806.9332 | AI15: 24806.9332 | AJ15: 24806.9332 | AK15: 24806.9332 | AL15: 24806.9332 | AM15: 24806.9332 | AN15: 24806.9332 | AO15: 24806.9332 | AP15: 24806.9332 | AQ15: 24806.9332 | AR15: 24806.9332 | AS15: 24806.9332 | AT15: 24806.9332 | AU15: 24806.9332 | AV15: 24806.9332 | AW15: 24806.9332 | AX15: 24806.9332 | AY15: 24806.9332 | AZ15: 24806.9332 | BA15: 24806.9332 | BB15: 24806.9332 | BC15: 24806.9332 | BD15: 24806.9332 | BE15: 24806.9332 | BF15: 24806.9332 | BG15: 24806.9332 | BH15: 24806.9332 | BI15: 24806.9332 | BJ15: 24806.9332 | BK15: 24806.9332 | BL15: 24806.9332 | BM15: 24806.9332 | BN15: 24806.9332 | BO15: 24806.9332 | BP15: 24806.9332 | BQ15: 24806.9332 | BR15: 24806.9332 | BS15: 24806.9332 | BT15: 24806.9332 | BU15: 24806.9332 | BV15: 24806.9332 | BW15: 24806.9332 | BX15: 24806.9332 | BY15: 24806.9332 | BZ15: 24806.9332 | CA15: 24806.9332 | CB15: 24806.9332 | CC15: 24806.9332 | CD15: 24806.9332 | CE15: 24806.9332 | CF15: 24806.9332 | CG15: 24806.9332 | CH15: 24806.9332 | CI15: 24806.9332 | CJ15: 24806.9332 | CK15: 24806.9332 | CL15: 24806.9332 | CM15: 24806.9332 | CN15: 24806.9332 | CO15: 24806.9332 | CP15: 24806.9332 | CQ15: 24806.9332 | CR15: 24806.9332 | CS15: 24806.9332 | CT15: 24806.9332 | CU15: 24806.9332 | CV15: 24806.9332 | CW15: 24806.9332 | CX15: 24806.9332 | CY15: 24806.9332 | CZ15: 24806.9332 | DA15: 24806.9332 | DB15: 24806.9332 | DC15: 24806.9332 | DD15: 24806.9332 | DE15: 24806.9332 | DF15: 24806.9332 | DG15: 24806.9332 | DH15: 24806.9332 | DI15: 24806.9332 | DJ15: 24806.9332 | DK15: 24806.9332 | DL15: 24806.9332 | DM15: 24806.9332 | DN15: 24806.9332 | DO15: 24806.9332 | DP15: 24806.9332 | DQ15: 24806.9332 | DR15: 24806.9332 | DS15: 24806.9332 | DT15: 24806.9332 | DU15: 24806.9332 | DV15: 24806.9332 | DW15: 24806.9332 | DX15: 24806.9332 | DY15: 24806.9332 | DZ15: 24806.9332 | EA15: 24806.9332 | EB15: 24806.9332 | EC15: 24806.9332 | ED15: 24806.9332 | EE15: 24806.9332 | EF15: 24806.9332 | EG15: 24806.9332 | EH15: 24806.9332 | EI15: 24806.9332 | EJ15: 24806.9332 | EK15: 24806.9332 | EL15: 24806.9332 | EM15: 24806.9332 | EN15: 24806.9332 | EO15: 24806.9332 | EP15: 24806.9332 | EQ15: 24806.9332 | ER15: 24806.9332 | ES15: 24806.9332 | ET15: 24806.9332 | EU15: 24806.9332 | EV15: 24806.9332 | EW15: 24806.9332 | EX15: 24806.9332 | EY15: 24806.9332 | EZ15: 24806.9332 | FA15: 24806.9332 | FB15: 24806.9332 | FC15: 24806.9332 | FD15: 24806.9332 | FE15: 24806.9332 | FF15: 24806.9332 | FG15: 24806.9332 | FH15: 24806.9332 | FI15: 24806.9332 | FJ15: 24806.9332 | FK15: 24806.9332 | FL15: 24806.9332 | FM15: 24806.9332 | FN15: 24806.9332 | FO15: 24806.9332 | FP15: 24806.9332 | FQ15: 24806.9332 | FR15: 24806.9332 | FS15: 24806.9332 | FT15: 24806.9332 | FU15: 24806.9332 | FV15: 24806.9332 | FW15: 24806.9332 | FX15: 24806.9332 | FY15: 24806.9332 | FZ15: 24806.9332 | GA15: 24806.9332 | GB15: 24806.9332 | GC15: 24806.9332 | GD15: 24806.9332 | GE15: 24806.9332 | GF15: 24806.9332 | GG15: 24806.9332 | GH15: 24806.9332 | GI15: 24806.9332 | GJ15: 24806.9332 | GK15: 24806.9332 | GL15: 24806.9332 | GM15: 24806.9332 | GN15: 24806.9332 | GO15: 24806.9332 | GP15: 24806.9332 | GQ15: 24806.9332 | GR15: 24806.9332 | GS15: 24806.9332 | GT15: 24806.9332 | GU15: 24806.9332 | GV15: 24806.9332 | GW15: 24806.9332 | GX15: 24806.9332 | GY15: 24806.9332 | GZ15: 24806.9332 | HA15: 24806.9332 | HB15: 24806.9332 | HC15: 24806.9332 | HD15: 24806.9332 | HE15: 24806.9332 | HF15: 24806.9332 | HG15: 24806.9332 | HH15: 24806.9332 | HI15: 24806.9332 | HJ15: 24806.9332 | HK15: 24806.9332 | HL15: 24806.9332 | HM15: 24806.9332 | HN15: 24806.9332 | HO15: 24806.9332 | HP15: 24806.9332 | HQ15: 24806.9332 | HR15: 24806.9332 | HS15: 24806.9332 | HT15: 24806.9332 | HU15: 24806.9332 | HV15: 24806.9332 | HW15: 24806.9332 | HX15: 24806.9332 | HY15: 24806.9332 | HZ15: 24806.9332 | IA15: 24806.9332 | IB15: 24806.9332 | IC15: 24806.9332 | ID15: 24806.9332 | IE15: 24806.9332 | IF15: 24806.9332 | IG15: 24806.9332 | IH15: 24806.9332 | II15: 24806.9332 | IJ15: 24806.9332 | IK15: 24806.9332 | IL15: 24806.9332 | IM15: 24806.9332 | IN15: 24806.9332 | IO15: 24806.9332 | IP15: 24806.9332 | IQ15: 24806.9332 | IR15: 24806.9332 | IS15: 24806.9332 | IT15: 24806.9332 | IU15: 24806.9332 | IV15: 24806.9332 | IW15: 24806.9332 | IX15: 24806.9332 | IY15: 24806.9332 | IZ15: 24806.9332 | JA15: 24806.9332 | JB15: 24806.9332 | JC15: 24806.9332 | JD15: 24806.9332 | JE15: 24806.9332 | JF15: 24806.9332 | JG15: 24806.9332 | JH15: 24806.9332 | JI15: 24806.9332 | JJ15: 24806.9332 | JK15: 24806.9332 | JL15: 24806.9332 | JM15: 24806.9332 | JN15: 24806.9332 | JO15: 24806.9332 | JP15: 24806.9332 | JQ15: 24806.9332 | JR15: 24806.9332 | JS15: 24806.9332 | JT15: 24806.9332 | JU15: 22599.21788 | JV15: 20587.98017 | JW15: 18755.73437 | JX15: 17086.55093 | JY15: 15565.91798 | JZ15: 14180.61512 | KA15: 12918.59853 | KB15: 11768.89624 | KC15: 10721.51274 | KD15: 9767.342079 | KE15: 8898.088692 | KF15: 8106.195291 | KG15: 7384.777155 | KH15: 6727.562275 | KI15: 6128.836824 | KJ15: 5583.395482 | KK15: 5086.496183 | KL15: 4633.818883 | KM15: 0 | KN15: 0 | KO15: 0 | KP15: 0 | KQ15: 0 | KR15: 0 | KS15: 0 | KT15: 0 | KU15: 0 | KV15: 0 | KW15: 0 | KX15: 0 | KY15: 0 | KZ15: 0 | LA15: 0 | LB15: 0 | LC15: 0 | LD15: 0 | LE15: 0 | LF15: 0 | LG15: 0 | LH15: 0 | LI15: 0 | LJ15: 0 | LK15: 0 | LL15: 0 | LM15: 0 | LN15: 0 | LO15: 0 | LP15: 0 | LQ15: 0 | LR15: 0 | LS15: 0 | LT15: 0 | LU15: 0 | LV15: 0 | LW15: 0 | LX15: 0 | LY15: 0 | LZ15: 0 | MA15: 0 | MB15: 0 | MC15: 0 | MD15: 0 | ME15: 0 | MF15: 0 | MG15: 0 | MH15: 0 | MI15: 0 | MJ15: 0 | MK15: 0 | ML15: 0 | MM15: 0 | MN15: 0 | MO15: 0 | MP15: 0 | MQ15: 0 | MR15: 0 | MS15: 0 | MT15: 0
C16: Sparkasse Mittelfranken | E16: LXH | G16: Sonst. Girokonten | H16: 2327.314847 | I16: 2327.314847 | J16: 2327.314847 | K16: 2327.314847 | L16: 2327.314847 | M16: 2327.314847 | N16: 2327.314847 | O16: 2327.314847 | P16: 2327.314847 | Q16: 2327.314847 | R16: 2327.314847 | S16: 2327.314847 | T16: 2327.314847 | U16: 2327.314847 | V16: 2327.314847 | W16: 2327.314847 | X16: 2327.314847 | Y16: 2327.314847 | Z16: 2327.314847 | AA16: 2327.314847 | AB16: 2327.314847 | AC16: 2327.314847 | AD16: 2327.314847 | AE16: 2327.314847 | AF16: 2327.314847 | AG16: 2327.314847 | AH16: 2327.314847 | AI16: 2327.314847 | AJ16: 2327.314847 | AK16: 2327.314847 | AL16: 2327.314847 | AM16: 2327.314847 | AN16: 2327.314847 | AO16: 2327.314847 | AP16: 2327.314847 | AQ16: 2327.314847 | AR16: 2327.314847 | AS16: 2327.314847 | AT16: 2327.314847 | AU16: 2327.314847 | AV16: 2327.314847 | AW16: 2327.314847 | AX16: 2327.314847 | AY16: 2327.314847 | AZ16: 2327.314847 | BA16: 2327.314847 | BB16: 2327.314847 | BC16: 2327.314847 | BD16: 2327.314847 | BE16: 2327.314847 | BF16: 2327.314847 | BG16: 2327.314847 | BH16: 2327.314847 | BI16: 2327.314847 | BJ16: 2327.314847 | BK16: 2327.314847 | BL16: 2327.314847 | BM16: 2327.314847 | BN16: 2327.314847 | BO16: 2327.314847 | BP16: 2327.314847 | BQ16: 2327.314847 | BR16: 2327.314847 | BS16: 2327.314847 | BT16: 2327.314847 | BU16: 2327.314847 | BV16: 2327.314847 | BW16: 2327.314847 | BX16: 2327.314847 | BY16: 2327.314847 | BZ16: 2327.314847 | CA16: 2327.314847 | CB16: 2327.314847 | CC16: 2327.314847 | CD16: 2327.314847 | CE16: 2327.314847 | CF16: 2327.314847 | CG16: 2327.314847 | CH16: 2327.314847 | CI16: 2327.314847 | CJ16: 2327.314847 | CK16: 2327.314847 | CL16: 2327.314847 | CM16: 2327.314847 | CN16: 2327.314847 | CO16: 2327.314847 | CP16: 2327.314847 | CQ16: 2327.314847 | CR16: 2327.314847 | CS16: 2327.314847 | CT16: 2327.314847 | CU16: 2327.314847 | CV16: 2327.314847 | CW16: 2327.314847 | CX16: 2327.314847 | CY16: 2327.314847 | CZ16: 2327.314847 | DA16: 2327.314847 | DB16: 2327.314847 | DC16: 2327.314847 | DD16: 2327.314847 | DE16: 2327.314847 | DF16: 2327.314847 | DG16: 2327.314847 | DH16: 2327.314847 | DI16: 2327.314847 | DJ16: 2327.314847 | DK16: 2327.314847 | DL16: 2327.314847 | DM16: 2327.314847 | DN16: 2327.314847 | DO16: 2327.314847 | DP16: 2327.314847 | DQ16: 2327.314847 | DR16: 2327.314847 | DS16: 2327.314847 | DT16: 2327.314847 | DU16: 2327.314847 | DV16: 2327.314847 | DW16: 2327.314847 | DX16: 2327.314847 | DY16: 2327.314847 | DZ16: 2327.314847 | EA16: 2327.314847 | EB16: 2327.314847 | EC16: 2327.314847 | ED16: 2327.314847 | EE16: 2327.314847 | EF16: 2327.314847 | EG16: 2327.314847 | EH16: 2327.314847 | EI16: 2327.314847 | EJ16: 2327.314847 | EK16: 2327.314847 | EL16: 2327.314847 | EM16: 2327.314847 | EN16: 2327.314847 | EO16: 2327.314847 | EP16: 2327.314847 | EQ16: 2327.314847 | ER16: 2327.314847 | ES16: 2327.314847 | ET16: 2327.314847 | EU16: 2327.314847 | EV16: 2327.314847 | EW16: 2327.314847 | EX16: 2327.314847 | EY16: 2327.314847 | EZ16: 2327.314847 | FA16: 2327.314847 | FB16: 2327.314847 | FC16: 2327.314847 | FD16: 2327.314847 | FE16: 2327.314847 | FF16: 2327.314847 | FG16: 2327.314847 | FH16: 2327.314847 | FI16: 2327.314847 | FJ16: 2327.314847 | FK16: 2327.314847 | FL16: 2327.314847 | FM16: 2327.314847 | FN16: 2327.314847 | FO16: 2327.314847 | FP16: 2327.314847 | FQ16: 2327.314847 | FR16: 2327.314847 | FS16: 2327.314847 | FT16: 2327.314847 | FU16: 2327.314847 | FV16: 2327.314847 | FW16: 2327.314847 | FX16: 2327.314847 | FY16: 2327.314847 | FZ16: 2327.314847 | GA16: 2327.314847 | GB16: 2327.314847 | GC16: 2327.314847 | GD16: 2327.314847 | GE16: 2327.314847 | GF16: 2327.314847 | GG16: 2327.314847 | GH16: 2327.314847 | GI16: 2327.314847 | GJ16: 2327.314847 | GK16: 2327.314847 | GL16: 2327.314847 | GM16: 2327.314847 | GN16: 2327.314847 | GO16: 2327.314847 | GP16: 2327.314847 | GQ16: 2327.314847 | GR16: 2327.314847 | GS16: 2327.314847 | GT16: 2327.314847 | GU16: 2327.314847 | GV16: 2327.314847 | GW16: 2327.314847 | GX16: 2327.314847 | GY16: 2327.314847 | GZ16: 2327.314847 | HA16: 2327.314847 | HB16: 2327.314847 | HC16: 2327.314847 | HD16: 2327.314847 | HE16: 2327.314847 | HF16: 2327.314847 | HG16: 2327.314847 | HH16: 2327.314847 | HI16: 2327.314847 | HJ16: 2327.314847 | HK16: 2327.314847 | HL16: 2327.314847 | HM16: 2327.314847 | HN16: 2327.314847 | HO16: 2327.314847 | HP16: 2327.314847 | HQ16: 2327.314847 | HR16: 2327.314847 | HS16: 2327.314847 | HT16: 2327.314847 | HU16: 2327.314847 | HV16: 2327.314847 | HW16: 2327.314847 | HX16: 2327.314847 | HY16: 2327.314847 | HZ16: 2327.314847 | IA16: 2327.314847 | IB16: 2327.314847 | IC16: 2327.314847 | ID16: 2327.314847 | IE16: 2327.314847 | IF16: 2327.314847 | IG16: 2327.314847 | IH16: 2327.314847 | II16: 2327.314847 | IJ16: 2327.314847 | IK16: 2327.314847 | IL16: 2327.314847 | IM16: 2327.314847 | IN16: 2327.314847 | IO16: 2327.314847 | IP16: 2327.314847 | IQ16: 2327.314847 | IR16: 2327.314847 | IS16: 2327.314847 | IT16: 2327.314847 | IU16: 2327.314847 | IV16: 2327.314847 | IW16: 2327.314847 | IX16: 2327.314847 | IY16: 2327.314847 | IZ16: 2327.314847 | JA16: 2327.314847 | JB16: 2327.314847 | JC16: 2327.314847 | JD16: 2327.314847 | JE16: 2327.314847 | JF16: 2327.314847 | JG16: 2327.314847 | JH16: 2327.314847 | JI16: 2327.314847 | JJ16: 2327.314847 | JK16: 2327.314847 | JL16: 2327.314847 | JM16: 2327.314847 | JN16: 2327.314847 | JO16: 2327.314847 | JP16: 2327.314847 | JQ16: 2327.314847 | JR16: 2327.314847 | JS16: 2327.314847 | JT16: 2327.314847 | JU16: 2120.193371 | JV16: 1931.504856 | JW16: 1759.608845 | JX16: 1603.010875 | JY16: 1460.349481 | JZ16: 1330.384366 | KA16: 1211.985614 | KB16: 1104.123865 | KC16: 1005.861369 | KD16: 916.3438325 | KE16: 834.7929895 | KF16: 760.4998371 | KG16: 692.8184706 | KH16: 631.1604681 | KI16: 574.9897749 | KJ16: 523.8180431 | KK16: 477.2003856 | KL16: 434.7315083 | KM16: 0 | KN16: 0 | KO16: 0 | KP16: 0 | KQ16: 0 | KR16: 0 | KS16: 0 | KT16: 0 | KU16: 0 | KV16: 0 | KW16: 0 | KX16: 0 | KY16: 0 | KZ16: 0 | LA16: 0 | LB16: 0 | LC16: 0 | LD16: 0 | LE16: 0 | LF16: 0 | LG16: 0 | LH16: 0 | LI16: 0 | LJ16: 0 | LK16: 0 | LL16: 0 | LM16: 0 | LN16: 0 | LO16: 0 | LP16: 0 | LQ16: 0 | LR16: 0 | LS16: 0 | LT16: 0 | LU16: 0 | LV16: 0 | LW16: 0 | LX16: 0 | LY16: 0 | LZ16: 0 | MA16: 0 | MB16: 0 | MC16: 0 | MD16: 0 | ME16: 0 | MF16: 0 | MG16: 0 | MH16: 0 | MI16: 0 | MJ16: 0 | MK16: 0 | ML16: 0 | MM16: 0 | MN16: 0 | MO16: 0 | MP16: 0 | MQ16: 0 | MR16: 0 | MS16: 0 | MT16: 0
C17: Pensionszusage | E17: LXP | G17: Sonstige Konten | H17: 1730907.792 | I17: 1730907.792 | J17: 1730907.792 | K17: 1730907.792 | L17: 1730907.792 | M17: 1730907.792 | N17: 1730907.792 | O17: 1730907.792 | P17: 1730907.792 | Q17: 1730907.792 | R17: 1730907.792 | S17: 1730907.792 | T17: 1730907.792 | U17: 1730907.792 | V17: 1730907.792 | W17: 1730907.792 | X17: 1730907.792 | Y17: 1730907.792 | Z17: 1730907.792 | AA17: 1730907.792 | AB17: 1730907.792 | AC17: 1730907.792 | AD17: 1730907.792 | AE17: 1730907.792 | AF17: 1730907.792 | AG17: 1730907.792 | AH17: 1730907.792 | AI17: 1730907.792 | AJ17: 1730907.792 | AK17: 1730907.792 | AL17: 1730907.792 | AM17: 1730907.792 | AN17: 1730907.792 | AO17: 1730907.792 | AP17: 1730907.792 | AQ17: 1730907.792 | AR17: 1730907.792 | AS17: 1730907.792 | AT17: 1730907.792 | AU17: 1730907.792 | AV17: 1730907.792 | AW17: 1730907.792 | AX17: 1730907.792 | AY17: 1730907.792 | AZ17: 1730907.792 | BA17: 1730907.792 | BB17: 1730907.792 | BC17: 1730907.792 | BD17: 1730907.792 | BE17: 1730907.792 | BF17: 1730907.792 | BG17: 1730907.792 | BH17: 1730907.792 | BI17: 1730907.792 | BJ17: 1730907.792 | BK17: 1730907.792 | BL17: 1730907.792 | BM17: 1730907.792 | BN17: 1730907.792 | BO17: 1730907.792 | BP17: 1730907.792 | BQ17: 1730907.792 | BR17: 1730907.792 | BS17: 1730907.792 | BT17: 1730907.792 | BU17: 1730907.792 | BV17: 1730907.792 | BW17: 1730907.792 | BX17: 1730907.792 | BY17: 1730907.792 | BZ17: 1730907.792 | CA17: 1730907.792 | CB17: 1730907.792 | CC17: 1730907.792 | CD17: 1730907.792 | CE17: 1730907.792 | CF17: 1730907.792 | CG17: 1730907.792 | CH17: 1730907.792 | CI17: 1730907.792 | CJ17: 1730907.792 | CK17: 1730907.792 | CL17: 1730907.792 | CM17: 1730907.792 | CN17: 1730907.792 | CO17: 1730907.792 | CP17: 1730907.792 | CQ17: 1730907.792 | CR17: 1730907.792 | CS17: 1730907.792 | CT17: 1730907.792 | CU17: 1730907.792 | CV17: 1730907.792 | CW17: 1730907.792 | CX17: 1730907.792 | CY17: 1730907.792 | CZ17: 1730907.792 | DA17: 1730907.792 | DB17: 1730907.792 | DC17: 1730907.792 | DD17: 1730907.792 | DE17: 1730907.792 | DF17: 1730907.792 | DG17: 1730907.792 | DH17: 1730907.792 | DI17: 1730907.792 | DJ17: 1730907.792 | DK17: 1730907.792 | DL17: 1730907.792 | DM17: 1730907.792 | DN17: 1730907.792 | DO17: 1730907.792 | DP17: 1730907.792 | DQ17: 1730907.792 | DR17: 1730907.792 | DS17: 1730907.792 | DT17: 1730907.792 | DU17: 1730907.792 | DV17: 1730907.792 | DW17: 1730907.792 | DX17: 1730907.792 | DY17: 1730907.792 | DZ17: 1730907.792 | EA17: 1730907.792 | EB17: 1730907.792 | EC17: 1730907.792 | ED17: 1730907.792 | EE17: 1730907.792 | EF17: 1730907.792 | EG17: 1730907.792 | EH17: 1730907.792 | EI17: 1730907.792 | EJ17: 1730907.792 | EK17: 1730907.792 | EL17: 1730907.792 | EM17: 1730907.792 | EN17: 1730907.792 | EO17: 1730907.792 | EP17: 1730907.792 | EQ17: 1730907.792 | ER17: 1730907.792 | ES17: 1730907.792 | ET17: 1730907.792 | EU17: 1730907.792 | EV17: 1730907.792 | EW17: 1730907.792 | EX17: 1730907.792 | EY17: 1730907.792 | EZ17: 1730907.792 | FA17: 1730907.792 | FB17: 1730907.792 | FC17: 1730907.792 | FD17: 1730907.792 | FE17: 1730907.792 | FF17: 1730907.792 | FG17: 1730907.792 | FH17: 1730907.792 | FI17: 1730907.792 | FJ17: 1730907.792 | FK17: 1730907.792 | FL17: 1730907.792 | FM17: 1730907.792 | FN17: 1730907.792 | FO17: 1730907.792 | FP17: 1730907.792 | FQ17: 1730907.792 | FR17: 1730907.792 | FS17: 1730907.792 | FT17: 1730907.792 | FU17: 1730907.792 | FV17: 1730907.792 | FW17: 1730907.792 | FX17: 1730907.792 | FY17: 1730907.792 | FZ17: 1730907.792 | GA17: 1730907.792 | GB17: 1730907.792 | GC17: 1730907.792 | GD17: 1730907.792 | GE17: 1730907.792 | GF17: 1730907.792 | GG17: 1730907.792 | GH17: 1730907.792 | GI17: 1730907.792 | GJ17: 1730907.792 | GK17: 1730907.792 | GL17: 1730907.792 | GM17: 1730907.792 | GN17: 1730907.792 | GO17: 1730907.792 | GP17: 1730907.792 | GQ17: 1730907.792 | GR17: 1730907.792 | GS17: 1730907.792 | GT17: 1730907.792 | GU17: 1730907.792 | GV17: 1730907.792 | GW17: 1730907.792 | GX17: 1730907.792 | GY17: 1730907.792 | GZ17: 1730907.792 | HA17: 1730907.792 | HB17: 1730907.792 | HC17: 1730907.792 | HD17: 1730907.792 | HE17: 1730907.792 | HF17: 1730907.792 | HG17: 1730907.792 | HH17: 1730907.792 | HI17: 1730907.792 | HJ17: 1730907.792 | HK17: 1730907.792 | HL17: 1730907.792 | HM17: 1730907.792 | HN17: 1730907.792 | HO17: 1730907.792 | HP17: 1730907.792 | HQ17: 1730907.792 | HR17: 1730907.792 | HS17: 1730907.792 | HT17: 1730907.792 | HU17: 1730907.792 | HV17: 1730907.792 | HW17: 1730907.792 | HX17: 1730907.792 | HY17: 1730907.792 | HZ17: 1730907.792 | IA17: 1730907.792 | IB17: 1730907.792 | IC17: 1730907.792 | ID17: 1730907.792 | IE17: 1730907.792 | IF17: 1730907.792 | IG17: 1730907.792 | IH17: 1730907.792 | II17: 1730907.792 | IJ17: 1730907.792 | IK17: 1730907.792 | IL17: 1730907.792 | IM17: 1730907.792 | IN17: 1730907.792 | IO17: 1730907.792 | IP17: 1730907.792 | IQ17: 1730907.792 | IR17: 1730907.792 | IS17: 1730907.792 | IT17: 1730907.792 | IU17: 1730907.792 | IV17: 1730907.792 | IW17: 1730907.792 | IX17: 1730907.792 | IY17: 1730907.792 | IZ17: 1730907.792 | JA17: 1730907.792 | JB17: 1730907.792 | JC17: 1730907.792 | JD17: 1730907.792 | JE17: 1730907.792 | JF17: 1730907.792 | JG17: 1730907.792 | JH17: 1730907.792 | JI17: 1730907.792 | JJ17: 1730907.792 | JK17: 1730907.792 | JL17: 1730907.792 | JM17: 1730907.792 | JN17: 1730907.792 | JO17: 1730907.792 | JP17: 1730907.792 | JQ17: 1730907.792 | JR17: 1730907.792 | JS17: 1730907.792 | JT17: 1730907.792 | JU17: 1576864.098 | JV17: 1436529.66 | JW17: 1308684.412 | JX17: 1192216.866 | JY17: 1086114.455 | JZ17: 989454.7225 | KA17: 901397.3102 | KB17: 821176.6464 | KC17: 748095.2927 | KD17: 681517.8797 | KE17: 620865.5835 | KF17: 565611.0928 | KG17: 515274.0252 | KH17: 469416.7502 | KI17: 427640.5846 | KJ17: 389582.3264 | KK17: 354911.0971 | KL17: 323325.4651 | KM17: 0 | KN17: 0 | KO17: 0 | KP17: 0 | KQ17: 0 | KR17: 0 | KS17: 0 | KT17: 0 | KU17: 0 | KV17: 0 | KW17: 0 | KX17: 0 | KY17: 0 | KZ17: 0 | LA17: 0 | LB17: 0 | LC17: 0 | LD17: 0 | LE17: 0 | LF17: 0 | LG17: 0 | LH17: 0 | LI17: 0 | LJ17: 0 | LK17: 0 | LL17: 0 | LM17: 0 | LN17: 0 | LO17: 0 | LP17: 0 | LQ17: 0 | LR17: 0 | LS17: 0 | LT17: 0 | LU17: 0 | LV17: 0 | LW17: 0 | LX17: 0 | LY17: 0 | LZ17: 0 | MA17: 0 | MB17: 0 | MC17: 0 | MD17: 0 | ME17: 0 | MF17: 0 | MG17: 0 | MH17: 0 | MI17: 0 | MJ17: 0 | MK17: 0 | ML17: 0 | MM17: 0 | MN17: 0 | MO17: 0 | MP17: 0 | MQ17: 0 | MR17: 0 | MS17: 0 | MT17: 0
C18: HVB | E18: LXP | G18: Sonstige Konten | H18: 1822008.202 | I18: 1822008.202 | J18: 1822008.202 | K18: 1822008.202 | L18: 1366506.152 | M18: 911004.1012 | N18: 911004.1012 | O18: 911004.1012 | P18: 911004.1012 | Q18: 911004.1012 | R18: 911004.1012 | S18: 911004.1012 | T18: 911004.1012 | U18: 911004.1012 | V18: 911004.1012 | W18: 911004.1012 | X18: 911004.1012 | Y18: 911004.1012 | Z18: 911004.1012 | AA18: 911004.1012 | AB18: 911004.1012 | AC18: 911004.1012 | AD18: 911004.1012 | AE18: 911004.1012 | AF18: 911004.1012 | AG18: 911004.1012 | AH18: 911004.1012 | AI18: 911004.1012 | AJ18: 911004.1012 | AK18: 911004.1012 | AL18: 911004.1012 | AM18: 911004.1012 | AN18: 911004.1012 | AO18: 911004.1012 | AP18: 911004.1012 | AQ18: 911004.1012 | AR18: 911004.1012 | AS18: 911004.1012 | AT18: 911004.1012 | AU18: 911004.1012 | AV18: 911004.1012 | AW18: 911004.1012 | AX18: 911004.1012 | AY18: 911004.1012 | AZ18: 911004.1012 | BA18: 911004.1012 | BB18: 911004.1012 | BC18: 911004.1012 | BD18: 911004.1012 | BE18: 911004.1012 | BF18: 911004.1012 | BG18: 911004.1012 | BH18: 911004.1012 | BI18: 911004.1012 | BJ18: 911004.1012 | BK18: 911004.1012 | BL18: 911004.1012 | BM18: 911004.1012 | BN18: 911004.1012 | BO18: 911004.1012 | BP18: 911004.1012 | BQ18: 911004.1012 | BR18: 911004.1012 | BS18: 911004.1012 | BT18: 911004.1012 | BU18: 911004.1012 | BV18: 911004.1012 | BW18: 911004.1012 | BX18: 911004.1012 | BY18: 911004.1012 | BZ18: 911004.1012 | CA18: 911004.1012 | CB18: 911004.1012 | CC18: 911004.1012 | CD18: 911004.1012 | CE18: 911004.1012 | CF18: 911004.1012 | CG18: 911004.1012 | CH18: 911004.1012 | CI18: 911004.1012 | CJ18: 911004.1012 | CK18: 911004.1012 | CL18: 911004.1012 | CM18: 911004.1012 | CN18: 911004.1012 | CO18: 911004.1012 | CP18: 911004.1012 | CQ18: 911004.1012 | CR18: 911004.1012 | CS18: 911004.1012 | CT18: 911004.1012 | CU18: 911004.1012 | CV18: 911004.1012 | CW18: 911004.1012 | CX18: 911004.1012 | CY18: 911004.1012 | CZ18: 911004.1012 | DA18: 911004.1012 | DB18: 911004.1012 | DC18: 911004.1012 | DD18: 911004.1012 | DE18: 911004.1012 | DF18: 911004.1012 | DG18: 911004.1012 | DH18: 911004.1012 | DI18: 911004.1012 | DJ18: 911004.1012 | DK18: 911004.1012 | DL18: 911004.1012 | DM18: 911004.1012 | DN18: 911004.1012 | DO18: 911004.1012 | DP18: 911004.1012 | DQ18: 911004.1012 | DR18: 911004.1012 | DS18: 911004.1012 | DT18: 911004.1012 | DU18: 911004.1012 | DV18: 911004.1012 | DW18: 911004.1012 | DX18: 911004.1012 | DY18: 911004.1012 | DZ18: 911004.1012 | EA18: 911004.1012 | EB18: 911004.1012 | EC18: 911004.1012 | ED18: 911004.1012 | EE18: 911004.1012 | EF18: 911004.1012 | EG18: 911004.1012 | EH18: 911004.1012 | EI18: 911004.1012 | EJ18: 911004.1012 | EK18: 911004.1012 | EL18: 911004.1012 | EM18: 911004.1012 | EN18: 911004.1012 | EO18: 911004.1012 | EP18: 911004.1012 | EQ18: 911004.1012 | ER18: 911004.1012 | ES18: 911004.1012 | ET18: 911004.1012 | EU18: 911004.1012 | EV18: 911004.1012 | EW18: 911004.1012 | EX18: 911004.1012 | EY18: 911004.1012 | EZ18: 911004.1012 | FA18: 911004.1012 | FB18: 911004.1012 | FC18: 911004.1012 | FD18: 911004.1012 | FE18: 911004.1012 | FF18: 911004.1012 | FG18: 911004.1012 | FH18: 911004.1012 | FI18: 911004.1012 | FJ18: 911004.1012 | FK18: 911004.1012 | FL18: 911004.1012 | FM18: 911004.1012 | FN18: 911004.1012 | FO18: 911004.1012 | FP18: 911004.1012 | FQ18: 911004.1012 | FR18: 911004.1012 | FS18: 911004.1012 | FT18: 911004.1012 | FU18: 911004.1012 | FV18: 911004.1012 | FW18: 911004.1012 | FX18: 911004.1012 | FY18: 911004.1012 | FZ18: 911004.1012 | GA18: 911004.1012 | GB18: 911004.1012 | GC18: 911004.1012 | GD18: 911004.1012 | GE18: 911004.1012 | GF18: 911004.1012 | GG18: 911004.1012 | GH18: 911004.1012 | GI18: 911004.1012 | GJ18: 911004.1012 | GK18: 911004.1012 | GL18: 911004.1012 | GM18: 911004.1012 | GN18: 911004.1012 | GO18: 911004.1012 | GP18: 911004.1012 | GQ18: 911004.1012 | GR18: 911004.1012 | GS18: 911004.1012 | GT18: 911004.1012 | GU18: 911004.1012 | GV18: 911004.1012 | GW18: 911004.1012 | GX18: 911004.1012 | GY18: 911004.1012 | GZ18: 911004.1012 | HA18: 911004.1012 | HB18: 911004.1012 | HC18: 911004.1012 | HD18: 911004.1012 | HE18: 911004.1012 | HF18: 911004.1012 | HG18: 911004.1012 | HH18: 911004.1012 | HI18: 911004.1012 | HJ18: 911004.1012 | HK18: 911004.1012 | HL18: 911004.1012 | HM18: 911004.1012 | HN18: 911004.1012 | HO18: 911004.1012 | HP18: 911004.1012 | HQ18: 911004.1012 | HR18: 911004.1012 | HS18: 911004.1012 | HT18: 911004.1012 | HU18: 911004.1012 | HV18: 911004.1012 | HW18: 911004.1012 | HX18: 911004.1012 | HY18: 911004.1012 | HZ18: 911004.1012 | IA18: 911004.1012 | IB18: 911004.1012 | IC18: 911004.1012 | ID18: 911004.1012 | IE18: 911004.1012 | IF18: 911004.1012 | IG18: 911004.1012 | IH18: 911004.1012 | II18: 911004.1012 | IJ18: 911004.1012 | IK18: 911004.1012 | IL18: 911004.1012 | IM18: 911004.1012 | IN18: 911004.1012 | IO18: 911004.1012 | IP18: 911004.1012 | IQ18: 911004.1012 | IR18: 911004.1012 | IS18: 911004.1012 | IT18: 911004.1012 | IU18: 911004.1012 | IV18: 911004.1012 | IW18: 911004.1012 | IX18: 911004.1012 | IY18: 911004.1012 | IZ18: 911004.1012 | JA18: 911004.1012 | JB18: 911004.1012 | JC18: 911004.1012 | JD18: 911004.1012 | JE18: 911004.1012 | JF18: 911004.1012 | JG18: 911004.1012 | JH18: 911004.1012 | JI18: 911004.1012 | JJ18: 911004.1012 | JK18: 911004.1012 | JL18: 911004.1012 | JM18: 911004.1012 | JN18: 911004.1012 | JO18: 911004.1012 | JP18: 911004.1012 | JQ18: 911004.1012 | JR18: 911004.1012 | JS18: 911004.1012 | JT18: 911004.1012 | JU18: 829928.4724 | JV18: 756068.2421 | JW18: 688781.2693 | JX18: 627482.5612 | JY18: 571639.1867 | JZ18: 520765.6434 | KA18: 474419.6369 | KB18: 432198.2349 | KC18: 393734.3646 | KD18: 358693.6209 | KE18: 326771.3597 | KF18: 297690.0489 | KG18: 271196.8554 | KH18: 247061.4475 | KI18: 225073.9919 | KJ18: 205043.3297 | KK18: 186795.3143 | KL18: =(+KK18)*0.911004101199225 -> 170171.2974 | KM18: 0 | KN18: 0 | KO18: 0 | KP18: 0 | KQ18: 0 | KR18: 0 | KS18: 0 | KT18: 0 | KU18: 0 | KV18: 0 | KW18: 0 | KX18: 0 | KY18: 0 | KZ18: 0 | LA18: 0 | LB18: 0 | LC18: 0 | LD18: 0 | LE18: 0 | LF18: 0 | LG18: 0 | LH18: 0 | LI18: 0 | LJ18: 0 | LK18: 0 | LL18: 0 | LM18: 0 | LN18: 0 | LO18: 0 | LP18: 0 | LQ18: 0 | LR18: 0 | LS18: 0 | LT18: 0 | LU18: 0 | LV18: 0 | LW18: 0 | LX18: 0 | LY18: 0 | LZ18: 0 | MA18: 0 | MB18: 0 | MC18: 0 | MD18: 0 | ME18: 0 | MF18: 0 | MG18: 0 | MH18: 0 | MI18: 0 | MJ18: 0 | MK18: 0 | ML18: 0 | MM18: 0 | MN18: 0 | MO18: 0 | MP18: 0 | MQ18: 0 | MR18: 0 | MS18: 0 | MT18: 0
C19: HVB | E19: LXP | G19: HVB KK Projekt | H19: 1018940.751 | I19: 205567.0551 | J19: 238483.7104 | K19: 163176.1485 | L19: 583485.555 | M19: 558590.5732 | N19: 617408.9335 | O19: 890007.3971 | P19: 721610.4481 | Q19: 1368008.197 | R19: 1544573.592 | S19: 1188290.455 | T19: 963608.6483 | U19: 802672.6042 | V19: 1300375.471 | W19: 1105923.732 | X19: 707937.8161 | Y19: 1552723.744 | Z19: 1118259.593 | AA19: 1076561.888 | AB19: 728923.1873 | AC19: 1614864.892 | AD19: 1664264.371 | AE19: 1444518.075 | AF19: 1446585.58 | AG19: 982224.1608 | AH19: 2001379.717 | AI19: 1423896.313 | AJ19: 1090356.029 | AK19: 816267.6733 | AL19: 769938.0313 | AM19: 1747109.244 | AN19: 1380565.141 | AO19: 1101272.182 | AP19: 929405.0266 | AQ19: 515552.5531 | AR19: 1244515.934 | AS19: 796413.4412 | AT19: 878337.6988 | AU19: 1462383.212 | AV19: 1898932.414 | AW19: 1460052.799 | AX19: 1211284.754 | AY19: 923453.4277 | AZ19: 746246.7958 | BA19: 1833162.364 | BB19: 1399762.602 | BC19: 936415.5221 | BD19: 1568122.838 | BE19: 971918.4906 | BF19: 1415160.913 | BG19: 1351356.072 | BH19: 1012707.515 | BI19: 789465.7504 | BJ19: 1719220.994 | BK19: 1545531.467 | BL19: 1342098.384 | BM19: 1161177.525 | BN19: 873484.5704 | BO19: 1686097.924 | BP19: 1536707.445 | BQ19: 912505.9279 | BR19: 713318.7438 | BS19: 1438564.946 | BT19: 1985648.28 | BU19: 1551381.944 | BV19: 1199642.76 | BW19: 1105364.886 | BX19: 816696.984 | BY19: 1732299.114 | BZ19: 582354.097 | CA19: 1331889.417 | CB19: 1028949.251 | CC19: 731650.934 | CD19: 2059882.706 | CE19: 1803906.788 | CF19: 1331312.779 | CG19: 1080731.991 | CH19: 2200853.731 | CI19: 2084249.205 | CJ19: 1716144.634 | CK19: 994386.0928 | CL19: 2513458.848 | CM19: 2056020.404 | CN19: 1738848.997 | CO19: 1873558.262 | CP19: 1635441.687 | CQ19: 3356457.386 | CR19: 3259422.878 | CS19: 2863554.746 | CT19: 2032903.529 | CU19: 3088310.927 | CV19: 2882684.729 | CW19: 2879542.357 | CX19: 2772796.026 | CY19: 2709201.061 | CZ19: 2530567.414 | DA19: 2338949.836 | DB19: 2153633.245 | DC19: 1674810.446 | DD19: 1531525.508 | DE19: 1201070.95 | DF19: 1013331.115 | DG19: 819246.2559 | DH19: 1116521.279 | DI19: 912230.4767 | DJ19: 772689.4915 | DK19: 571893.128 | DL19: 2186361.004 | DM19: 2147150.158 | DN19: 2135904.113 | DO19: 1135370.519 | DP19: 874589.3086 | DQ19: 610054.3519 | DR19: 2314788.213 | DS19: 1904206.964 | DT19: 1541797.443 | DU19: 1306642.615 | DV19: 1172466.205 | DW19: 946881.8933 | DX19: 770682.4857 | DY19: 741833.8372 | DZ19: 2766489.481 | EA19: 2327527.175 | EB19: 1934460.544 | EC19: 1679141.333 | ED19: 1129508.717 | EE19: 920428.0924 | EF19: 1166169.281 | EG19: 971377.3087 | EH19: 2601199.494 | EI19: 2289542.212 | EJ19: 1760310.094 | EK19: 2205117.913 | EL19: 1961491.257 | EM19: 1709292.489 | EN19: 1539075.172 | EO19: 1378442.747 | EP19: 1074340.268 | EQ19: 2299406.136 | ER19: 1998752.709 | ES19: 1896838.088 | ET19: 1424803.5 | EU19: 1240874.641 | EV19: 953856.5134 | EW19: 2212261.47 | EX19: 2499177.037 | EY19: 2190610.255 | EZ19: 2018120.921 | FA19: 1650933.211 | FB19: 1601185.136 | FC19: 1197935.939 | FD19: 2757792.827 | FE19: 2567630.514 | FF19: 1675585.802 | FG19: 1525709.348 | FH19: 1340796.978 | FI19: 1079196.402 | FJ19: 943281.104 | FK19: 823670.8935 | FL19: 2832522.047 | FM19: 2340921.878 | FN19: 2137896.515 | FO19: 1882331.933 | FP19: 1689469.35 | FQ19: 1454699.448 | FR19: 1327865.603 | FS19: 1163115.64 | FT19: 939756.9393 | FU19: 1264021.752 | FV19: 1146026.251 | FW19: 840859.4455 | FX19: 1780902.121 | FY19: 1391423.863 | FZ19: 1160410.35 | GA19: 907601.838 | GB19: 732460.7529 | GC19: 502110.5691 | GD19: 2649722.752 | GE19: 2582939.473 | GF19: 2349777.284 | GG19: 2302870.867 | GH19: 2254719.153 | GI19: 1653374.966 | GJ19: 1486947.781 | GK19: 1165289.46 | GL19: 1919207.949 | GM19: 1816141.072 | GN19: 1734644.85 | GO19: 1491284.443 | GP19: 1222116.038 | GQ19: 1409904.702 | GR19: 2148134.297 | GS19: 1598661.007 | GT19: 2508639.373 | GU19: 2073129.954 | GV19: 2060541.872 | GW19: 1927932.134 | GX19: 1739365.062 | GY19: 1520607.297 | GZ19: 1362658.872 | HA19: 1197064.172 | HB19: 1008645.266 | HC19: 954818.1693 | HD19: 1906997.424 | HE19: 1677779.737 | HF19: 1556545.916 | HG19: 1201137.69 | HH19: 1380647.65 | HI19: 1347561.457 | HJ19: 1184169.018 | HK19: 990247.5105 | HL19: 737374.955 | HM19: 2452226.473 | HN19: 2324163.611 | HO19: 1628812.219 | HP19: 1074619.162 | HQ19: 797282.9582 | HR19: 738040.899 | HS19: 2044664.282 | HT19: 1864343.137 | HU19: 1818781.289 | HV19: 1419700.793 | HW19: 1308247.358 | HX19: 1176624.993 | HY19: 987231.2397 | HZ19: 820423.5829 | IA19: 2165359.371 | IB19: 1997234.038 | IC19: 1606562.729 | ID19: 1425818.495 | IE19: 1505554.074 | IF19: 1494193.434 | IG19: 1338941.646 | IH19: 1187263.016 | II19: 944925.4938 | IJ19: 743350.8777 | IK19: 2331704.448 | IL19: 1842759.673 | IM19: 1656984.565 | IN19: 1434800.002 | IO19: 1242250.904 | IP19: 1165058.338 | IQ19: 1037344.172 | IR19: 892488.9085 | IS19: 802963.3603 | IT19: 723593.3032 | IU19: 1973198.124 | IV19: 2046691.722 | IW19: 1635882.394 | IX19: 1455655.984 | IY19: 1112361.206 | IZ19: 994902.8417 | JA19: 682209.9853 | JB19: 2692727.948 | JC19: 2510867.68 | JD19: 2430484.65 | JE19: 3032251.26 | JF19: 2981190.583 | JG19: 2515703.308 | JH19: 2180620.758 | JI19: 2072610.244 | JJ19: 1892232.298 | JK19: 1617090.739 | JL19: 1608880.387 | JM19: 1378214.276 | JN19: 1222925.665 | JO19: 1050288.539 | JP19: 927882.839 | JQ19: 914467.4017 | JR19: 567508.4835 | JS19: 1660676.491 | JT19: 1538202.248 | JU19: 1250352.664 | JV19: 895652.0787 | JW19: 759312.0248 | JX19: 1520899.938 | JY19: 1342779.633 | JZ19: 1201995.209 | KA19: 1535686.528 | KB19: 1055093.976 | KC19: 773473.4561 | KD19: 959560.6198 | KE19: 973570.9519 | KF19: 809853.4938 | KG19: 2097306.354 | KH19: 490095.6093 | KI19: 379790.3218 | KJ19: 1103642.295 | KK19: 939111.3107 | KL19: 739035.679 | KM19: 0 | KN19: 0 | KO19: 0 | KP19: 0 | KQ19: 0 | KR19: 0 | KS19: 0 | KT19: 0 | KU19: 0 | KV19: 0 | KW19: 0 | KX19: 0 | KY19: 0 | KZ19: 0 | LA19: 0 | LB19: 0 | LC19: 0 | LD19: 0 | LE19: 0 | LF19: 0 | LG19: 0 | LH19: 0 | LI19: 0 | LJ19: 0 | LK19: 0 | LL19: 0 | LM19: 0 | LN19: 0 | LO19: 0 | LP19: 0 | LQ19: 0 | LR19: 0 | LS19: 0 | LT19: 0 | LU19: 0 | LV19: 0 | LW19: 0 | LX19: 0 | LY19: 0 | LZ19: 0 | MA19: 0 | MB19: 0 | MC19: 0 | MD19: 0 | ME19: 0 | MF19: 0 | MG19: 0 | MH19: 0 | MI19: 0 | MJ19: 0 | MK19: 0 | ML19: 0 | MM19: 0 | MN19: 0 | MO19: 0 | MP19: 0 | MQ19: 0 | MR19: 0 | MS19: 0 | MT19: 0
C20: Commerzbank | E20: LXP | G20: Sonst. Girokonten | H20: 29608.63539 | I20: 29608.63539 | J20: 29608.63539 | K20: 29608.63539 | L20: 29608.63539 | M20: 56140.08113 | N20: 56140.08113 | O20: 56140.08113 | P20: 56140.08113 | Q20: 56140.08113 | R20: 56140.08113 | S20: 56140.08113 | T20: 56140.08113 | U20: 56140.08113 | V20: 56140.08113 | W20: 56140.08113 | X20: 56140.08113 | Y20: 56140.08113 | Z20: 56140.08113 | AA20: 56140.08113 | AB20: 56140.08113 | AC20: 56140.08113 | AD20: 56140.08113 | AE20: 56140.08113 | AF20: 56140.08113 | AG20: 56140.08113 | AH20: 56140.08113 | AI20: 56140.08113 | AJ20: 56140.08113 | AK20: 56140.08113 | AL20: 56140.08113 | AM20: 56140.08113 | AN20: 56140.08113 | AO20: 56140.08113 | AP20: 56140.08113 | AQ20: 56140.08113 | AR20: 56140.08113 | AS20: 56140.08113 | AT20: 56140.08113 | AU20: 56140.08113 | AV20: 56140.08113 | AW20: 56140.08113 | AX20: 56140.08113 | AY20: 56140.08113 | AZ20: 56140.08113 | BA20: 56140.08113 | BB20: 56140.08113 | BC20: 56140.08113 | BD20: 56140.08113 | BE20: 56140.08113 | BF20: 56140.08113 | BG20: 56140.08113 | BH20: 56140.08113 | BI20: 56140.08113 | BJ20: 56140.08113 | BK20: 56140.08113 | BL20: 56140.08113 | BM20: 56140.08113 | BN20: 56140.08113 | BO20: 56140.08113 | BP20: 56140.08113 | BQ20: 56140.08113 | BR20: 56140.08113 | BS20: 56140.08113 | BT20: 56140.08113 | BU20: 56140.08113 | BV20: 56140.08113 | BW20: 56140.08113 | BX20: 56140.08113 | BY20: 56140.08113 | BZ20: 56140.08113 | CA20: 56140.08113 | CB20: 56140.08113 | CC20: 56140.08113 | CD20: 56140.08113 | CE20: 56140.08113 | CF20: 56140.08113 | CG20: 56140.08113 | CH20: 56140.08113 | CI20: 56140.08113 | CJ20: 56140.08113 | CK20: 56140.08113 | CL20: 56140.08113 | CM20: 56140.08113 | CN20: 56140.08113 | CO20: 56140.08113 | CP20: 56140.08113 | CQ20: 56140.08113 | CR20: 56140.08113 | CS20: 56140.08113 | CT20: 56140.08113 | CU20: 56140.08113 | CV20: 56140.08113 | CW20: 56140.08113 | CX20: 56140.08113 | CY20: 56140.08113 | CZ20: 56140.08113 | DA20: 56140.08113 | DB20: 56140.08113 | DC20: 56140.08113 | DD20: 56140.08113 | DE20: 56140.08113 | DF20: 56140.08113 | DG20: 56140.08113 | DH20: 56140.08113 | DI20: 56140.08113 | DJ20: 56140.08113 | DK20: 56140.08113 | DL20: 56140.08113 | DM20: 56140.08113 | DN20: 56140.08113 | DO20: 56140.08113 | DP20: 56140.08113 | DQ20: 56140.08113 | DR20: 56140.08113 | DS20: 56140.08113 | DT20: 56140.08113 | DU20: 56140.08113 | DV20: 56140.08113 | DW20: 56140.08113 | DX20: 56140.08113 | DY20: 56140.08113 | DZ20: 56140.08113 | EA20: 56140.08113 | EB20: 56140.08113 | EC20: 56140.08113 | ED20: 56140.08113 | EE20: 56140.08113 | EF20: 56140.08113 | EG20: 56140.08113 | EH20: 56140.08113 | EI20: 56140.08113 | EJ20: 56140.08113 | EK20: 56140.08113 | EL20: 56140.08113 | EM20: 56140.08113 | EN20: 56140.08113 | EO20: 56140.08113 | EP20: 56140.08113 | EQ20: 56140.08113 | ER20: 56140.08113 | ES20: 56140.08113 | ET20: 56140.08113 | EU20: 56140.08113 | EV20: 56140.08113 | EW20: 56140.08113 | EX20: 56140.08113 | EY20: 56140.08113 | EZ20: 56140.08113 | FA20: 56140.08113 | FB20: 56140.08113 | FC20: 56140.08113 | FD20: 56140.08113 | FE20: 56140.08113 | FF20: 56140.08113 | FG20: 56140.08113 | FH20: 56140.08113 | FI20: 56140.08113 | FJ20: 56140.08113 | FK20: 56140.08113 | FL20: 56140.08113 | FM20: 56140.08113 | FN20: 56140.08113 | FO20: 56140.08113 | FP20: 56140.08113 | FQ20: 56140.08113 | FR20: 91557.46999 | FS20: 91557.46999 | FT20: 91557.46999 | FU20: 91557.46999 | FV20: 91557.46999 | FW20: 91557.46999 | FX20: 91557.46999 | FY20: 91557.46999 | FZ20: 91557.46999 | GA20: 91557.46999 | GB20: 91557.46999 | GC20: 91557.46999 | GD20: 91557.46999 | GE20: 91557.46999 | GF20: 91557.46999 | GG20: 91557.46999 | GH20: 91557.46999 | GI20: 91557.46999 | GJ20: 91557.46999 | GK20: 91557.46999 | GL20: 91557.46999 | GM20: 91557.46999 | GN20: 91557.46999 | GO20: 91557.46999 | GP20: 91557.46999 | GQ20: 91557.46999 | GR20: 91557.46999 | GS20: 91557.46999 | GT20: 91557.46999 | GU20: 91557.46999 | GV20: 91557.46999 | GW20: 91557.46999 | GX20: 91557.46999 | GY20: 91557.46999 | GZ20: 91557.46999 | HA20: 91557.46999 | HB20: 91557.46999 | HC20: 91557.46999 | HD20: 91557.46999 | HE20: 91557.46999 | HF20: 91557.46999 | HG20: 91557.46999 | HH20: 91557.46999 | HI20: 91557.46999 | HJ20: 91557.46999 | HK20: 91557.46999 | HL20: 91557.46999 | HM20: 91557.46999 | HN20: 91557.46999 | HO20: 91557.46999 | HP20: 91557.46999 | HQ20: 91557.46999 | HR20: 149706.4245 | HS20: 149706.4245 | HT20: 149706.4245 | HU20: 149706.4245 | HV20: 149706.4245 | HW20: 149706.4245 | HX20: 149706.4245 | HY20: 149706.4245 | HZ20: 149706.4245 | IA20: 149706.4245 | IB20: 149706.4245 | IC20: 149706.4245 | ID20: 149706.4245 | IE20: 149706.4245 | IF20: 149706.4245 | IG20: 149706.4245 | IH20: 149706.4245 | II20: 149706.4245 | IJ20: 149706.4245 | IK20: 149706.4245 | IL20: 149706.4245 | IM20: 149706.4245 | IN20: 149706.4245 | IO20: 149706.4245 | IP20: 149706.4245 | IQ20: 149706.4245 | IR20: 149706.4245 | IS20: 149706.4245 | IT20: 149706.4245 | IU20: 149706.4245 | IV20: 149706.4245 | IW20: 149706.4245 | IX20: 149706.4245 | IY20: 149706.4245 | IZ20: 149706.4245 | JA20: 149706.4245 | JB20: 149706.4245 | JC20: 149706.4245 | JD20: 149706.4245 | JE20: 149706.4245 | JF20: 149706.4245 | JG20: 149706.4245 | JH20: 149706.4245 | JI20: 149706.4245 | JJ20: 149706.4245 | JK20: 149706.4245 | JL20: 149706.4245 | JM20: 149706.4245 | JN20: 149706.4245 | JO20: 149706.4245 | JP20: 149706.4245 | JQ20: 149706.4245 | JR20: 149706.4245 | JS20: 149706.4245 | JT20: 149706.4245 | JU20: =(JT20)*0.911004101199225 -> 136383.1667 | JV20: 124245.6242 | JW20: 113188.2732 | JX20: 103114.9811 | JY20: =(+JX20)*0.911004101199225 -> 93938.17066 | JZ20: 85578.05873 | KA20: 77961.96247 | KB20: 71023.66755 | KC20: 64702.85242 | KD20: =(KC20)*0.911004101199225 -> 58944.56392 | KE20: =(+KD20)*0.911004101199225 -> 53698.73947 | KF20: =(KE20)*0.911004101199225 -> 48919.77189 | KG20: 44566.11282 | KH20: 40599.91155 | KI20: =(+KH20)*0.911004101199225 -> 36986.68593 | KJ20: =(KI20)*0.911004101199225 -> 33695.02257 | KK20: =(+KJ20)*0.911004101199225 -> 30696.30376 | KL20: =(KK20)*0.911004101199225 -> 27964.45861 | KM20: 0 | KN20: 0 | KO20: 0 | KP20: 0 | KQ20: 0 | KR20: 0 | KS20: 0 | KT20: 0 | KU20: 0 | KV20: 0 | KW20: 0 | KX20: 0 | KY20: 0 | KZ20: 0 | LA20: 0 | LB20: 0 | LC20: 0 | LD20: 0 | LE20: 0 | LF20: 0 | LG20: 0 | LH20: 0 | LI20: 0 | LJ20: 0 | LK20: 0 | LL20: 0 | LM20: 0 | LN20: 0 | LO20: 0 | LP20: 0 | LQ20: 0 | LR20: 0 | LS20: 0 | LT20: 0 | LU20: 0 | LV20: 0 | LW20: 0 | LX20: 0 | LY20: 0 | LZ20: 0 | MA20: 0 | MB20: 0 | MC20: 0 | MD20: 0 | ME20: 0 | MF20: 0 | MG20: 0 | MH20: 0 | MI20: 0 | MJ20: 0 | MK20: 0 | ML20: 0 | MM20: 0 | MN20: 0 | MO20: 0 | MP20: 0 | MQ20: 0 | MR20: 0 | MS20: 0 | MT20: 0
C21: Commerzbank | E21: LXP | G21: Sonstige Konten | H21: 316105.8057 | I21: 316105.8057 | J21: 316105.8057 | K21: 316105.8057 | L21: 316105.8057 | M21: 316105.8057 | N21: 316105.8057 | O21: 316105.8057 | P21: 316105.8057 | Q21: 316105.8057 | R21: 316105.8057 | S21: 316105.8057 | T21: 316105.8057 | U21: 316105.8057 | V21: 316105.8057 | W21: 316105.8057 | X21: 316105.8057 | Y21: 316105.8057 | Z21: 316105.8057 | AA21: 316105.8057 | AB21: 316105.8057 | AC21: 316105.8057 | AD21: 316105.8057 | AE21: 316105.8057 | AF21: 316105.8057 | AG21: 316105.8057 | AH21: 316105.8057 | AI21: 316105.8057 | AJ21: 316105.8057 | AK21: 316105.8057 | AL21: 316105.8057 | AM21: 316105.8057 | AN21: 316105.8057 | AO21: 316105.8057 | AP21: 316105.8057 | AQ21: 316105.8057 | AR21: 316105.8057 | AS21: 316105.8057 | AT21: 316105.8057 | AU21: 316105.8057 | AV21: 316105.8057 | AW21: 316105.8057 | AX21: 316105.8057 | AY21: 316105.8057 | AZ21: 316105.8057 | BA21: 316105.8057 | BB21: 316105.8057 | BC21: 316105.8057 | BD21: 316105.8057 | BE21: 316105.8057 | BF21: 316105.8057 | BG21: 316105.8057 | BH21: 316105.8057 | BI21: 316105.8057 | BJ21: 316105.8057 | BK21: 316105.8057 | BL21: 316105.8057 | BM21: 316105.8057 | BN21: 316105.8057 | BO21: 316105.8057 | BP21: 316105.8057 | BQ21: 316105.8057 | BR21: 316105.8057 | BS21: 316105.8057 | BT21: 316105.8057 | BU21: 316105.8057 | BV21: 316105.8057 | BW21: 316105.8057 | BX21: 316105.8057 | BY21: 316105.8057 | BZ21: 316105.8057 | CA21: 316105.8057 | CB21: 316105.8057 | CC21: 316105.8057 | CD21: 316105.8057 | CE21: 316105.8057 | CF21: 316105.8057 | CG21: 316105.8057 | CH21: 316105.8057 | CI21: 316105.8057 | CJ21: 316105.8057 | CK21: 316105.8057 | CL21: 316105.8057 | CM21: 316105.8057 | CN21: 316105.8057 | CO21: 316105.8057 | CP21: 316105.8057 | CQ21: 316105.8057 | CR21: 316105.8057 | CS21: 316105.8057 | CT21: 316105.8057 | CU21: 316105.8057 | CV21: 316105.8057 | CW21: 316105.8057 | CX21: 316105.8057 | CY21: 316105.8057 | CZ21: 316105.8057 | DA21: 316105.8057 | DB21: 316105.8057 | DC21: 316105.8057 | DD21: 316105.8057 | DE21: 316105.8057 | DF21: 316105.8057 | DG21: 316105.8057 | DH21: 316105.8057 | DI21: 316105.8057 | DJ21: 316105.8057 | DK21: 316105.8057 | DL21: 316105.8057 | DM21: 316105.8057 | DN21: 316105.8057 | DO21: 316105.8057 | DP21: 316105.8057 | DQ21: 316105.8057 | DR21: 316105.8057 | DS21: 316105.8057 | DT21: 316105.8057 | DU21: 316105.8057 | DV21: 316105.8057 | DW21: 316105.8057 | DX21: 316105.8057 | DY21: 316105.8057 | DZ21: 316105.8057 | EA21: 316105.8057 | EB21: 316105.8057 | EC21: 316105.8057 | ED21: 316105.8057 | EE21: 316105.8057 | EF21: 316105.8057 | EG21: 316105.8057 | EH21: 316105.8057 | EI21: 316105.8057 | EJ21: 316105.8057 | EK21: 316105.8057 | EL21: 316105.8057 | EM21: 316105.8057 | EN21: 316105.8057 | EO21: 316105.8057 | EP21: 316105.8057 | EQ21: 316105.8057 | ER21: 316105.8057 | ES21: 316105.8057 | ET21: 316105.8057 | EU21: 316105.8057 | EV21: 316105.8057 | EW21: 316105.8057 | EX21: 316105.8057 | EY21: 316105.8057 | EZ21: 316105.8057 | FA21: 316105.8057 | FB21: 316105.8057 | FC21: 316105.8057 | FD21: 316105.8057 | FE21: 316105.8057 | FF21: 316105.8057 | FG21: 316105.8057 | FH21: 316105.8057 | FI21: 316105.8057 | FJ21: 316105.8057 | FK21: 316105.8057 | FL21: 316105.8057 | FM21: 316105.8057 | FN21: 316105.8057 | FO21: 316105.8057 | FP21: 316105.8057 | FQ21: 316105.8057 | FR21: 316105.8057 | FS21: 316105.8057 | FT21: 316105.8057 | FU21: 316105.8057 | FV21: 316105.8057 | FW21: 316105.8057 | FX21: 316105.8057 | FY21: 316105.8057 | FZ21: 316105.8057 | GA21: 316105.8057 | GB21: 316105.8057 | GC21: 316105.8057 | GD21: 316105.8057 | GE21: 316105.8057 | GF21: 316105.8057 | GG21: 316105.8057 | GH21: 316105.8057 | GI21: 316105.8057 | GJ21: 316105.8057 | GK21: 316105.8057 | GL21: 316105.8057 | GM21: 316105.8057 | GN21: 316105.8057 | GO21: 316105.8057 | GP21: 316105.8057 | GQ21: 316105.8057 | GR21: 316105.8057 | GS21: 316105.8057 | GT21: 316105.8057 | GU21: 316105.8057 | GV21: 316105.8057 | GW21: 316105.8057 | GX21: 316105.8057 | GY21: 316105.8057 | GZ21: 316105.8057 | HA21: 316105.8057 | HB21: 316105.8057 | HC21: 316105.8057 | HD21: 316105.8057 | HE21: 316105.8057 | HF21: 316105.8057 | HG21: 316105.8057 | HH21: 316105.8057 | HI21: 316105.8057 | HJ21: 316105.8057 | HK21: 316105.8057 | HL21: 316105.8057 | HM21: 316105.8057 | HN21: 316105.8057 | HO21: 316105.8057 | HP21: 316105.8057 | HQ21: 316105.8057 | HR21: 316105.8057 | HS21: 316105.8057 | HT21: 316105.8057 | HU21: 316105.8057 | HV21: 316105.8057 | HW21: 316105.8057 | HX21: 316105.8057 | HY21: 316105.8057 | HZ21: 316105.8057 | IA21: 316105.8057 | IB21: 316105.8057 | IC21: 316105.8057 | ID21: 316105.8057 | IE21: 316105.8057 | IF21: 316105.8057 | IG21: 316105.8057 | IH21: 316105.8057 | II21: 316105.8057 | IJ21: 316105.8057 | IK21: 316105.8057 | IL21: 316105.8057 | IM21: 316105.8057 | IN21: 316105.8057 | IO21: 316105.8057 | IP21: 316105.8057 | IQ21: 316105.8057 | IR21: 316105.8057 | IS21: 316105.8057 | IT21: 316105.8057 | IU21: 316105.8057 | IV21: 316105.8057 | IW21: 316105.8057 | IX21: 316105.8057 | IY21: 316105.8057 | IZ21: 316105.8057 | JA21: 316105.8057 | JB21: 316105.8057 | JC21: 316105.8057 | JD21: 316105.8057 | JE21: 316105.8057 | JF21: 316105.8057 | JG21: 316105.8057 | JH21: 316105.8057 | JI21: 316105.8057 | JJ21: 316105.8057 | JK21: 316105.8057 | JL21: 316105.8057 | JM21: 316105.8057 | JN21: 316105.8057 | JO21: 316105.8057 | JP21: 316105.8057 | JQ21: 316105.8057 | JR21: 316105.8057 | JS21: 316105.8057 | JT21: 316105.8057 | JU21: 287973.6854 | JV21: 262345.2084 | JW21: 238997.5608 | JX21: 217727.7581 | JY21: 198350.8806 | JZ21: 180698.4657 | KA21: 164617.0433 | KB21: 149966.8016 | KC21: 136620.3713 | KD21: 124461.7185 | KE21: 113385.136 | KF21: 103294.3239 | KG21: 94101.55275 | KH21: 85726.90048 | KI21: 78097.55792 | KJ21: 71147.19556 | KK21: =(+KJ21)*0.911004101199225 -> 64815.38694 | KL21: =(KK21)*0.911004101199225 -> 59047.08333 | KM21: 0 | KN21: 0 | KO21: 0 | KP21: 0 | KQ21: 0 | KR21: 0 | KS21: 0 | KT21: 0 | KU21: 0 | KV21: 0 | KW21: 0 | KX21: 0 | KY21: 0 | KZ21: 0 | LA21: 0 | LB21: 0 | LC21: 0 | LD21: 0 | LE21: 0 | LF21: 0 | LG21: 0 | LH21: 0 | LI21: 0 | LJ21: 0 | LK21: 0 | LL21: 0 | LM21: 0 | LN21: 0 | LO21: 0 | LP21: 0 | LQ21: 0 | LR21: 0 | LS21: 0 | LT21: 0 | LU21: 0 | LV21: 0 | LW21: 0 | LX21: 0 | LY21: 0 | LZ21: 0 | MA21: 0 | MB21: 0 | MC21: 0 | MD21: 0 | ME21: 0 | MF21: 0 | MG21: 0 | MH21: 0 | MI21: 0 | MJ21: 0 | MK21: 0 | ML21: 0 | MM21: 0 | MN21: 0 | MO21: 0 | MP21: 0 | MQ21: 0 | MR21: 0 | MS21: 0 | MT21: 0
C22: Commerzbank | E22: LXP | G22: Sonstige Konten | H22: 50409.41895 | I22: 50409.41895 | J22: 50409.41895 | K22: 50409.41895 | L22: 50409.41895 | M22: 50409.41895 | N22: 50409.41895 | O22: 50409.41895 | P22: 50409.41895 | Q22: 50409.41895 | R22: 50409.41895 | S22: 50409.41895 | T22: 50409.41895 | U22: 50409.41895 | V22: 50409.41895 | W22: 50409.41895 | X22: 50409.41895 | Y22: 50409.41895 | Z22: 50409.41895 | AA22: 50409.41895 | AB22: 50409.41895 | AC22: 50409.41895 | AD22: 50409.41895 | AE22: 50409.41895 | AF22: 50409.41895 | AG22: 50409.41895 | AH22: 50409.41895 | AI22: 50409.41895 | AJ22: 50409.41895 | AK22: 50409.41895 | AL22: 50409.41895 | AM22: 50409.41895 | AN22: 50409.41895 | AO22: 50409.41895 | AP22: 50409.41895 | AQ22: 50409.41895 | AR22: 50409.41895 | AS22: 50409.41895 | AT22: 50409.41895 | AU22: 50409.41895 | AV22: 50409.41895 | AW22: 50409.41895 | AX22: 50409.41895 | AY22: 50409.41895 | AZ22: 50409.41895 | BA22: 50409.41895 | BB22: 50409.41895 | BC22: 50409.41895 | BD22: 50409.41895 | BE22: 50409.41895 | BF22: 50409.41895 | BG22: 50409.41895 | BH22: 50409.41895 | BI22: 50409.41895 | BJ22: 50409.41895 | BK22: 50409.41895 | BL22: 50409.41895 | BM22: 50409.41895 | BN22: 50409.41895 | BO22: 50409.41895 | BP22: 50409.41895 | BQ22: 50409.41895 | BR22: 50409.41895 | BS22: 50409.41895 | BT22: 50409.41895 | BU22: 50409.41895 | BV22: 50409.41895 | BW22: 50409.41895 | BX22: 50409.41895 | BY22: 50409.41895 | BZ22: 50409.41895 | CA22: 50409.41895 | CB22: 50409.41895 | CC22: 50409.41895 | CD22: 50409.41895 | CE22: 50409.41895 | CF22: 50409.41895 | CG22: 50409.41895 | CH22: 50409.41895 | CI22: 50409.41895 | CJ22: 50409.41895 | CK22: 50409.41895 | CL22: 50409.41895 | CM22: 50409.41895 | CN22: 50409.41895 | CO22: 50409.41895 | CP22: 50409.41895 | CQ22: 50409.41895 | CR22: 50409.41895 | CS22: 50409.41895 | CT22: 50409.41895 | CU22: 50409.41895 | CV22: 50409.41895 | CW22: 50409.41895 | CX22: 50409.41895 | CY22: 50409.41895 | CZ22: 50409.41895 | DA22: 50409.41895 | DB22: 50409.41895 | DC22: 50409.41895 | DD22: 50409.41895 | DE22: 50409.41895 | DF22: 50409.41895 | DG22: 50409.41895 | DH22: 50409.41895 | DI22: 50409.41895 | DJ22: 50409.41895 | DK22: 50409.41895 | DL22: 50409.41895 | DM22: 50409.41895 | DN22: 50409.41895 | DO22: 50409.41895 | DP22: 50409.41895 | DQ22: 50409.41895 | DR22: 50409.41895 | DS22: 50409.41895 | DT22: 50409.41895 | DU22: 50409.41895 | DV22: 50409.41895 | DW22: 50409.41895 | DX22: 50409.41895 | DY22: 50409.41895 | DZ22: 50409.41895 | EA22: 50409.41895 | EB22: 50409.41895 | EC22: 50409.41895 | ED22: 50409.41895 | EE22: 50409.41895 | EF22: 50409.41895 | EG22: 50409.41895 | EH22: 50409.41895 | EI22: 50409.41895 | EJ22: 50409.41895 | EK22: 50409.41895 | EL22: 50409.41895 | EM22: 50409.41895 | EN22: 50409.41895 | EO22: 50409.41895 | EP22: 50409.41895 | EQ22: 50409.41895 | ER22: 50409.41895 | ES22: 50409.41895 | ET22: 50409.41895 | EU22: 50409.41895 | EV22: 50409.41895 | EW22: 50409.41895 | EX22: 50409.41895 | EY22: 50409.41895 | EZ22: 50409.41895 | FA22: 50409.41895 | FB22: 50409.41895 | FC22: 50409.41895 | FD22: 50409.41895 | FE22: 50409.41895 | FF22: 50409.41895 | FG22: 50409.41895 | FH22: 50409.41895 | FI22: 50409.41895 | FJ22: 50409.41895 | FK22: 50409.41895 | FL22: 50409.41895 | FM22: 50409.41895 | FN22: 50409.41895 | FO22: 50409.41895 | FP22: 50409.41895 | FQ22: 50409.41895 | FR22: 50409.41895 | FS22: 50409.41895 | FT22: 50409.41895 | FU22: 50409.41895 | FV22: 50409.41895 | FW22: 50409.41895 | FX22: 50409.41895 | FY22: 50409.41895 | FZ22: 50409.41895 | GA22: 50409.41895 | GB22: 50409.41895 | GC22: 50409.41895 | GD22: 50409.41895 | GE22: 50409.41895 | GF22: 50409.41895 | GG22: 50409.41895 | GH22: 50409.41895 | GI22: 50409.41895 | GJ22: 50409.41895 | GK22: 50409.41895 | GL22: 50409.41895 | GM22: 50409.41895 | GN22: 50409.41895 | GO22: 50409.41895 | GP22: 50409.41895 | GQ22: 50409.41895 | GR22: 50409.41895 | GS22: 50409.41895 | GT22: 50409.41895 | GU22: 50409.41895 | GV22: 50409.41895 | GW22: 50409.41895 | GX22: 50409.41895 | GY22: 50409.41895 | GZ22: 50409.41895 | HA22: 50409.41895 | HB22: 50409.41895 | HC22: 50409.41895 | HD22: 50409.41895 | HE22: 50409.41895 | HF22: 50409.41895 | HG22: 50409.41895 | HH22: 50409.41895 | HI22: 50409.41895 | HJ22: 50409.41895 | HK22: 50409.41895 | HL22: 50409.41895 | HM22: 50409.41895 | HN22: 50409.41895 | HO22: 50409.41895 | HP22: 50409.41895 | HQ22: 50409.41895 | HR22: 50409.41895 | HS22: 50409.41895 | HT22: 50409.41895 | HU22: 50409.41895 | HV22: 50409.41895 | HW22: 50409.41895 | HX22: 50409.41895 | HY22: 50409.41895 | HZ22: 50409.41895 | IA22: 50409.41895 | IB22: 50409.41895 | IC22: 50409.41895 | ID22: 50409.41895 | IE22: 50409.41895 | IF22: 50409.41895 | IG22: 50409.41895 | IH22: 50409.41895 | II22: 50409.41895 | IJ22: 50409.41895 | IK22: 50409.41895 | IL22: 50409.41895 | IM22: 50409.41895 | IN22: 50409.41895 | IO22: 50409.41895 | IP22: 50409.41895 | IQ22: 50409.41895 | IR22: 50409.41895 | IS22: 50409.41895 | IT22: 50409.41895 | IU22: 50409.41895 | IV22: 50409.41895 | IW22: 50409.41895 | IX22: 50409.41895 | IY22: 50409.41895 | IZ22: 50409.41895 | JA22: 50409.41895 | JB22: 50409.41895 | JC22: 50409.41895 | JD22: 50409.41895 | JE22: 50409.41895 | JF22: 50409.41895 | JG22: 50409.41895 | JH22: 50409.41895 | JI22: 50409.41895 | JJ22: 50409.41895 | JK22: 50409.41895 | JL22: 50409.41895 | JM22: 50409.41895 | JN22: 50409.41895 | JO22: 50409.41895 | JP22: 50409.41895 | JQ22: 50409.41895 | JR22: 50409.41895 | JS22: 50409.41895 | JT22: 50409.41895 | JU22: 45923.1874 | JV22: 41836.21206 | JW22: 38112.96077 | JX22: 34721.06357 | JY22: 31631.03131 | JZ22: 28815.99925 | KA22: 26251.49349 | KB22: 23915.21823 | KC22: 21786.86189 | KD22: 19847.92054 | KE22: 18081.53701 | KF22: 16472.35437 | KG22: 15006.38239 | KH22: 13670.8759 | KI22: 12454.22401 | KJ22: 11345.84915 | KK22: =(+KJ22)*0.911004101199225 -> 10336.11511 | KL22: =(KK22)*0.911004101199225 -> 9416.243255 | KM22: 0 | KN22: 0 | KO22: 0 | KP22: 0 | KQ22: 0 | KR22: 0 | KS22: 0 | KT22: 0 | KU22: 0 | KV22: 0 | KW22: 0 | KX22: 0 | KY22: 0 | KZ22: 0 | LA22: 0 | LB22: 0 | LC22: 0 | LD22: 0 | LE22: 0 | LF22: 0 | LG22: 0 | LH22: 0 | LI22: 0 | LJ22: 0 | LK22: 0 | LL22: 0 | LM22: 0 | LN22: 0 | LO22: 0 | LP22: 0 | LQ22: 0 | LR22: 0 | LS22: 0 | LT22: 0 | LU22: 0 | LV22: 0 | LW22: 0 | LX22: 0 | LY22: 0 | LZ22: 0 | MA22: 0 | MB22: 0 | MC22: 0 | MD22: 0 | ME22: 0 | MF22: 0 | MG22: 0 | MH22: 0 | MI22: 0 | MJ22: 0 | MK22: 0 | ML22: 0 | MM22: 0 | MN22: 0 | MO22: 0 | MP22: 0 | MQ22: 0 | MR22: 0 | MS22: 0 | MT22: 0
C23: Raiba Georgensgmünd | E23: LXP | G23: Sonst. Girokonten | H23: 13004.15537 | I23: 13004.15537 | J23: 13004.15537 | K23: 13004.15537 | L23: 13004.15537 | M23: 13004.15537 | N23: 13004.15537 | O23: 13004.15537 | P23: 13004.15537 | Q23: 13004.15537 | R23: 13004.15537 | S23: 13004.15537 | T23: 13004.15537 | U23: 13004.15537 | V23: 13004.15537 | W23: 13004.15537 | X23: 13004.15537 | Y23: 13004.15537 | Z23: 13004.15537 | AA23: 13004.15537 | AB23: 13004.15537 | AC23: 13004.15537 | AD23: 13004.15537 | AE23: 13004.15537 | AF23: 13004.15537 | AG23: 13004.15537 | AH23: 13004.15537 | AI23: 13004.15537 | AJ23: 13004.15537 | AK23: 13004.15537 | AL23: 13004.15537 | AM23: 13004.15537 | AN23: 13004.15537 | AO23: 13004.15537 | AP23: 13004.15537 | AQ23: 13004.15537 | AR23: 13004.15537 | AS23: 13004.15537 | AT23: 13004.15537 | AU23: 13004.15537 | AV23: 13004.15537 | AW23: 13004.15537 | AX23: 13004.15537 | AY23: 13004.15537 | AZ23: 13004.15537 | BA23: 13004.15537 | BB23: 13004.15537 | BC23: 13004.15537 | BD23: 13004.15537 | BE23: 13004.15537 | BF23: 13004.15537 | BG23: 13004.15537 | BH23: 13004.15537 | BI23: 13004.15537 | BJ23: 13004.15537 | BK23: 13004.15537 | BL23: 13004.15537 | BM23: 13004.15537 | BN23: 13004.15537 | BO23: 13004.15537 | BP23: 13004.15537 | BQ23: 13004.15537 | BR23: 13004.15537 | BS23: 13004.15537 | BT23: 13004.15537 | BU23: 13004.15537 | BV23: 13004.15537 | BW23: 13004.15537 | BX23: 13004.15537 | BY23: 13004.15537 | BZ23: 13004.15537 | CA23: 13004.15537 | CB23: 13004.15537 | CC23: 13004.15537 | CD23: 13004.15537 | CE23: 13004.15537 | CF23: 13004.15537 | CG23: 13004.15537 | CH23: 13004.15537 | CI23: 13004.15537 | CJ23: 13004.15537 | CK23: 13004.15537 | CL23: 13004.15537 | CM23: 13004.15537 | CN23: 13004.15537 | CO23: 13004.15537 | CP23: 13004.15537 | CQ23: 13004.15537 | CR23: 13004.15537 | CS23: 13004.15537 | CT23: 13004.15537 | CU23: 13004.15537 | CV23: 13004.15537 | CW23: 13004.15537 | CX23: 13004.15537 | CY23: 13004.15537 | CZ23: 13004.15537 | DA23: 13004.15537 | DB23: 13004.15537 | DC23: 13004.15537 | DD23: 13004.15537 | DE23: 13004.15537 | DF23: 13004.15537 | DG23: 13004.15537 | DH23: 13004.15537 | DI23: 13004.15537 | DJ23: 13004.15537 | DK23: 13004.15537 | DL23: 13004.15537 | DM23: 13004.15537 | DN23: 13004.15537 | DO23: 13004.15537 | DP23: 13004.15537 | DQ23: 13004.15537 | DR23: 13004.15537 | DS23: 13004.15537 | DT23: 13004.15537 | DU23: 13004.15537 | DV23: 13004.15537 | DW23: 13004.15537 | DX23: 13004.15537 | DY23: 13004.15537 | DZ23: 13004.15537 | EA23: 13004.15537 | EB23: 13004.15537 | EC23: 13004.15537 | ED23: 13004.15537 | EE23: 13004.15537 | EF23: 13004.15537 | EG23: 13004.15537 | EH23: 13004.15537 | EI23: 13004.15537 | EJ23: 13004.15537 | EK23: 13004.15537 | EL23: 13004.15537 | EM23: 13004.15537 | EN23: 13004.15537 | EO23: 13004.15537 | EP23: 13004.15537 | EQ23: 13004.15537 | ER23: 13004.15537 | ES23: 13004.15537 | ET23: 13004.15537 | EU23: 13004.15537 | EV23: 13004.15537 | EW23: 13004.15537 | EX23: 13004.15537 | EY23: 13004.15537 | EZ23: 13004.15537 | FA23: 13004.15537 | FB23: 13004.15537 | FC23: 13004.15537 | FD23: 13004.15537 | FE23: 13004.15537 | FF23: 13004.15537 | FG23: 13004.15537 | FH23: 13004.15537 | FI23: 13004.15537 | FJ23: 13004.15537 | FK23: 13004.15537 | FL23: 13004.15537 | FM23: 13004.15537 | FN23: 13004.15537 | FO23: 13004.15537 | FP23: 13004.15537 | FQ23: 13004.15537 | FR23: 13004.15537 | FS23: 13004.15537 | FT23: 13004.15537 | FU23: 13004.15537 | FV23: 13004.15537 | FW23: 13004.15537 | FX23: 13004.15537 | FY23: 13004.15537 | FZ23: 13004.15537 | GA23: 13004.15537 | GB23: 13004.15537 | GC23: 13004.15537 | GD23: 13004.15537 | GE23: 13004.15537 | GF23: 13004.15537 | GG23: 13004.15537 | GH23: 13004.15537 | GI23: 13004.15537 | GJ23: 13004.15537 | GK23: 13004.15537 | GL23: 13004.15537 | GM23: 13004.15537 | GN23: 13004.15537 | GO23: 13004.15537 | GP23: 13004.15537 | GQ23: 13004.15537 | GR23: 13004.15537 | GS23: 13004.15537 | GT23: 13004.15537 | GU23: 13004.15537 | GV23: 13004.15537 | GW23: 13004.15537 | GX23: 13004.15537 | GY23: 13004.15537 | GZ23: 13004.15537 | HA23: 13004.15537 | HB23: 13004.15537 | HC23: 13004.15537 | HD23: 13004.15537 | HE23: 13004.15537 | HF23: 13004.15537 | HG23: 13004.15537 | HH23: 13004.15537 | HI23: 13004.15537 | HJ23: 13004.15537 | HK23: 13004.15537 | HL23: 13004.15537 | HM23: 13004.15537 | HN23: 13004.15537 | HO23: 13004.15537 | HP23: 13004.15537 | HQ23: 13004.15537 | HR23: 13004.15537 | HS23: 13004.15537 | HT23: 13004.15537 | HU23: 13004.15537 | HV23: 13004.15537 | HW23: 13004.15537 | HX23: 13004.15537 | HY23: 13004.15537 | HZ23: 13004.15537 | IA23: 13004.15537 | IB23: 13004.15537 | IC23: 13004.15537 | ID23: 13004.15537 | IE23: 13004.15537 | IF23: 13004.15537 | IG23: 13004.15537 | IH23: 13004.15537 | II23: 13004.15537 | IJ23: 13004.15537 | IK23: 13004.15537 | IL23: 13004.15537 | IM23: 13004.15537 | IN23: 13004.15537 | IO23: 13004.15537 | IP23: 13004.15537 | IQ23: 13004.15537 | IR23: 13004.15537 | IS23: 13004.15537 | IT23: 13004.15537 | IU23: 13004.15537 | IV23: 13004.15537 | IW23: 13004.15537 | IX23: 13004.15537 | IY23: 13004.15537 | IZ23: 13004.15537 | JA23: 13004.15537 | JB23: 13004.15537 | JC23: 13004.15537 | JD23: 13004.15537 | JE23: 13004.15537 | JF23: 13004.15537 | JG23: 13004.15537 | JH23: 13004.15537 | JI23: 13004.15537 | JJ23: 13004.15537 | JK23: 13004.15537 | JL23: 13004.15537 | JM23: 13004.15537 | JN23: 13004.15537 | JO23: 13004.15537 | JP23: 13004.15537 | JQ23: 13004.15537 | JR23: 13004.15537 | JS23: 13004.15537 | JT23: 13004.15537 | JU23: 11846.83888 | JV23: 10792.5188 | JW23: 9832.028892 | JX23: 8957.018644 | JY23: 8159.880719 | JZ23: 7433.6848 | KA23: 6772.11734 | KB23: 6169.426671 | KC23: 5620.372999 | KD23: 5120.182852 | KE23: 4664.507577 | KF23: 4249.385533 | KG23: 3871.207648 | KH23: 3526.686044 | KI23: 3212.82545 | KJ23: 2926.897161 | KK23: =(+KJ23)*0.911004101199225 -> 2666.415318 | KL23: =(KK23)*0.911004101199225 -> 2429.11529 | KM23: 0 | KN23: 0 | KO23: 0 | KP23: 0 | KQ23: 0 | KR23: 0 | KS23: 0 | KT23: 0 | KU23: 0 | KV23: 0 | KW23: 0 | KX23: 0 | KY23: 0 | KZ23: 0 | LA23: 0 | LB23: 0 | LC23: 0 | LD23: 0 | LE23: 0 | LF23: 0 | LG23: 0 | LH23: 0 | LI23: 0 | LJ23: 0 | LK23: 0 | LL23: 0 | LM23: 0 | LN23: 0 | LO23: 0 | LP23: 0 | LQ23: 0 | LR23: 0 | LS23: 0 | LT23: 0 | LU23: 0 | LV23: 0 | LW23: 0 | LX23: 0 | LY23: 0 | LZ23: 0 | MA23: 0 | MB23: 0 | MC23: 0 | MD23: 0 | ME23: 0 | MF23: 0 | MG23: 0 | MH23: 0 | MI23: 0 | MJ23: 0 | MK23: 0 | ML23: 0 | MM23: 0 | MN23: 0 | MO23: 0 | MP23: 0 | MQ23: 0 | MR23: 0 | MS23: 0 | MT23: 0
C24: HVB | E24: LXB | G24: Sonst. Girokonten | H24: 0 | I24: 0 | J24: 0 | K24: 112.9007383 | L24: 87.07377199 | M24: 87.07377199 | N24: 87.07377199 | O24: 41.82419829 | P24: 15.8605814 | Q24: 15.8605814 | R24: 15.8605814 | S24: 15.8605814 | T24: 15.8605814 | U24: 15.8605814 | V24: 15.8605814 | W24: 15.8605814 | X24: 15.8605814 | Y24: 15.8605814 | Z24: 15.8605814 | AA24: 15.8605814 | AB24: 15.8605814 | AC24: 15.8605814 | AD24: 15.8605814 | AE24: 15.8605814 | AF24: 15.8605814 | AG24: 15.8605814 | AH24: 0 | AI24: 0 | AJ24: 0 | AK24: 0 | AL24: 0 | AM24: 0 | AN24: 0 | AO24: 0 | AP24: 0 | AQ24: 0 | AR24: 0 | AS24: 0 | AT24: 0 | AU24: 0 | AV24: 0 | AW24: 0 | AX24: 0 | AY24: 0 | AZ24: 0 | BA24: 0 | BB24: 0 | BC24: 0 | BD24: 0 | BE24: 0 | BF24: 0 | BG24: 0 | BH24: 0 | BI24: 0 | BJ24: 0 | BK24: 0 | BL24: 0 | BM24: 0 | BN24: 0 | BO24: 0 | BP24: 0 | BQ24: 0 | BR24: 0 | BS24: 0 | BT24: 0 | BU24: 0 | BV24: 0 | BW24: 0 | BX24: 0 | BY24: 0 | BZ24: 0 | CA24: 0 | CB24: 0 | CC24: 0 | CD24: 0 | CE24: 0 | CF24: 0 | CG24: 0 | CH24: 0 | CI24: 0 | CJ24: 0 | CK24: 0 | CL24: 0 | CM24: 0 | CN24: 0 | CO24: 0 | CP24: 0 | CQ24: 0 | CR24: 0 | CS24: 0 | CT24: 0 | CU24: 0 | CV24: 0 | CW24: 0 | CX24: 0 | CY24: 0 | CZ24: 0 | DA24: 0 | DB24: 0 | DC24: 0 | DD24: 0 | DE24: 0 | DF24: 0 | DG24: 0 | DH24: 0 | DI24: 0 | DJ24: 0 | DK24: 0 | DL24: 0 | DM24: 0 | DN24: 0 | DO24: 0 | DP24: 0 | DQ24: 0 | DR24: 0 | DS24: 0 | DT24: 0 | DU24: 0 | DV24: 0 | DW24: 0 | DX24: 0 | DY24: 0 | DZ24: 0 | EA24: 0 | EB24: 0 | EC24: 0 | ED24: 0 | EE24: 0 | EF24: 0 | EG24: 0 | EH24: 0 | EI24: 0 | EJ24: 0 | EK24: 0 | EL24: 0 | EM24: 0 | EN24: 0 | EO24: 0 | EP24: 0 | EQ24: 0 | ER24: 0 | ES24: 0 | ET24: 0 | EU24: 0 | EV24: 0 | EW24: 0 | EX24: 0 | EY24: 0 | EZ24: 0 | FA24: 0 | FB24: 0 | FC24: 0 | FD24: 0 | FE24: 0 | FF24: 0 | FG24: 0 | FH24: 0 | FI24: 0 | FJ24: 0 | FK24: 0 | FL24: 0 | FM24: 0 | FN24: 0 | FO24: 0 | FP24: 0 | FQ24: 0 | FR24: 0 | FS24: 0 | FT24: 0 | FU24: 0 | FV24: 0 | FW24: 0 | FX24: 0 | FY24: 0 | FZ24: 0 | GA24: 0 | GB24: 0 | GC24: 0 | GD24: 0 | GE24: 0 | GF24: 0 | GG24: 0 | GH24: 0 | GI24: 0 | GJ24: 0 | GK24: 0 | GL24: 0 | GM24: 0 | GN24: 0 | GO24: 0 | GP24: 0 | GQ24: 0 | GR24: 0 | GS24: 0 | GT24: 0 | GU24: 0 | GV24: 0 | GW24: 0 | GX24: 0 | GY24: 0 | GZ24: 0 | HA24: 0 | HB24: 0 | HC24: 0 | HD24: 0 | HE24: 0 | HF24: 0 | HG24: 0 | HH24: 0 | HI24: 0 | HJ24: 0 | HK24: 0 | HL24: 0 | HM24: 0 | HN24: 0 | HO24: 0 | HP24: 0 | HQ24: 0 | HR24: 0 | HS24: 0 | HT24: 0 | HU24: 0 | HV24: 0 | HW24: 0 | HX24: 0 | HY24: 0 | HZ24: 0 | IA24: 0 | IB24: 0 | IC24: 0 | ID24: 0 | IE24: 0 | IF24: 0 | IG24: 0 | IH24: 0 | II24: 0 | IJ24: 0 | IK24: 0 | IL24: 0 | IM24: 0 | IN24: 0 | IO24: 0 | IP24: 0 | IQ24: 0 | IR24: 0 | IS24: 0 | IT24: 0 | IU24: 0 | IV24: 0 | IW24: 0 | IX24: 0 | IY24: 0 | IZ24: 0 | JA24: - € | JB24: - € | JC24: - € | JD24: - € | JE24: - € | JF24: - € | JG24: - € | JH24: - € | JI24: - € | JJ24: - € | JK24: - € | JL24: - € | JM24: - € | JN24: - € | JO24: - € | JP24: - € | JQ24: - € | JR24: 0 | JS24: 0 | JT24: 0 | JU24: 0 | JV24: 0 | JW24: 0 | JX24: 0 | JY24: =(+JX24)*0.911004101199225 -> 0 | JZ24: 0 | KA24: 0 | KB24: 0 | KC24: =(+KB24)*0.911004101199225 -> 0 | KD24: 0 | KE24: 0 | KF24: 0 | KG24: 0 | KH24: 0 | KI24: 0 | KJ24: 0 | KK24: 0 | KL24: 0 | KM24: 0 | KN24: 0 | KO24: 0 | KP24: 0 | KQ24: 0 | KR24: 0 | KS24: 0 | KT24: 0 | KU24: 0 | KV24: 0 | KW24: 0 | KX24: 0 | KY24: 0 | KZ24: 0 | LA24: 0 | LB24: 0 | LC24: 0 | LD24: 0 | LE24: 0 | LF24: 0 | LG24: 0 | LH24: 0 | LI24: 0 | LJ24: 0 | LK24: 0 | LL24: 0 | LM24: 0 | LN24: 0 | LO24: 0 | LP24: 0 | LQ24: 0 | LR24: 0 | LS24: 0 | LT24: 0 | LU24: 0 | LV24: 0 | LW24: 0 | LX24: 0 | LY24: 0 | LZ24: 0 | MA24: 0 | MB24: 0 | MC24: 0 | MD24: 0 | ME24: 0 | MF24: 0 | MG24: 0 | MH24: 0 | MI24: 0 | MJ24: 0 | MK24: 0 | ML24: 0 | MM24: 0 | MN24: 0 | MO24: 0 | MP24: 0 | MQ24: 0 | MR24: 0 | MS24: 0 | MT24: 0
C25: Commerzbank | E25: LXF | G25: Sonstige Konten | H25: 228674.8563 | I25: 228674.8563 | J25: 228674.8563 | K25: 228674.8563 | L25: 228674.8563 | M25: 228674.8563 | N25: 228674.8563 | O25: 228674.8563 | P25: 228674.8563 | Q25: 228674.8563 | R25: 228674.8563 | S25: 228674.8563 | T25: 228674.8563 | U25: 228674.8563 | V25: 228674.8563 | W25: 228674.8563 | X25: 228674.8563 | Y25: 228674.8563 | Z25: 228674.8563 | AA25: 228674.8563 | AB25: 228674.8563 | AC25: 228674.8563 | AD25: 228674.8563 | AE25: 228674.8563 | AF25: 228674.8563 | AG25: 228674.8563 | AH25: 228674.8563 | AI25: 228674.8563 | AJ25: 228674.8563 | AK25: 228674.8563 | AL25: 228674.8563 | AM25: 228674.8563 | AN25: 228674.8563 | AO25: 228674.8563 | AP25: 228674.8563 | AQ25: 228674.8563 | AR25: 228674.8563 | AS25: 228674.8563 | AT25: 228674.8563 | AU25: 228674.8563 | AV25: 228674.8563 | AW25: 228674.8563 | AX25: 228674.8563 | AY25: 228674.8563 | AZ25: 228674.8563 | BA25: 228674.8563 | BB25: 228674.8563 | BC25: 228674.8563 | BD25: 228674.8563 | BE25: 228674.8563 | BF25: 228674.8563 | BG25: 228674.8563 | BH25: 228674.8563 | BI25: 228674.8563 | BJ25: 228674.8563 | BK25: 228674.8563 | BL25: 228674.8563 | BM25: 228674.8563 | BN25: 228674.8563 | BO25: 228674.8563 | BP25: 228674.8563 | BQ25: 228674.8563 | BR25: 228674.8563 | BS25: 228674.8563 | BT25: 228674.8563 | BU25: 228674.8563 | BV25: 228674.8563 | BW25: 228674.8563 | BX25: 228674.8563 | BY25: 228674.8563 | BZ25: 228674.8563 | CA25: 228674.8563 | CB25: 228674.8563 | CC25: 228674.8563 | CD25: 228674.8563 | CE25: 228674.8563 | CF25: 228674.8563 | CG25: 228674.8563 | CH25: 228674.8563 | CI25: 228674.8563 | CJ25: 228674.8563 | CK25: 228674.8563 | CL25: 228674.8563 | CM25: 228674.8563 | CN25: 228674.8563 | CO25: 228674.8563 | CP25: 228674.8563 | CQ25: 228674.8563 | CR25: 228674.8563 | CS25: 228674.8563 | CT25: 228674.8563 | CU25: 228674.8563 | CV25: 228674.8563 | CW25: 228674.8563 | CX25: 228674.8563 | CY25: 228674.8563 | CZ25: 228674.8563 | DA25: 228674.8563 | DB25: 228674.8563 | DC25: 228674.8563 | DD25: 228674.8563 | DE25: 228674.8563 | DF25: 228674.8563 | DG25: 228674.8563 | DH25: 228674.8563 | DI25: 228674.8563 | DJ25: 228674.8563 | DK25: 228674.8563 | DL25: 228674.8563 | DM25: 228674.8563 | DN25: 228674.8563 | DO25: 228674.8563 | DP25: 228674.8563 | DQ25: 228674.8563 | DR25: 228674.8563 | DS25: 228674.8563 | DT25: 228674.8563 | DU25: 228674.8563 | DV25: 228674.8563 | DW25: 228674.8563 | DX25: 228674.8563 | DY25: 228674.8563 | DZ25: 228674.8563 | EA25: 228674.8563 | EB25: 228674.8563 | EC25: 228674.8563 | ED25: 228674.8563 | EE25: 228674.8563 | EF25: 228674.8563 | EG25: 228674.8563 | EH25: 228674.8563 | EI25: 228674.8563 | EJ25: 228674.8563 | EK25: 228674.8563 | EL25: 228674.8563 | EM25: 228674.8563 | EN25: 228674.8563 | EO25: 228674.8563 | EP25: 228674.8563 | EQ25: 228674.8563 | ER25: 228674.8563 | ES25: 228674.8563 | ET25: 228674.8563 | EU25: 228674.8563 | EV25: 228674.8563 | EW25: 228674.8563 | EX25: 228674.8563 | EY25: 228674.8563 | EZ25: 228674.8563 | FA25: 228674.8563 | FB25: 228674.8563 | FC25: 228674.8563 | FD25: 228674.8563 | FE25: 228674.8563 | FF25: 228674.8563 | FG25: 228674.8563 | FH25: 228674.8563 | FI25: 228674.8563 | FJ25: 228674.8563 | FK25: 228674.8563 | FL25: 228674.8563 | FM25: 228674.8563 | FN25: 228674.8563 | FO25: 228674.8563 | FP25: 228674.8563 | FQ25: 228674.8563 | FR25: 228674.8563 | FS25: 228674.8563 | FT25: 228674.8563 | FU25: 228674.8563 | FV25: 228674.8563 | FW25: 228674.8563 | FX25: 228674.8563 | FY25: 228674.8563 | FZ25: 228674.8563 | GA25: 228674.8563 | GB25: 228674.8563 | GC25: 228674.8563 | GD25: 228674.8563 | GE25: 228674.8563 | GF25: 228674.8563 | GG25: 228674.8563 | GH25: 228674.8563 | GI25: 228674.8563 | GJ25: 228674.8563 | GK25: 228674.8563 | GL25: 228674.8563 | GM25: 228674.8563 | GN25: 228674.8563 | GO25: 228674.8563 | GP25: 228674.8563 | GQ25: 228674.8563 | GR25: 228674.8563 | GS25: 228674.8563 | GT25: 228674.8563 | GU25: 228674.8563 | GV25: 228674.8563 | GW25: 228674.8563 | GX25: 228674.8563 | GY25: 228674.8563 | GZ25: 228674.8563 | HA25: 228674.8563 | HB25: 228674.8563 | HC25: 228674.8563 | HD25: 228674.8563 | HE25: 228674.8563 | HF25: 228674.8563 | HG25: 228674.8563 | HH25: 228674.8563 | HI25: 228674.8563 | HJ25: 228674.8563 | HK25: 228674.8563 | HL25: 228674.8563 | HM25: 228674.8563 | HN25: 228674.8563 | HO25: 228674.8563 | HP25: 228674.8563 | HQ25: 228674.8563 | HR25: 228674.8563 | HS25: 228674.8563 | HT25: 228674.8563 | HU25: 228674.8563 | HV25: 228674.8563 | HW25: 228674.8563 | HX25: 228674.8563 | HY25: 228674.8563 | HZ25: 228674.8563 | IA25: 228674.8563 | IB25: 228674.8563 | IC25: 228674.8563 | ID25: 228674.8563 | IE25: 228674.8563 | IF25: 228674.8563 | IG25: 228674.8563 | IH25: 228674.8563 | II25: 228674.8563 | IJ25: 228674.8563 | IK25: 228674.8563 | IL25: 228674.8563 | IM25: 228674.8563 | IN25: 228674.8563 | IO25: 228674.8563 | IP25: 228674.8563 | IQ25: 228674.8563 | IR25: 228674.8563 | IS25: 228674.8563 | IT25: 228674.8563 | IU25: 228674.8563 | IV25: 228674.8563 | IW25: 228674.8563 | IX25: 228674.8563 | IY25: 228674.8563 | IZ25: 228674.8563 | JA25: 228674.8563 | JB25: 228674.8563 | JC25: 228674.8563 | JD25: 228674.8563 | JE25: 228674.8563 | JF25: 228674.8563 | JG25: 228674.8563 | JH25: 228674.8563 | JI25: 228674.8563 | JJ25: 228674.8563 | JK25: 228674.8563 | JL25: 228674.8563 | JM25: 228674.8563 | JN25: 228674.8563 | JO25: 228674.8563 | JP25: 228674.8563 | JQ25: 228674.8563 | JR25: 228674.8563 | JS25: 228674.8563 | JT25: 228674.8563 | JU25: 208323.732 | JV25: 189783.7742 | JW25: 172893.7966 | JX25: 157506.9578 | JY25: 143489.4845 | JZ25: 130719.5089 | KA25: 119086.0087 | KB25: =(+KA25)*0.911004101199225 -> 108487.8423 | KC25: =(+KB25)*0.911004101199225 -> 98832.86929 | KD25: 90037.14925 | KE25: 82024.21223 | KF25: 74724.39374 | KG25: 68074.22916 | KH25: 62015.90195 | KI25: 56496.74101 | KJ25: 51468.76277 | KK25: =(+KJ25)*0.911004101199225 -> 46888.25396 | KL25: =(KK25)*0.911004101199225 -> 42715.39166 | KM25: 0 | KN25: 0 | KO25: 0 | KP25: 0 | KQ25: 0 | KR25: 0 | KS25: 0 | KT25: 0 | KU25: 0 | KV25: 0 | KW25: 0 | KX25: 0 | KY25: 0 | KZ25: 0 | LA25: 0 | LB25: 0 | LC25: 0 | LD25: 0 | LE25: 0 | LF25: 0 | LG25: 0 | LH25: 0 | LI25: 0 | LJ25: 0 | LK25: 0 | LL25: 0 | LM25: 0 | LN25: 0 | LO25: 0 | LP25: 0 | LQ25: 0 | LR25: 0 | LS25: 0 | LT25: 0 | LU25: 0 | LV25: 0 | LW25: 0 | LX25: 0 | LY25: 0 | LZ25: 0 | MA25: 0 | MB25: 0 | MC25: 0 | MD25: 0 | ME25: 0 | MF25: 0 | MG25: 0 | MH25: 0 | MI25: 0 | MJ25: 0 | MK25: 0 | ML25: 0 | MM25: 0 | MN25: 0 | MO25: 0 | MP25: 0 | MQ25: 0 | MR25: 0 | MS25: 0 | MT25: 0
C26: HVB | E26: LXF | G26: Sonst. Girokonten | H26: 5227.778815 | I26: 1102.998216 | J26: 8409.296657 | K26: 2180.069254 | L26: 2778.562509 | M26: 13326.42307 | N26: 52748.02113 | O26: 272.0713748 | P26: 200.3753521 | Q26: 599.2220576 | R26: 599.2220576 | S26: 711.2209018 | T26: 711.2209018 | U26: 711.2209018 | V26: 711.2209018 | W26: 711.2209018 | X26: 711.2209018 | Y26: 255504.3644 | Z26: 942.1604415 | AA26: 942.1604415 | AB26: 942.1604415 | AC26: 1020.506794 | AD26: 3935.719918 | AE26: 3935.719918 | AF26: 3935.719918 | AG26: 3935.719918 | AH26: 0 | AI26: 0 | AJ26: 0 | AK26: 0 | AL26: 0 | AM26: 0 | AN26: 0 | AO26: 0 | AP26: 0 | AQ26: 797.666081 | AR26: 797.666081 | AS26: 4564.431178 | AT26: 4564.431178 | AU26: 5498.656774 | AV26: 5498.656774 | AW26: 5498.656774 | AX26: 5498.656774 | AY26: 5498.656774 | AZ26: 5498.656774 | BA26: 5498.656774 | BB26: 5065.018822 | BC26: 0 | BD26: 218578.0339 | BE26: 218578.0339 | BF26: 218568.9239 | BG26: 218624.6044 | BH26: 218624.6044 | BI26: 218729.8618 | BJ26: 218333.9212 | BK26: 214966.2762 | BL26: 214966.2762 | BM26: 214966.2762 | BN26: 214966.2762 | BO26: 278736.5632 | BP26: 26039.40332 | BQ26: 159293.7952 | BR26: 114857.5113 | BS26: 114857.5113 | BT26: 114664.5606 | BU26: 114664.5606 | BV26: 108643.7345 | BW26: 27888.68698 | BX26: 27934.23719 | BY26: 23418.57206 | BZ26: 23418.57206 | CA26: 0 | CB26: 0 | CC26: 0 | CD26: 0 | CE26: 0 | CF26: 0 | CG26: 0 | CH26: 0 | CI26: 0 | CJ26: 0 | CK26: 409951.8455 | CL26: 122759.9708 | CM26: 27190.99449 | CN26: 27190.99449 | CO26: 27190.99449 | CP26: 27108.0749 | CQ26: 185604.5047 | CR26: 185604.5047 | CS26: 0 | CT26: 0 | CU26: 0 | CV26: 0 | CW26: 0 | CX26: 0 | CY26: 0 | CZ26: 0 | DA26: 0 | DB26: 0 | DC26: 25786.46303 | DD26: 25896.4941 | DE26: 71446.69916 | DF26: 28991.29346 | DG26: 29068.86546 | DH26: 28757.30206 | DI26: 28757.30206 | DJ26: 28714.66707 | DK26: 28714.66707 | DL26: 189051.3889 | DM26: 189051.3889 | DN26: 189051.3889 | DO26: 40060.5399 | DP26: 40060.5399 | DQ26: 40051.42986 | DR26: 39875.05035 | DS26: 39808.02778 | DT26: 39899.12819 | DU26: 39562.91302 | DV26: 41320.34014 | DW26: 37952.69505 | DX26: 38045.1984 | DY26: 38045.1984 | DZ26: 38045.1984 | EA26: 49058.09012 | EB26: 0 | EC26: 0 | ED26: 40768.76359 | EE26: 40768.76359 | EF26: 40768.76359 | EG26: 18995.76558 | EH26: 18995.76558 | EI26: 15939.4197 | EJ26: 0 | EK26: 0 | EL26: 0 | EM26: 0 | EN26: 0 | EO26: 0 | EP26: 0 | EQ26: 0 | ER26: 0 | ES26: 0 | ET26: 346181.5585 | EU26: 346181.5585 | EV26: 0 | EW26: 12697.56605 | EX26: 5586.304479 | EY26: 5586.304479 | EZ26: 3242.691768 | FA26: 94343.10189 | FB26: 76616.64744 | FC26: 76616.64744 | FD26: 179842.6406 | FE26: 172014.1546 | FF26: 172005.0445 | FG26: 172142.0687 | FH26: 171338.2715 | FI26: 168938.2677 | FJ26: 167216.7797 | FK26: 167216.7797 | FL26: 166852.378 | FM26: 440153.6084 | FN26: 194407.1182 | FO26: 194407.1182 | FP26: 194407.1182 | FQ26: 149887.5503 | FR26: 149887.5503 | FS26: 149887.5503 | FT26: 148898.6736 | FU26: 148898.6736 | FV26: 131407.3948 | FW26: 128850.4341 | FX26: 128850.4341 | FY26: 0 | FZ26: 0 | GA26: 0 | GB26: 60.42690203 | GC26: 60.42690203 | GD26: 60.42690203 | GE26: 60.42690203 | GF26: 60.42690203 | GG26: 60.42690203 | GH26: 60.42690203 | GI26: 273301.2304 | GJ26: 35351.41394 | GK26: 0 | GL26: 86814.8373 | GM26: 86814.8373 | GN26: 87129.1246 | GO26: 87129.1246 | GP26: 70366.64914 | GQ26: 70366.64914 | GR26: 70239.21789 | GS26: 147550.3966 | GT26: 83631.02372 | GU26: 17710.19303 | GV26: 17710.19303 | GW26: 17810.06641 | GX26: 17756.92754 | GY26: 17756.92754 | GZ26: 17756.92754 | HA26: 15524.11115 | HB26: 15524.11115 | HC26: 15524.11115 | HD26: 288825.3415 | HE26: 288825.3415 | HF26: 49225.31403 | HG26: 2925.079298 | HH26: 2925.079298 | HI26: 3025.553941 | HJ26: 3025.553941 | HK26: 3025.553941 | HL26: 3307.937882 | HM26: 8538.841441 | HN26: 8538.841441 | HO26: 0 | HP26: 0 | HQ26: 0 | HR26: 0 | HS26: 0 | HT26: 0 | HU26: 0 | HV26: 0 | HW26: 0 | HX26: 0 | HY26: 0 | HZ26: 0 | IA26: 4691.816882 | IB26: 4684.073347 | IC26: 4684.073347 | ID26: 4684.073347 | IE26: 4684.073347 | IF26: 4684.073347 | IG26: 4684.073347 | IH26: 4684.073347 | II26: 4684.073347 | IJ26: 4684.073347 | IK26: 4684.073347 | IL26: 27127.80725 | IM26: 27127.80725 | IN26: 27118.6972 | IO26: 27060.91221 | IP26: 27060.91221 | IQ26: 27060.91221 | IR26: 27060.91221 | IS26: 24957.50395 | IT26: 26307.77601 | IU26: 26307.77601 | IV26: 25266.41634 | IW26: 25383.38015 | IX26: 25383.38015 | IY26: 0 | IZ26: 0 | JA26: 0 | JB26: 0 | JC26: 13207.03599 | JD26: 452.9785692 | JE26: 228192.753 | JF26: 228192.753 | JG26: 228192.753 | JH26: 33271.46403 | JI26: 33271.46403 | JJ26: 32624.65112 | JK26: 32575.9124 | JL26: 32484.81199 | JM26: 32484.81199 | JN26: 30381.40373 | JO26: 30027.74283 | JP26: 30027.74283 | JQ26: 30027.74283 | JR26: 212228.5631 | JS26: 38739.33798 | JT26: 38739.33798 | JU26: 3662.099836 | JV26: =(JU26)*0.911004101199225 -> 3336.18797 | JW26: =(JV26)*0.911004101199225 -> 3039.280923 | JX26: 21870.93096 | JY26: =(+JX26)*0.911004101199225 -> 19924.5078 | JZ26: 9688.073114 | KA26: 0 | KB26: 0 | KC26: =(+KB26)*0.911004101199225 -> 0 | KD26: 0 | KE26: 0 | KF26: 0 | KG26: 0 | KH26: 0 | KI26: 0 | KJ26: 0 | KK26: 0 | KL26: 0 | KM26: 0 | KN26: 0 | KO26: 0 | KP26: 0 | KQ26: 0 | KR26: 0 | KS26: 0 | KT26: 0 | KU26: 0 | KV26: 0 | KW26: 0 | KX26: 0 | KY26: 0 | KZ26: 0 | LA26: 0 | LB26: 0 | LC26: 0 | LD26: 0 | LE26: 0 | LF26: 0 | LG26: 0 | LH26: 0 | LI26: 0 | LJ26: 0 | LK26: 0 | LL26: 0 | LM26: 0 | LN26: 0 | LO26: 0 | LP26: 0 | LQ26: 0 | LR26: 0 | LS26: 0 | LT26: 0 | LU26: 0 | LV26: 0 | LW26: 0 | LX26: 0 | LY26: 0 | LZ26: 0 | MA26: 0 | MB26: 0 | MC26: 0 | MD26: 0 | ME26: 0 | MF26: 0 | MG26: 0 | MH26: 0 | MI26: 0 | MJ26: 0 | MK26: 0 | ML26: 0 | MM26: 0 | MN26: 0 | MO26: 0 | MP26: 0 | MQ26: 0 | MR26: 0 | MS26: 0 | MT26: 0
C27: HVB | E27: LXV | G27: HVB KK Vertrieb | H27: 921505.701 | I27: 167667.0525 | J27: 88892.19995 | K27: 486053.2473 | L27: 152199.7698 | M27: 1454678.212 | N27: 1530281.504 | O27: 1002252.404 | P27: 1760757.716 | Q27: 1075258.742 | R27: 1657967.62 | S27: 2427050.683 | T27: 2614247.805 | U27: 2764181.699 | V27: 2282965.182 | W27: 3090470.899 | X27: 3579484.227 | Y27: 2416805.048 | Z27: 2660944.546 | AA27: 2037905.452 | AB27: 2422079.298 | AC27: 1371334.556 | AD27: 1605199.594 | AE27: 2223960.065 | AF27: 2548468.937 | AG27: 2974494.511 | AH27: 2001847.509 | AI27: 1982349.461 | AJ27: 2376375.525 | AK27: 2541341.86 | AL27: 2554023.948 | AM27: 1439545.851 | AN27: 2015664.881 | AO27: 2240778.44 | AP27: 2385344.059 | AQ27: 2726757.605 | AR27: 2048018.381 | AS27: 2207107.61 | AT27: 2343583.814 | AU27: 1965046.605 | AV27: 1750621.466 | AW27: 2246349.895 | AX27: 2736052.151 | AY27: 3226671.797 | AZ27: 3467832.94 | BA27: 2286766.364 | BB27: 2715622.866 | BC27: 3192972.89 | BD27: 2155359.216 | BE27: 2207977.054 | BF27: 1571822.899 | BG27: 2258053.519 | BH27: 2614852.302 | BI27: 2883893.021 | BJ27: 2155244.42 | BK27: 2624485.296 | BL27: 2789220.856 | BM27: 2943160.27 | BN27: 3328255.615 | BO27: 2290140.888 | BP27: 2321431.61 | BQ27: 3017334.734 | BR27: 2962179.148 | BS27: 1262436.359 | BT27: 1368375.751 | BU27: 1986062.304 | BV27: 2143836.316 | BW27: 2448643.284 | BX27: 2486225.957 | BY27: 1827863.918 | BZ27: 2079684.519 | CA27: 1053677.155 | CB27: 1694759.168 | CC27: 1746498.179 | CD27: 2082630.005 | CE27: 2725991.878 | CF27: 2746846.511 | CG27: 3839506.716 | CH27: 2417799.847 | CI27: 3026063.511 | CJ27: 3219294.295 | CK27: 4145528.663 | CL27: 3347245.777 | CM27: 3561526.997 | CN27: 3288522.098 | CO27: 3906425.807 | CP27: 4639020.951 | CQ27: 2835113.143 | CR27: 3100378.57 | CS27: 3278626.188 | CT27: 3339992.545 | CU27: 2119086.121 | CV27: 2126584.586 | CW27: 2226999.038 | CX27: 2226935.259 | CY27: 2223246.193 | CZ27: 2250296.52 | DA27: 2236303.561 | DB27: 2628750.9 | DC27: 3175842.251 | DD27: 3634270.601 | DE27: 3924992.517 | DF27: 4293512.898 | DG27: 3644422.631 | DH27: 3625456.874 | DI27: 3622963.136 | DJ27: 3891659.278 | DK27: 4234082.571 | DL27: 2779072.416 | DM27: 2938697.835 | DN27: 3118526.337 | DO27: 3314990.903 | DP27: 3550514.898 | DQ27: 4542971.32 | DR27: 2749519.224 | DS27: 3018019.682 | DT27: 3070533.775 | DU27: 3432252.7 | DV27: 3415021.185 | DW27: 3667767.484 | DX27: 4258771.11 | DY27: 4592837.625 | DZ27: 2428659.407 | EA27: 2771224.835 | EB27: 3004156.167 | EC27: 3206275.299 | ED27: 3512447.052 | EE27: 2901944.887 | EF27: 3513101.745 | EG27: 4415202.129 | EH27: 2584256.129 | EI27: 3507762.213 | EJ27: 4180814.293 | EK27: 2947691.44 | EL27: 3775901.184 | EM27: 4083796.474 | EN27: 4689097.708 | EO27: 4888987.741 | EP27: 4902684.851 | EQ27: 4074612.022 | ER27: 4231790.676 | ES27: 4567006.505 | ET27: 5250153.513 | EU27: 5545840.264 | EV27: 5571397.218 | EW27: 3828554.433 | EX27: 4213472.733 | EY27: 4495152.414 | EZ27: 5085800.666 | FA27: 5799184.227 | FB27: 6464064.382 | FC27: 6824951.697 | FD27: 4812667.689 | FE27: 5010649.04 | FF27: 5161954.96 | FG27: 5734425.856 | FH27: 6551161.439 | FI27: 6800445.076 | FJ27: 7105761.441 | FK27: 7447762.529 | FL27: 5352718.445 | FM27: 5670686.088 | FN27: 5731006.903 | FO27: 5918120.905 | FP27: 6078907.108 | FQ27: 6329500.868 | FR27: 5085525.151 | FS27: 5232866.955 | FT27: 5280234.95 | FU27: 5830295.473 | FV27: 5844511.3 | FW27: 6507453.321 | FX27: 4814145.729 | FY27: 5227036.957 | FZ27: 6116378.428 | GA27: 6438260.574 | GB27: 6677971.233 | GC27: 7260973.063 | GD27: 5442418.295 | GE27: 4829690.183 | GF27: 4865113.348 | GG27: 5572111.08 | GH27: 5713583.285 | GI27: 5816703.474 | GJ27: 5949192.495 | GK27: 6112614.332 | GL27: 5109574.293 | GM27: 4342198.068 | GN27: 4566486.868 | GO27: 4616708.429 | GP27: 5199333.641 | GQ27: 5477667.704 | GR27: 4668086.136 | GS27: 4726639.412 | GT27: 3414475.348 | GU27: 3603633.242 | GV27: 3785295.85 | GW27: 3761999.562 | GX27: 3802239.342 | GY27: 4419255.742 | GZ27: 5003144.307 | HA27: 5494978.176 | HB27: 5553185.125 | HC27: 5597221.159 | HD27: 4327558.624 | HE27: 4639294.598 | HF27: 4790498.395 | HG27: 5531391.894 | HH27: 4991883.303 | HI27: 5146446.172 | HJ27: 5562531.79 | HK27: 5793100.26 | HL27: 5827097.648 | HM27: 3996516.141 | HN27: 4183824.296 | HO27: 4535984.857 | HP27: 4597104.596 | HQ27: 4921625.41 | HR27: 5313849.27 | HS27: 4221692.496 | HT27: 4584856.555 | HU27: 4728297.267 | HV27: 5604583.712 | HW27: 5795524.187 | HX27: 5997500.656 | HY27: 6062745.549 | HZ27: 6359682.361 | IA27: 4657812.852 | IB27: 4899997.471 | IC27: 5109782.612 | ID27: 4254233.69 | IE27: 4345792.736 | IF27: 4721103.915 | IG27: 4692290.786 | IH27: 4892158.754 | II27: 5154007.333 | IJ27: 5694772.9 | IK27: 3532180.913 | IL27: 4056218.512 | IM27: 4444957.773 | IN27: 4529426.256 | IO27: 4700490.233 | IP27: 4914867.345 | IQ27: 4976727.757 | IR27: 5094254.264 | IS27: 5254670.043 | IT27: 5699323.256 | IU27: 4310830.776 | IV27: 4635756.623 | IW27: 5053401.898 | IX27: 5334279.831 | IY27: 5662127.979 | IZ27: 5732658.226 | JA27: 5034538.137 | JB27: 3348073.343 | JC27: 3527915.227 | JD27: 3693601.001 | JE27: 2926180.256 | JF27: 3371949.667 | JG27: 3663652.215 | JH27: 3657974.272 | JI27: 3729157.718 | JJ27: 3713314.984 | JK27: 4003107.128 | JL27: 4102665.291 | JM27: 4189653.866 | JN27: 4303581.078 | JO27: 4394295.633 | JP27: 4687289.647 | JQ27: 5338992.054 | JR27: 5835522.113 | JS27: 4566323.689 | JT27: 4975648.5 | JU27: 4324075.081 | JV27: 4634930.142 | JW27: 5083666.22 | JX27: 4613941.518 | JY27: 5382608.836 | JZ27: 5489222.416 | KA27: 5007752.567 | KB27: 5449666.618 | KC27: 5835478.676 | KD27: 4720255.697 | KE27: 5013929.712 | KF27: 5011769.721 | KG27: 3701418.773 | KH27: 5592462.866 | KI27: 5888757.84 | KJ27: 5025834.714 | KK27: 5223381.398 | KL27: 5721098.467 | KM27: 0 | KN27: 0 | KO27: 0 | KP27: 0 | KQ27: 0 | KR27: 0 | KS27: 0 | KT27: 0 | KU27: 0 | KV27: 0 | KW27: 0 | KX27: 0 | KY27: 0 | KZ27: 0 | LA27: 0 | LB27: 0 | LC27: 0 | LD27: 0 | LE27: 0 | LF27: 0 | LG27: 0 | LH27: 0 | LI27: 0 | LJ27: 0 | LK27: 0 | LL27: 0 | LM27: 0 | LN27: 0 | LO27: 0 | LP27: 0 | LQ27: 0 | LR27: 0 | LS27: 0 | LT27: 0 | LU27: 0 | LV27: 0 | LW27: 0 | LX27: 0 | LY27: 0 | LZ27: 0 | MA27: 0 | MB27: 0 | MC27: 0 | MD27: 0 | ME27: 0 | MF27: 0 | MG27: 0 | MH27: 0 | MI27: 0 | MJ27: 0 | MK27: 0 | ML27: 0 | MM27: 0 | MN27: 0 | MO27: 0 | MP27: 0 | MQ27: 0 | MR27: 0 | MS27: 0 | MT27: 0
C28: HVB | E28: LXW | G28: Sonst. Girokonten | H28: 4238.464801 | I28: 4500.934193 | J28: 4471.763841 | K28: 3043.509831 | L28: 2363.354169 | M28: 1969.426886 | N28: 1943.463269 | O28: 1917.636303 | P28: 1891.672686 | Q28: 1891.672686 | R28: 1891.672686 | S28: 4510.399525 | T28: 4510.399525 | U28: 4510.399525 | V28: 4510.399525 | W28: 4510.399525 | X28: 4510.399525 | Y28: 4510.399525 | Z28: 4330.676636 | AA28: 4330.676636 | AB28: 4330.676636 | AC28: 4330.676636 | AD28: 4330.676636 | AE28: 4330.676636 | AF28: 4330.676636 | AG28: 4330.676636 | AH28: 4330.676636 | AI28: 4330.676636 | AJ28: 4330.676636 | AK28: 4304.84967 | AL28: 4304.84967 | AM28: 4304.84967 | AN28: 4304.84967 | AO28: 4304.84967 | AP28: 4304.84967 | AQ28: 4304.84967 | AR28: 4304.84967 | AS28: 4304.84967 | AT28: 4304.84967 | AU28: 4304.84967 | AV28: 4304.84967 | AW28: 4304.84967 | AX28: 4304.84967 | AY28: 4304.84967 | AZ28: 4304.84967 | BA28: 4304.84967 | BB28: 4304.84967 | BC28: 4304.84967 | BD28: 4304.84967 | BE28: 4304.84967 | BF28: 4304.84967 | BG28: 4279.022703 | BH28: 4279.022703 | BI28: 4279.022703 | BJ28: 4279.022703 | BK28: 4279.022703 | BL28: 4279.022703 | BM28: 4279.022703 | BN28: 4279.022703 | BO28: 4279.022703 | BP28: 4279.022703 | BQ28: 4279.022703 | BR28: 4279.022703 | BS28: 4279.022703 | BT28: 4279.022703 | BU28: 4279.022703 | BV28: 4279.022703 | BW28: 4279.022703 | BX28: 4279.022703 | BY28: 4279.022703 | BZ28: 4279.022703 | CA28: 4279.022703 | CB28: 4102.297018 | CC28: 4076.333401 | CD28: 4076.333401 | CE28: 4076.333401 | CF28: 4076.333401 | CG28: 4076.333401 | CH28: 4076.333401 | CI28: 4076.333401 | CJ28: 4076.333401 | CK28: 4076.333401 | CL28: 4076.333401 | CM28: 4076.333401 | CN28: 4076.333401 | CO28: 4076.333401 | CP28: 4076.333401 | CQ28: 4076.333401 | CR28: 4076.333401 | CS28: 4076.333401 | CT28: 4076.333401 | CU28: 4050.506435 | CV28: 4050.506435 | CW28: 4050.506435 | CX28: 4050.506435 | CY28: 3664.240696 | CZ28: 3664.240696 | DA28: 3664.240696 | DB28: 3664.240696 | DC28: 3664.240696 | DD28: 3664.240696 | DE28: 3664.240696 | DF28: 3664.240696 | DG28: 3664.240696 | DH28: 3664.240696 | DI28: 3664.240696 | DJ28: 3664.240696 | DK28: 3664.240696 | DL28: 3664.240696 | DM28: 3664.240696 | DN28: 3664.240696 | DO28: 3664.240696 | DP28: 3664.240696 | DQ28: 3664.240696 | DR28: 2866.201103 | DS28: 2866.201103 | DT28: 2866.201103 | DU28: 2866.201103 | DV28: 2866.201103 | DW28: 2866.201103 | DX28: 2866.201103 | DY28: 2866.201103 | DZ28: 9278.968502 | EA28: 9278.968502 | EB28: 9278.968502 | EC28: 9278.968502 | ED28: 9278.968502 | EE28: 9278.968502 | EF28: 9278.968502 | EG28: 9278.968502 | EH28: 9278.968502 | EI28: 9278.968502 | EJ28: 9278.968502 | EK28: 9278.968502 | EL28: 9278.968502 | EM28: 9253.141536 | EN28: 9253.141536 | EO28: 9253.141536 | EP28: 9253.141536 | EQ28: 9253.141536 | ER28: 9253.141536 | ES28: 9253.141536 | ET28: 9253.141536 | EU28: 9253.141536 | EV28: 9253.141536 | EW28: 9253.141536 | EX28: 9253.141536 | EY28: 9253.141536 | EZ28: 9253.141536 | FA28: 9253.141536 | FB28: 9253.141536 | FC28: 9253.141536 | FD28: 9253.141536 | FE28: 9253.141536 | FF28: 9253.141536 | FG28: 9227.31457 | FH28: 9227.31457 | FI28: 9227.31457 | FJ28: 9227.31457 | FK28: 9227.31457 | FL28: 9227.31457 | FM28: 9227.31457 | FN28: 9227.31457 | FO28: 9022.156446 | FP28: 9022.156446 | FQ28: 9022.156446 | FR28: 9022.156446 | FS28: 9022.156446 | FT28: 8912.835954 | FU28: 8912.835954 | FV28: 8912.835954 | FW28: 8912.835954 | FX28: 8912.835954 | FY28: 8912.835954 | FZ28: 8912.835954 | GA28: 8912.835954 | GB28: 8887.008988 | GC28: 8887.008988 | GD28: 8887.008988 | GE28: 8887.008988 | GF28: 8887.008988 | GG28: 8887.008988 | GH28: 8887.008988 | GI28: 8887.008988 | GJ28: 8887.008988 | GK28: 8887.008988 | GL28: 8887.008988 | GM28: 8887.008988 | GN28: 8887.008988 | GO28: 8792.720063 | GP28: 8792.720063 | GQ28: 8792.720063 | GR28: 8792.720063 | GS28: 8792.720063 | GT28: 8792.720063 | GU28: 8792.720063 | GV28: 8792.720063 | GW28: 8792.720063 | GX28: 8766.756447 | GY28: 8766.756447 | GZ28: 8766.756447 | HA28: 8766.756447 | HB28: 8766.756447 | HC28: 8766.756447 | HD28: 8766.756447 | HE28: 8766.756447 | HF28: 8766.756447 | HG28: 8766.756447 | HH28: 8766.756447 | HI28: 8766.756447 | HJ28: 8766.756447 | HK28: 8766.756447 | HL28: 8766.756447 | HM28: 8766.756447 | HN28: 8766.756447 | HO28: 8766.756447 | HP28: 8766.756447 | HQ28: 8766.756447 | HR28: 8740.92948 | HS28: 8740.92948 | HT28: 8740.92948 | HU28: 8740.92948 | HV28: 8740.92948 | HW28: 8740.92948 | HX28: 8740.92948 | HY28: 8740.92948 | HZ28: 8740.92948 | IA28: 8740.92948 | IB28: 8740.92948 | IC28: 8740.92948 | ID28: 8740.92948 | IE28: 8740.92948 | IF28: 8740.92948 | IG28: 8740.92948 | IH28: 8740.92948 | II28: 8740.92948 | IJ28: 8740.92948 | IK28: 8740.92948 | IL28: 8740.92948 | IM28: 8740.92948 | IN28: 8740.92948 | IO28: 8715.102514 | IP28: 8715.102514 | IQ28: 8715.102514 | IR28: 8715.102514 | IS28: 8715.102514 | IT28: 8715.102514 | IU28: 8715.102514 | IV28: 8715.102514 | IW28: 8715.102514 | IX28: 8715.102514 | IY28: 8715.102514 | IZ28: 8715.102514 | JA28: 8715.102514 | JB28: 8715.102514 | JC28: 8715.102514 | JD28: 8715.102514 | JE28: 8715.102514 | JF28: 8715.102514 | JG28: 8715.102514 | JH28: 8715.102514 | JI28: 8715.102514 | JJ28: 8715.102514 | JK28: 8689.275548 | JL28: 8689.275548 | JM28: 8689.275548 | JN28: 8689.275548 | JO28: 8689.275548 | JP28: 8689.275548 | JQ28: 8689.275548 | JR28: 8689.275548 | JS28: 8689.275548 | JT28: 8689.275548 | JU28: =(JT28)*0.911004101199225 -> 7915.96566 | JV28: =(JU28)*0.911004101199225 -> 7211.477182 | JW28: =(JV28)*0.911004101199225 -> 6569.685288 | JX28: =(JW28)*0.911004101199225 -> 5985.010241 | JY28: =(+JX28)*0.911004101199225 -> 5452.368875 | JZ28: =(+JY28)*0.911004101199225 -> 4967.130407 | KA28: 6907.214875 | KB28: 6727.491986 | KC28: =(+KB28)*0.911004101199225 -> 6128.77279 | KD28: =(KC28)*0.911004101199225 -> 5583.337147 | KE28: =(+KD28)*0.911004101199225 -> 5086.443039 | KF28: =(KE28)*0.911004101199225 -> 4633.770469 | KG28: =(KF28)*0.911004101199225 -> 4221.383902 | KH28: 6701.346168 | KI28: =(+KH28)*0.911004101199225 -> 6104.953843 | KJ28: =(KI28)*0.911004101199225 -> 5561.637989 | KK28: =(+KJ28)*0.911004101199225 -> 5066.675017 | KL28: =(+KK28)*0.911004101199225 -> 4615.76172 | KM28: 0 | KN28: 0 | KO28: 0 | KP28: 0 | KQ28: 0 | KR28: 0 | KS28: 0 | KT28: 0 | KU28: 0 | KV28: 0 | KW28: 0 | KX28: 0 | KY28: 0 | KZ28: 0 | LA28: 0 | LB28: 0 | LC28: 0 | LD28: 0 | LE28: 0 | LF28: 0 | LG28: 0 | LH28: 0 | LI28: 0 | LJ28: 0 | LK28: 0 | LL28: 0 | LM28: 0 | LN28: 0 | LO28: 0 | LP28: 0 | LQ28: 0 | LR28: 0 | LS28: 0 | LT28: 0 | LU28: 0 | LV28: 0 | LW28: 0 | LX28: 0 | LY28: 0 | LZ28: 0 | MA28: 0 | MB28: 0 | MC28: 0 | MD28: 0 | ME28: 0 | MF28: 0 | MG28: 0 | MH28: 0 | MI28: 0 | MJ28: 0 | MK28: 0 | ML28: 0 | MM28: 0 | MN28: 0 | MO28: 0 | MP28: 0 | MQ28: 0 | MR28: 0 | MS28: 0 | MT28: 0
G31: Diagrammtabelle:
G32: Summen: | H32: =H8 -> 30.12.2022 | I32: 31.01.2023 | J32: 01.02.2023 | K32: 28.02.2023 | L32: 31.03.2023 | M32: 30.06.2023 | N32: 31.07.2023 | O32: 31.08.2023 | P32: 01.09.2023 | Q32: 04.09.2023 | R32: 05.09.2023 | S32: 06.09.2023 | T32: 07.09.2023 | U32: 08.09.2023 | V32: 11.09.2023 | W32: 12.09.2023 | X32: 13.09.2023 | Y32: 14.09.2023 | Z32: 15.09.2023 | AA32: 18.09.2023 | AB32: 19.09.2023 | AC32: 20.09.2023 | AD32: 21.09.2023 | AE32: 22.09.2023 | AF32: 25.09.2023 | AG32: 26.09.2023 | AH32: 27.09.2023 | AI32: 28.09.2023 | AJ32: 29.09.2023 | AK32: 02.10.2023 | AL32: 03.10.2023 | AM32: 04.10.2023 | AN32: 05.10.2023 | AO32: 06.10.2023 | AP32: 09.10.2023 | AQ32: 10.10.2023 | AR32: 11.10.2023 | AS32: 12.10.2023 | AT32: 13.10.2023 | AU32: 16.10.2023 | AV32: 17.10.2023 | AW32: 18.10.2023 | AX32: 19.10.2023 | AY32: 20.10.2023 | AZ32: 23.10.2023 | BA32: 24.10.2023 | BB32: 25.10.2023 | BC32: 26.10.2023 | BD32: 27.10.2023 | BE32: 30.10.2023 | BF32: 31.10.2023 | BG32: 01.11.2023 | BH32: 02.11.2023 | BI32: 03.11.2023 | BJ32: 06.11.2023 | BK32: 07.11.2023 | BL32: 08.11.2023 | BM32: 09.11.2023 | BN32: 10.11.2023 | BO32: 13.11.2023 | BP32: 14.11.2023 | BQ32: 15.11.2023 | BR32: 16.11.2023 | BS32: 17.11.2023 | BT32: =BT8 -> 20.11.2023 | BU32: 21.11.2023 | BV32: 22.11.2023 | BW32: 23.11.2023 | BX32: 24.11.2023 | BY32: 27.11.2023 | BZ32: 28.11.2023 | CA32: 29.11.2023 | CB32: 30.11.2023 | CC32: 01.12.2023 | CD32: 04.12.2023 | CE32: 05.12.2023 | CF32: 06.12.2023 | CG32: 07.12.2023 | CH32: 08.12.2023 | CI32: 11.12.2023 | CJ32: 12.12.2023 | CK32: 13.12.2023 | CL32: 14.12.2023 | CM32: 15.12.2023 | CN32: 18.12.2023 | CO32: 19.12.2023 | CP32: 20.12.2023 | CQ32: 21.12.2023 | CR32: 22.12.2023 | CS32: 27.12.2023 | CT32: 28.12.2023 | CU32: 29.12.2023 | CV32: 02.01.2024 | CW32: 03.01.2024 | CX32: 04.01.2024 | CY32: 05.01.2024 | CZ32: 08.01.2024 | DA32: 09.01.2024 | DB32: 10.01.2024 | DC32: 11.01.2024 | DD32: 12.01.2024 | DE32: 15.01.2024 | DF32: 16.01.2024 | DG32: 17.01.2024 | DH32: 18.01.2024 | DI32: 19.01.2024 | DJ32: 22.01.2024 | DK32: 23.01.2024 | DL32: 24.01.2024 | DM32: 25.01.2024 | DN32: 26.01.2024 | DO32: 29.01.2024 | DP32: 30.01.2024 | DQ32: 31.01.2024 | DR32: 01.02.2024 | DS32: 02.02.2024 | DT32: 05.02.2024 | DU32: 06.02.2024 | DV32: 07.02.2024 | DW32: 08.02.2024 | DX32: 09.02.2024 | DY32: 12.02.2024 | DZ32: 13.02.2024 | EA32: 14.02.2024 | EB32: 15.02.2024 | EC32: 16.02.2024 | ED32: 19.02.2024 | EE32: 20.02.2024 | EF32: =EF8 -> 21.02.2024 | EG32: 22.02.2024 | EH32: 23.02.2024 | EI32: 26.02.2024 | EJ32: 27.02.2024 | EK32: 28.02.2024 | EL32: 29.02.2024 | EM32: 01.03.2024 | EN32: 04.03.2024 | EO32: 05.03.2024 | EP32: 06.03.2024 | EQ32: 07.03.2024 | ER32: 08.03.2024 | ES32: 11.03.2024 | ET32: 12.03.2024 | EU32: 13.03.2024 | EV32: 14.03.2024 | EW32: 15.03.2024 | EX32: 18.03.2024 | EY32: 19.03.2024 | EZ32: 20.03.2024 | FA32: 21.03.2024 | FB32: 22.03.2024 | FC32: 25.03.2024 | FD32: 26.03.2024 | FE32: 27.03.2024 | FF32: 28.03.2024 | FG32: 02.04.2024 | FH32: 03.04.2024 | FI32: 04.04.2024 | FJ32: 05.04.2024 | FK32: 08.04.2024 | FL32: 09.04.2024 | FM32: 10.04.2024 | FN32: 11.04.2024 | FO32: 12.04.2024 | FP32: 15.04.2024 | FQ32: 16.04.2024 | FR32: 17.04.2024 | FS32: 18.04.2024 | FT32: 19.04.2024 | FU32: 22.04.2024 | FV32: 23.04.2024 | FW32: 24.04.2024 | FX32: 25.04.2024 | FY32: 26.04.2024 | FZ32: 29.04.2024 | GA32: 30.04.2024 | GB32: 02.05.2024 | GC32: 03.05.2024 | GD32: 06.05.2024 | GE32: 07.05.2024 | GF32: 08.05.2024 | GG32: 09.05.2024 | GH32: 10.05.2024 | GI32: 13.05.2024 | GJ32: 14.05.2024 | GK32: 15.05.2024 | GL32: 16.05.2024 | GM32: 17.05.2024 | GN32: 20.05.2024 | GO32: 21.05.2024 | GP32: 22.05.2024 | GQ32: 23.05.2024 | GR32: =GR8 -> 24.05.2024 | GS32: 27.05.2024 | GT32: 28.05.2024 | GU32: 29.05.2024 | GV32: 30.05.2024 | GW32: 31.05.2024 | GX32: 03.06.2024 | GY32: 04.06.2024 | GZ32: 05.06.2024 | HA32: 06.06.2024 | HB32: 07.06.2024 | HC32: 10.06.2024 | HD32: 11.06.2024 | HE32: 12.06.2024 | HF32: 13.06.2024 | HG32: 14.06.2024 | HH32: 17.06.2024 | HI32: 18.06.2024 | HJ32: 19.06.2024 | HK32: 20.06.2024 | HL32: 21.06.2024 | HM32: 24.06.2024 | HN32: 25.06.2024 | HO32: 26.06.2024 | HP32: 27.06.2024 | HQ32: 28.06.2024 | HR32: 01.07.2024 | HS32: 02.07.2024 | HT32: 03.07.2024 | HU32: 04.07.2024 | HV32: 05.07.2024 | HW32: 08.07.2024 | HX32: 09.07.2024 | HY32: 10.07.2024 | HZ32: 11.07.2024 | IA32: 12.07.2024 | IB32: 15.07.2024 | IC32: 16.07.2024 | ID32: 17.07.2024 | IE32: 18.07.2024 | IF32: 19.07.2024 | IG32: 22.07.2024 | IH32: 23.07.2024 | II32: 24.07.2024 | IJ32: 25.07.2024 | IK32: 26.07.2024 | IL32: 29.07.2024 | IM32: 30.07.2024 | IN32: 31.07.2024 | IO32: 01.08.2024 | IP32: 02.08.2024 | IQ32: 05.08.2024 | IR32: 06.08.2024 | IS32: 07.08.2024 | IT32: 08.08.2024 | IU32: 09.08.2024 | IV32: 12.08.2024 | IW32: 13.08.2024 | IX32: 14.08.2024 | IY32: 15.08.2024 | IZ32: 16.08.2024 | JA32: 19.08.2024 | JB32: 20.08.2024 | JC32: 21.08.2024 | JD32: =JD8 -> 22.08.2024 | JE32: 23.08.2024 | JF32: 26.08.2024 | JG32: 27.08.2024 | JH32: 28.08.2024 | JI32: 29.08.2024 | JJ32: 30.08.2024 | JK32: =JK8 -> 02.09.2024 | JL32: =JL8 -> 03.09.2024 | JM32: 04.09.2024 | JN32: 05.09.2024 | JO32: 06.09.2024 | JP32: 09.09.2024 | JQ32: 10.09.2024 | JR32: 11.09.2024 | JS32: 12.09.2024 | JT32: 13.09.2024 | JU32: 16.09.2024 | JV32: 18.09.2024 | JW32: 19.09.2024 | JX32: 23.09.2024 | JY32: 24.09.2024 | JZ32: 25.09.2024 | KA32: 02.10.2024 | KB32: 08.10.2024 | KC32: 10.10.2024 | KD32: 17.10.2024 | KE32: 21.10.2024 | KF32: 22.10.2024 | KG32: 23.10.2024 | KH32: 31.10.2024 | KI32: 04.11.2024 | KJ32: 07.11.2024 | KK32: 08.11.2024 | KL32: 12.11.2024 | KM32: nn1 | KN32: nn2 | KO32: nn3 | KP32: nn4 | KQ32: nn5 | KR32: nn6 | KS32: nn7 | KT32: nn8 | KU32: nn9 | KV32: nn10 | KW32: nn11 | KX32: nn12 | KY32: nn13 | KZ32: nn14 | LA32: nn15 | LB32: nn16 | LC32: nn17 | LD32: nn18 | LE32: nn19 | LF32: nn20 | LG32: nn21 | LH32: nn22 | LI32: nn23 | LJ32: nn24 | LK32: nn25 | LL32: nn26 | LM32: nn27 | LN32: nn28 | LO32: nn29 | LP32: nn30 | LQ32: nn31 | LR32: nn32 | LS32: nn33 | LT32: nn34 | LU32: nn35 | LV32: nn36 | LW32: nn37 | LX32: =LX8 -> nn38 | LY32: nn39 | LZ32: nn40 | MA32: nn41 | MB32: nn42 | MC32: nn43 | MD32: nn44 | ME32: nn45 | MF32: nn46 | MG32: nn47 | MH32: nn48 | MI32: nn49 | MJ32: nn50 | MK32: nn51 | ML32: nn52 | MM32: nn53 | MN32: nn54 | MO32: nn55 | MP32: nn56 | MQ32: nn57 | MR32: nn58 | MS32: nn59 | MT32: nn60
G33: HVB KK Holding | H33: =SUMIF($G$9:$G$28,$G33,H$9:H$28)/1000 -> 28.30598152 | I33: 27.01134448 | J33: 28.82465259 | K33: 8.851334067 | L33: 26.59342135 | M33: 655.8341209 | N33: 528.014743 | O33: 387.0051281 | P33: 313.6170792 | Q33: 313.2856468 | R33: 305.9289789 | S33: 301.3739584 | T33: 300.9184563 | U33: 299.9969757 | V33: 299.3068536 | W33: 299.3068536 | X33: =SUMIF($G$9:$G$28,$G33,X$9:X$28)/1000 -> 299.2450602 | Y33: 298.7767312 | Z33: 292.1171364 | AA33: 260.2831731 | AB33: 260.2831731 | AC33: 259.7323891 | AD33: 247.3881287 | AE33: 247.905579 | AF33: 247.905579 | AG33: 247.7605836 | AH33: 244.0105445 | AI33: 209.2730198 | AJ33: 209.2547997 | AK33: 212.2039751 | AL33: 212.0381723 | AM33: 291.6174233 | AN33: =SUMIF($G$9:$G$28,$G33,AN$9:AN$28)/1000 -> 288.4550001 | AO33: 276.4187319 | AP33: 275.9632299 | AQ33: 277.5155809 | AR33: 277.4537875 | AS33: 276.4932794 | AT33: 276.0249504 | AU33: 251.2558603 | AV33: 220.7383253 | AW33: 218.7187658 | AX33: 218.6013283 | AY33: 217.648172 | AZ33: 216.3881987 | BA33: 198.0062859 | BB33: 198.0062859 | BC33: 194.546511 | BD33: =SUMIF($G$9:$G$28,$G33,BD$9:BD$28)/1000 -> 222.6916365 | BE33: 187.496314 | BF33: 186.8622551 | BG33: 189.5011698 | BH33: 188.1938243 | BI33: 203.7734156 | BJ33: 190.3569489 | BK33: 208.2833596 | BL33: 206.8738541 | BM33: 206.8738541 | BN33: 206.8367762 | BO33: 202.2863107 | BP33: 202.2863107 | BQ33: 198.3970702 | BR33: 141.6380711 | BS33: 141.6380711 | BT33: =SUMIF($G$9:$G$28,$G33,BT$9:BT$28)/1000 -> 141.3197481 | BU33: 141.3197481 | BV33: 132.6938146 | BW33: 132.6938146 | BX33: 132.6938146 | BY33: 132.6330415 | BZ33: 128.9521659 | CA33: 78.82290806 | CB33: 77.68940943 | CC33: 113.7152124 | CD33: 108.9989441 | CE33: 122.3868782 | CF33: 122.3868782 | CG33: 121.9313762 | CH33: 577.3943993 | CI33: 577.3943993 | CJ33: =SUMIF($G$9:$G$28,$G33,CJ$9:CJ$28)/1000 -> 590.082409 | CK33: 590.082409 | CL33: 590.082409 | CM33: 550.2913714 | CN33: 523.0906383 | CO33: 523.0906383 | CP33: 539.1390961 | CQ33: 994.454573 | CR33: 994.454573 | CS33: 990.5283549 | CT33: 953.345431 | CU33: 931.6964024 | CV33: 929.8150149 | CW33: 929.9907476 | CX33: 927.7692823 | CY33: 927.5287773 | CZ33: =SUMIF($G$9:$G$28,$G33,CZ$9:CZ$28)/1000 -> 911.4628464 | DA33: 911.4628464 | DB33: 911.4628464 | DC33: 911.4628464 | DD33: 910.5547302 | DE33: 905.5001333 | DF33: 880.0740908 | DG33: 847.1352161 | DH33: 846.5809248 | DI33: 861.6480034 | DJ33: 861.1445643 | DK33: 843.1234638 | DL33: 862.4707494 | DM33: 862.4707494 | DN33: 862.4707494 | DO33: 858.7272605 | DP33: =SUMIF($G$9:$G$28,$G33,DP$9:DP$28)/1000 -> 824.5208147 | DQ33: 824.5025947 | DR33: 824.0377093 | DS33: 840.3685145 | DT33: 840.247852 | DU33: 839.4151487 | DV33: 839.4151487 | DW33: 838.4936681 | DX33: 838.4936681 | DY33: 838.4936681 | DZ33: 836.8222671 | EA33: 836.8222671 | EB33: 826.9017057 | EC33: 823.651234 | ED33: 799.1479111 | EE33: 799.0060678 | EF33: =SUMIF($G$9:$G$28,$G33,EF$9:EF$28)/1000 -> 797.7583384 | EG33: 797.6908603 | EH33: 815.5784258 | EI33: 808.8385806 | EJ33: 805.0950917 | EK33: 777.4663506 | EL33: 777.4481305 | EM33: 777.3015682 | EN33: 777.3015682 | EO33: 777.3015682 | EP33: 779.5130215 | EQ33: 1235.015072 | ER33: 1254.796797 | ES33: 1254.796797 | ET33: 1249.433671 | EU33: 1249.433671 | EV33: =SUMIF($G$9:$G$28,$G33,EV$9:EV$28)/1000 -> 1250.212679 | EW33: 1225.641669 | EX33: 1189.681968 | EY33: 1187.213876 | EZ33: 1186.929151 | FA33: 1186.929151 | FB33: 1179.393243 | FC33: 1178.097768 | FD33: 1174.354279 | FE33: 1194.05334 | FF33: 1143.120503 | FG33: 1143.134269 | FH33: 1158.101948 | FI33: 1157.98738 | FJ33: 1157.98738 | FK33: 1123.83748 | FL33: =SUMIF($G$9:$G$28,$G33,FL$9:FL$28)/1000 -> 1109.114415 | FM33: 1109.114415 | FN33: 1109.114415 | FO33: 1108.854769 | FP33: 1108.480265 | FQ33: 1044.468252 | FR33: 1011.896156 | FS33: 1011.896156 | FT33: 1030.38821 | FU33: 1029.948769 | FV33: 1029.948769 | FW33: 1024.814058 | FX33: 1028.81312 | FY33: 981.8976842 | FZ33: 981.8586568 | GA33: 974.7343132 | GB33: =SUMIF($G$9:$G$28,$G33,GB$9:GB$28)/1000 -> 977.3732552 | GC33: 990.7658628 | GD33: 990.6034581 | GE33: 991.3471927 | GF33: 989.9573831 | GG33: 989.9573831 | GH33: 989.8107114 | GI33: 989.6871246 | GJ33: 989.6871246 | GK33: 998.2844798 | GL33: 971.3587697 | GM33: 939.5652914 | GN33: 939.5652914 | GO33: 939.3354451 | GP33: 939.3354451 | GQ33: 939.3354451 | GR33: =SUMIF($G$9:$G$28,$G33,GR$9:GR$28)/1000 -> 939.3354451 | GS33: 939.3354451 | GT33: 939.1143444 | GU33: 899.375061 | GV33: 899.375061 | GW33: 897.554228 | GX33: 897.0282506 | GY33: 896.7939404 | GZ33: 913.1247457 | HA33: 911.5871165 | HB33: 911.1798977 | HC33: 911.033226 | HD33: 910.1117454 | HE33: 909.7509877 | HF33: 911.8041906 | HG33: 887.1250894 | HH33: =SUMIF($G$9:$G$28,$G33,HH$9:HH$28)/1000 -> 853.7857465 | HI33: 853.7857465 | HJ33: 873.4848072 | HK33: 872.9284024 | HL33: 874.1492936 | HM33: 874.1492936 | HN33: 873.0045441 | HO33: 826.1557027 | HP33: 825.6272019 | HQ33: 824.818959 | HR33: 825.2766931 | HS33: 825.2766931 | HT33: 839.0164387 | HU33: 815.8237774 | HV33: 815.3686489 | HW33: 814.9614301 | HX33: =SUMIF($G$9:$G$28,$G33,HX$9:HX$28)/1000 -> 814.9614301 | HY33: 814.8147584 | HZ33: 815.8413598 | IA33: 815.6918458 | IB33: 815.6918458 | IC33: 753.478073 | ID33: 773.1740546 | IE33: 773.1740546 | IF33: 773.1740546 | IG33: 770.8130508 | IH33: 770.8130508 | II33: 770.8130508 | IJ33: 770.8130508 | IK33: 770.8130508 | IL33: 697.6911517 | IM33: 696.9890135 | IN33: =SUMIF($G$9:$G$28,$G33,IN$9:IN$28)/1000 -> 694.8469423 | IO33: 695.3520029 | IP33: 706.9524194 | IQ33: 706.0189408 | IR33: 706.0189408 | IS33: 761.7041667 | IT33: 761.7041667 | IU33: 761.7041667 | IV33: 750.1362002 | IW33: 740.433551 | IX33: 760.7983736 | IY33: 749.4039169 | IZ33: 711.0282335 | JA33: 663.4473912 | JB33: 663.0331486 | JC33: 662.1116679 | JD33: =SUMIF($G$9:$G$28,$G33,JD$9:JD$28)/1000 -> 662.1116679 | JE33: 662.1116679 | JF33: 662.1116679 | JG33: 630.6158784 | JH33: 576.6954861 | JI33: 576.6954861 | JJ33: 573.8616165 | JK33: 574.1449753 | JL33: 573.4107059 | JM33: 589.2058955 | JN33: 589.2058955 | JO33: 589.2058955 | JP33: 588.7075762 | JQ33: 588.5609046 | JR33: 588.4698042 | JS33: 588.4698315 | JT33: =SUMIF($G$9:$G$28,$G33,JT$9:JT$28)/1000 -> 606.7293873 | JU33: 545.7554 | JV33: 497.1854076 | JW33: 452.9379454 | JX33: 545.5311199 | JY33: 543.3611081 | JZ33: 495.0041979 | KA33: 501.9028784 | KB33: 499.6502203 | KC33: 485.7309887 | KD33: 424.7802593 | KE33: 386.9765583 | KF33: 424.1871956 | KG33: 386.4362749 | KH33: 370.9171418 | KI33: 353.18718 | KJ33: =SUMIF($G$9:$G$28,$G33,KJ$9:KJ$28)/1000 -> 368.6616232 | KK33: 335.8522507 | KL33: 367.4972324 | KM33: 0 | KN33: 0 | KO33: 0 | KP33: 0 | KQ33: 0 | KR33: 0 | KS33: 0 | KT33: 0 | KU33: 0 | KV33: 0 | KW33: 0 | KX33: 0 | KY33: 0 | KZ33: =SUMIF($G$9:$G$28,$G33,KZ$9:KZ$28)/1000 -> 0 | LA33: 0 | LB33: 0 | LC33: 0 | LD33: 0 | LE33: 0 | LF33: 0 | LG33: 0 | LH33: 0 | LI33: 0 | LJ33: 0 | LK33: 0 | LL33: 0 | LM33: 0 | LN33: 0 | LO33: 0 | LP33: =SUMIF($G$9:$G$28,$G33,LP$9:LP$28)/1000 -> 0 | LQ33: 0 | LR33: 0 | LS33: 0 | LT33: 0 | LU33: 0 | LV33: 0 | LW33: 0 | LX33: 0 | LY33: 0 | LZ33: 0 | MA33: 0 | MB33: 0 | MC33: 0 | MD33: 0 | ME33: 0 | MF33: =SUMIF($G$9:$G$28,$G33,MF$9:MF$28)/1000 -> 0 | MG33: 0 | MH33: 0 | MI33: 0 | MJ33: 0 | MK33: 0 | ML33: 0 | MM33: 0 | MN33: 0 | MO33: 0 | MP33: 0 | MQ33: 0 | MR33: 0 | MS33: 0 | MT33: 0
G34: HVB KK Projekt | H34: 1018.940751 | I34: 205.5670551 | J34: 238.4837104 | K34: 163.1761485 | L34: 583.485555 | M34: 558.5905732 | N34: 617.4089335 | O34: 890.0073971 | P34: 721.6104481 | Q34: 1368.008197 | R34: 1544.573592 | S34: 1188.290455 | T34: 963.6086483 | U34: 802.6726042 | V34: 1300.375471 | W34: 1105.923732 | X34: 707.9378161 | Y34: 1552.723744 | Z34: 1118.259593 | AA34: 1076.561888 | AB34: 728.9231873 | AC34: 1614.864892 | AD34: 1664.264371 | AE34: 1444.518075 | AF34: 1446.58558 | AG34: 982.2241608 | AH34: 2001.379717 | AI34: 1423.896313 | AJ34: 1090.356029 | AK34: 816.2676733 | AL34: 769.9380313 | AM34: 1747.109244 | AN34: 1380.565141 | AO34: 1101.272182 | AP34: 929.4050266 | AQ34: 515.5525531 | AR34: 1244.515934 | AS34: 796.4134412 | AT34: 878.3376988 | AU34: 1462.383212 | AV34: 1898.932414 | AW34: 1460.052799 | AX34: 1211.284754 | AY34: 923.4534277 | AZ34: 746.2467958 | BA34: 1833.162364 | BB34: 1399.762602 | BC34: 936.4155221 | BD34: 1568.122838 | BE34: 971.9184906 | BF34: 1415.160913 | BG34: 1351.356072 | BH34: 1012.707515 | BI34: 789.4657504 | BJ34: 1719.220994 | BK34: 1545.531467 | BL34: 1342.098384 | BM34: 1161.177525 | BN34: 873.4845704 | BO34: 1686.097924 | BP34: 1536.707445 | BQ34: 912.5059279 | BR34: 713.3187438 | BS34: 1438.564946 | BT34: 1985.64828 | BU34: 1551.381944 | BV34: 1199.64276 | BW34: 1105.364886 | BX34: 816.696984 | BY34: 1732.299114 | BZ34: 582.354097 | CA34: 1331.889417 | CB34: 1028.949251 | CC34: 731.650934 | CD34: 2059.882706 | CE34: 1803.906788 | CF34: 1331.312779 | CG34: 1080.731991 | CH34: 2200.853731 | CI34: 2084.249205 | CJ34: 1716.144634 | CK34: 994.3860928 | CL34: 2513.458848 | CM34: 2056.020404 | CN34: 1738.848997 | CO34: 1873.558262 | CP34: 1635.441687 | CQ34: 3356.457386 | CR34: 3259.422878 | CS34: 2863.554746 | CT34: 2032.903529 | CU34: 3088.310927 | CV34: 2882.684729 | CW34: 2879.542357 | CX34: 2772.796026 | CY34: 2709.201061 | CZ34: 2530.567414 | DA34: 2338.949836 | DB34: 2153.633245 | DC34: 1674.810446 | DD34: 1531.525508 | DE34: 1201.07095 | DF34: 1013.331115 | DG34: 819.2462559 | DH34: 1116.521279 | DI34: 912.2304767 | DJ34: 772.6894915 | DK34: 571.893128 | DL34: 2186.361004 | DM34: 2147.150158 | DN34: 2135.904113 | DO34: 1135.370519 | DP34: 874.5893086 | DQ34: 610.0543519 | DR34: 2314.788213 | DS34: 1904.206964 | DT34: 1541.797443 | DU34: 1306.642615 | DV34: 1172.466205 | DW34: 946.8818933 | DX34: 770.6824857 | DY34: 741.8338372 | DZ34: 2766.489481 | EA34: 2327.527175 | EB34: 1934.460544 | EC34: 1679.141333 | ED34: 1129.508717 | EE34: 920.4280924 | EF34: 1166.169281 | EG34: 971.3773087 | EH34: 2601.199494 | EI34: 2289.542212 | EJ34: 1760.310094 | EK34: 2205.117913 | EL34: 1961.491257 | EM34: 1709.292489 | EN34: 1539.075172 | EO34: 1378.442747 | EP34: 1074.340268 | EQ34: 2299.406136 | ER34: 1998.752709 | ES34: 1896.838088 | ET34: 1424.8035 | EU34: 1240.874641 | EV34: 953.8565134 | EW34: 2212.26147 | EX34: 2499.177037 | EY34: 2190.610255 | EZ34: 2018.120921 | FA34: 1650.933211 | FB34: 1601.185136 | FC34: 1197.935939 | FD34: 2757.792827 | FE34: 2567.630514 | FF34: 1675.585802 | FG34: 1525.709348 | FH34: 1340.796978 | FI34: 1079.196402 | FJ34: 943.281104 | FK34: 823.6708935 | FL34: 2832.522047 | FM34: 2340.921878 | FN34: 2137.896515 | FO34: 1882.331933 | FP34: 1689.46935 | FQ34: 1454.699448 | FR34: 1327.865603 | FS34: 1163.11564 | FT34: 939.7569393 | FU34: 1264.021752 | FV34: 1146.026251 | FW34: 840.8594455 | FX34: 1780.902121 | FY34: 1391.423863 | FZ34: 1160.41035 | GA34: 907.601838 | GB34: 732.4607529 | GC34: 502.1105691 | GD34: 2649.722752 | GE34: 2582.939473 | GF34: 2349.777284 | GG34: 2302.870867 | GH34: 2254.719153 | GI34: 1653.374966 | GJ34: 1486.947781 | GK34: 1165.28946 | GL34: 1919.207949 | GM34: 1816.141072 | GN34: 1734.64485 | GO34: 1491.284443 | GP34: 1222.116038 | GQ34: 1409.904702 | GR34: 2148.134297 | GS34: 1598.661007 | GT34: 2508.639373 | GU34: 2073.129954 | GV34: 2060.541872 | GW34: 1927.932134 | GX34: 1739.365062 | GY34: 1520.607297 | GZ34: 1362.658872 | HA34: 1197.064172 | HB34: 1008.645266 | HC34: 954.8181693 | HD34: 1906.997424 | HE34: 1677.779737 | HF34: 1556.545916 | HG34: 1201.13769 | HH34: 1380.64765 | HI34: 1347.561457 | HJ34: 1184.169018 | HK34: 990.2475105 | HL34: 737.374955 | HM34: 2452.226473 | HN34: 2324.163611 | HO34: 1628.812219 | HP34: 1074.619162 | HQ34: 797.2829582 | HR34: 738.040899 | HS34: 2044.664282 | HT34: 1864.343137 | HU34: 1818.781289 | HV34: 1419.700793 | HW34: 1308.247358 | HX34: 1176.624993 | HY34: 987.2312397 | HZ34: 820.4235829 | IA34: 2165.359371 | IB34: 1997.234038 | IC34: 1606.562729 | ID34: 1425.818495 | IE34: 1505.554074 | IF34: 1494.193434 | IG34: 1338.941646 | IH34: 1187.263016 | II34: 944.9254938 | IJ34: 743.3508777 | IK34: 2331.704448 | IL34: 1842.759673 | IM34: 1656.984565 | IN34: 1434.800002 | IO34: 1242.250904 | IP34: 1165.058338 | IQ34: 1037.344172 | IR34: 892.4889085 | IS34: 802.9633603 | IT34: 723.5933032 | IU34: 1973.198124 | IV34: 2046.691722 | IW34: 1635.882394 | IX34: 1455.655984 | IY34: 1112.361206 | IZ34: 994.9028417 | JA34: 682.2099853 | JB34: 2692.727948 | JC34: 2510.86768 | JD34: 2430.48465 | JE34: 3032.25126 | JF34: 2981.190583 | JG34: 2515.703308 | JH34: 2180.620758 | JI34: 2072.610244 | JJ34: 1892.232298 | JK34: 1617.090739 | JL34: 1608.880387 | JM34: 1378.214276 | JN34: 1222.925665 | JO34: 1050.288539 | JP34: 927.882839 | JQ34: 914.4674017 | JR34: 567.5084835 | JS34: 1660.676491 | JT34: 1538.202248 | JU34: 1250.352664 | JV34: 895.6520787 | JW34: 759.3120248 | JX34: 1520.899938 | JY34: 1342.779633 | JZ34: 1201.995209 | KA34: 1535.686528 | KB34: 1055.093976 | KC34: 773.4734561 | KD34: 959.5606198 | KE34: 973.5709519 | KF34: 809.8534938 | KG34: 2097.306354 | KH34: 490.0956093 | KI34: 379.7903218 | KJ34: 1103.642295 | KK34: 939.1113107 | KL34: 739.035679 | KM34: 0 | KN34: 0 | KO34: 0 | KP34: 0 | KQ34: 0 | KR34: 0 | KS34: 0 | KT34: 0 | KU34: 0 | KV34: 0 | KW34: 0 | KX34: 0 | KY34: 0 | KZ34: 0 | LA34: 0 | LB34: 0 | LC34: 0 | LD34: 0 | LE34: 0 | LF34: 0 | LG34: 0 | LH34: 0 | LI34: 0 | LJ34: 0 | LK34: 0 | LL34: 0 | LM34: 0 | LN34: 0 | LO34: 0 | LP34: 0 | LQ34: 0 | LR34: 0 | LS34: 0 | LT34: 0 | LU34: 0 | LV34: 0 | LW34: 0 | LX34: 0 | LY34: 0 | LZ34: 0 | MA34: 0 | MB34: 0 | MC34: 0 | MD34: 0 | ME34: 0 | MF34: 0 | MG34: 0 | MH34: 0 | MI34: 0 | MJ34: 0 | MK34: 0 | ML34: 0 | MM34: 0 | MN34: 0 | MO34: 0 | MP34: 0 | MQ34: 0 | MR34: 0 | MS34: 0 | MT34: 0
G35: HVB KK Vertrieb | H35: 921.505701 | I35: 167.6670525 | J35: 88.89219995 | K35: 486.0532473 | L35: 152.1997698 | M35: 1454.678212 | N35: 1530.281504 | O35: 1002.252404 | P35: 1760.757716 | Q35: 1075.258742 | R35: 1657.96762 | S35: 2427.050683 | T35: 2614.247805 | U35: 2764.181699 | V35: 2282.965182 | W35: 3090.470899 | X35: 3579.484227 | Y35: 2416.805048 | Z35: 2660.944546 | AA35: 2037.905452 | AB35: 2422.079298 | AC35: 1371.334556 | AD35: 1605.199594 | AE35: 2223.960065 | AF35: 2548.468937 | AG35: 2974.494511 | AH35: 2001.847509 | AI35: 1982.349461 | AJ35: 2376.375525 | AK35: 2541.34186 | AL35: 2554.023948 | AM35: 1439.545851 | AN35: 2015.664881 | AO35: 2240.77844 | AP35: 2385.344059 | AQ35: 2726.757605 | AR35: 2048.018381 | AS35: 2207.10761 | AT35: 2343.583814 | AU35: 1965.046605 | AV35: 1750.621466 | AW35: 2246.349895 | AX35: 2736.052151 | AY35: 3226.671797 | AZ35: 3467.83294 | BA35: 2286.766364 | BB35: 2715.622866 | BC35: 3192.97289 | BD35: 2155.359216 | BE35: 2207.977054 | BF35: 1571.822899 | BG35: 2258.053519 | BH35: 2614.852302 | BI35: 2883.893021 | BJ35: 2155.24442 | BK35: 2624.485296 | BL35: 2789.220856 | BM35: 2943.16027 | BN35: 3328.255615 | BO35: 2290.140888 | BP35: 2321.43161 | BQ35: 3017.334734 | BR35: 2962.179148 | BS35: 1262.436359 | BT35: 1368.375751 | BU35: 1986.062304 | BV35: 2143.836316 | BW35: 2448.643284 | BX35: 2486.225957 | BY35: 1827.863918 | BZ35: 2079.684519 | CA35: 1053.677155 | CB35: 1694.759168 | CC35: 1746.498179 | CD35: 2082.630005 | CE35: 2725.991878 | CF35: 2746.846511 | CG35: 3839.506716 | CH35: 2417.799847 | CI35: 3026.063511 | CJ35: 3219.294295 | CK35: 4145.528663 | CL35: 3347.245777 | CM35: 3561.526997 | CN35: 3288.522098 | CO35: 3906.425807 | CP35: 4639.020951 | CQ35: 2835.113143 | CR35: 3100.37857 | CS35: 3278.626188 | CT35: 3339.992545 | CU35: 2119.086121 | CV35: 2126.584586 | CW35: 2226.999038 | CX35: 2226.935259 | CY35: 2223.246193 | CZ35: 2250.29652 | DA35: 2236.303561 | DB35: 2628.7509 | DC35: 3175.842251 | DD35: 3634.270601 | DE35: 3924.992517 | DF35: 4293.512898 | DG35: 3644.422631 | DH35: 3625.456874 | DI35: 3622.963136 | DJ35: 3891.659278 | DK35: 4234.082571 | DL35: 2779.072416 | DM35: 2938.697835 | DN35: 3118.526337 | DO35: 3314.990903 | DP35: 3550.514898 | DQ35: 4542.97132 | DR35: 2749.519224 | DS35: 3018.019682 | DT35: 3070.533775 | DU35: 3432.2527 | DV35: 3415.021185 | DW35: 3667.767484 | DX35: 4258.77111 | DY35: 4592.837625 | DZ35: 2428.659407 | EA35: 2771.224835 | EB35: 3004.156167 | EC35: 3206.275299 | ED35: 3512.447052 | EE35: 2901.944887 | EF35: 3513.101745 | EG35: 4415.202129 | EH35: 2584.256129 | EI35: 3507.762213 | EJ35: 4180.814293 | EK35: 2947.69144 | EL35: 3775.901184 | EM35: 4083.796474 | EN35: 4689.097708 | EO35: 4888.987741 | EP35: 4902.684851 | EQ35: 4074.612022 | ER35: 4231.790676 | ES35: 4567.006505 | ET35: 5250.153513 | EU35: 5545.840264 | EV35: 5571.397218 | EW35: 3828.554433 | EX35: 4213.472733 | EY35: 4495.152414 | EZ35: 5085.800666 | FA35: 5799.184227 | FB35: 6464.064382 | FC35: 6824.951697 | FD35: 4812.667689 | FE35: 5010.64904 | FF35: 5161.95496 | FG35: 5734.425856 | FH35: 6551.161439 | FI35: 6800.445076 | FJ35: 7105.761441 | FK35: 7447.762529 | FL35: 5352.718445 | FM35: 5670.686088 | FN35: 5731.006903 | FO35: 5918.120905 | FP35: 6078.907108 | FQ35: 6329.500868 | FR35: 5085.525151 | FS35: 5232.866955 | FT35: 5280.23495 | FU35: 5830.295473 | FV35: 5844.5113 | FW35: 6507.453321 | FX35: 4814.145729 | FY35: 5227.036957 | FZ35: 6116.378428 | GA35: 6438.260574 | GB35: 6677.971233 | GC35: 7260.973063 | GD35: 5442.418295 | GE35: 4829.690183 | GF35: 4865.113348 | GG35: 5572.11108 | GH35: 5713.583285 | GI35: 5816.703474 | GJ35: 5949.192495 | GK35: 6112.614332 | GL35: 5109.574293 | GM35: 4342.198068 | GN35: 4566.486868 | GO35: 4616.708429 | GP35: 5199.333641 | GQ35: 5477.667704 | GR35: 4668.086136 | GS35: 4726.639412 | GT35: 3414.475348 | GU35: 3603.633242 | GV35: 3785.29585 | GW35: 3761.999562 | GX35: 3802.239342 | GY35: 4419.255742 | GZ35: 5003.144307 | HA35: 5494.978176 | HB35: 5553.185125 | HC35: 5597.221159 | HD35: 4327.558624 | HE35: 4639.294598 | HF35: 4790.498395 | HG35: 5531.391894 | HH35: 4991.883303 | HI35: 5146.446172 | HJ35: 5562.53179 | HK35: 5793.10026 | HL35: 5827.097648 | HM35: 3996.516141 | HN35: 4183.824296 | HO35: 4535.984857 | HP35: 4597.104596 | HQ35: 4921.62541 | HR35: 5313.84927 | HS35: 4221.692496 | HT35: 4584.856555 | HU35: 4728.297267 | HV35: 5604.583712 | HW35: 5795.524187 | HX35: 5997.500656 | HY35: 6062.745549 | HZ35: 6359.682361 | IA35: 4657.812852 | IB35: 4899.997471 | IC35: 5109.782612 | ID35: 4254.23369 | IE35: 4345.792736 | IF35: 4721.103915 | IG35: 4692.290786 | IH35: 4892.158754 | II35: 5154.007333 | IJ35: 5694.7729 | IK35: 3532.180913 | IL35: 4056.218512 | IM35: 4444.957773 | IN35: 4529.426256 | IO35: 4700.490233 | IP35: 4914.867345 | IQ35: 4976.727757 | IR35: 5094.254264 | IS35: 5254.670043 | IT35: 5699.323256 | IU35: 4310.830776 | IV35: 4635.756623 | IW35: 5053.401898 | IX35: 5334.279831 | IY35: 5662.127979 | IZ35: 5732.658226 | JA35: 5034.538137 | JB35: 3348.073343 | JC35: 3527.915227 | JD35: 3693.601001 | JE35: 2926.180256 | JF35: 3371.949667 | JG35: 3663.652215 | JH35: 3657.974272 | JI35: 3729.157718 | JJ35: 3713.314984 | JK35: 4003.107128 | JL35: 4102.665291 | JM35: 4189.653866 | JN35: 4303.581078 | JO35: 4394.295633 | JP35: 4687.289647 | JQ35: 5338.992054 | JR35: 5835.522113 | JS35: 4566.323689 | JT35: 4975.6485 | JU35: 4324.075081 | JV35: 4634.930142 | JW35: 5083.66622 | JX35: 4613.941518 | JY35: 5382.608836 | JZ35: 5489.222416 | KA35: 5007.752567 | KB35: 5449.666618 | KC35: 5835.478676 | KD35: 4720.255697 | KE35: 5013.929712 | KF35: 5011.769721 | KG35: 3701.418773 | KH35: 5592.462866 | KI35: 5888.75784 | KJ35: 5025.834714 | KK35: 5223.381398 | KL35: 5721.098467 | KM35: 0 | KN35: 0 | KO35: 0 | KP35: 0 | KQ35: 0 | KR35: 0 | KS35: 0 | KT35: 0 | KU35: 0 | KV35: 0 | KW35: 0 | KX35: 0 | KY35: 0 | KZ35: 0 | LA35: 0 | LB35: 0 | LC35: 0 | LD35: 0 | LE35: 0 | LF35: 0 | LG35: 0 | LH35: 0 | LI35: 0 | LJ35: 0 | LK35: 0 | LL35: 0 | LM35: 0 | LN35: 0 | LO35: 0 | LP35: 0 | LQ35: 0 | LR35: 0 | LS35: 0 | LT35: 0 | LU35: 0 | LV35: 0 | LW35: 0 | LX35: 0 | LY35: 0 | LZ35: 0 | MA35: 0 | MB35: 0 | MC35: 0 | MD35: 0 | ME35: 0 | MF35: 0 | MG35: 0 | MH35: 0 | MI35: 0 | MJ35: 0 | MK35: 0 | ML35: 0 | MM35: 0 | MN35: 0 | MO35: 0 | MP35: 0 | MQ35: 0 | MR35: 0 | MS35: 0 | MT35: 0
G36: Tagesgeldkonten | H36: 1376.176305 | I36: 1376.176305 | J36: 1376.176305 | K36: 465.1722043 | L36: 465.1722043 | M36: 455.5761426 | N36: 455.5761426 | O36: 464.5169828 | P36: 464.5169828 | Q36: 464.5169828 | R36: 464.5169828 | S36: 464.5169828 | T36: 464.5169828 | U36: 464.5169828 | V36: 464.5169828 | W36: 464.5169828 | X36: 464.5169828 | Y36: 464.5169828 | Z36: 464.5169828 | AA36: 464.5169828 | AB36: 464.5169828 | AC36: 464.5169828 | AD36: 464.5169828 | AE36: 464.5169828 | AF36: 464.5169828 | AG36: 464.5169828 | AH36: 464.5169828 | AI36: 464.5169828 | AJ36: 464.5169828 | AK36: 464.5169828 | AL36: 464.5169828 | AM36: 464.5169828 | AN36: 464.5169828 | AO36: 464.5169828 | AP36: 464.5169828 | AQ36: 464.5169828 | AR36: 464.5169828 | AS36: 464.5169828 | AT36: 464.5169828 | AU36: 464.5169828 | AV36: 464.5169828 | AW36: 464.5169828 | AX36: 464.5169828 | AY36: 464.5169828 | AZ36: 464.5169828 | BA36: 464.5169828 | BB36: 464.5169828 | BC36: 464.5169828 | BD36: 464.5169828 | BE36: 464.5169828 | BF36: 464.5169828 | BG36: 464.5169828 | BH36: 464.5169828 | BI36: 464.5169828 | BJ36: 464.5169828 | BK36: 464.5169828 | BL36: 464.5169828 | BM36: 464.5169828 | BN36: 464.5169828 | BO36: 464.5169828 | BP36: 464.5169828 | BQ36: 464.5169828 | BR36: 464.5169828 | BS36: 464.5169828 | BT36: 464.5169828 | BU36: 464.5169828 | BV36: 464.5169828 | BW36: 464.5169828 | BX36: 464.5169828 | BY36: 464.5169828 | BZ36: 464.5169828 | CA36: 464.5169828 | CB36: 464.5169828 | CC36: 464.5169828 | CD36: 464.5169828 | CE36: 464.5169828 | CF36: 464.5169828 | CG36: 464.5169828 | CH36: 464.5169828 | CI36: 464.5169828 | CJ36: 464.5169828 | CK36: 464.5169828 | CL36: 464.5169828 | CM36: 464.5169828 | CN36: 464.5169828 | CO36: 464.5169828 | CP36: 464.5169828 | CQ36: 464.5169828 | CR36: 464.5169828 | CS36: 464.5169828 | CT36: 464.5169828 | CU36: 464.5169828 | CV36: 464.5169828 | CW36: 464.5169828 | CX36: 464.5169828 | CY36: 464.5169828 | CZ36: 464.5169828 | DA36: 464.5169828 | DB36: 464.5169828 | DC36: 464.5169828 | DD36: 464.5169828 | DE36: 464.5169828 | DF36: 464.5169828 | DG36: 464.5169828 | DH36: 464.5169828 | DI36: 464.5169828 | DJ36: 464.5169828 | DK36: 464.5169828 | DL36: 464.5169828 | DM36: 464.5169828 | DN36: 464.5169828 | DO36: 464.5169828 | DP36: 464.5169828 | DQ36: 464.5169828 | DR36: 464.5169828 | DS36: 464.5169828 | DT36: 464.5169828 | DU36: 464.5169828 | DV36: 464.5169828 | DW36: 464.5169828 | DX36: 464.5169828 | DY36: 464.5169828 | DZ36: 464.5169828 | EA36: 464.5169828 | EB36: 464.5169828 | EC36: 464.5169828 | ED36: 464.5169828 | EE36: 464.5169828 | EF36: 464.5169828 | EG36: 464.5169828 | EH36: 464.5169828 | EI36: 464.5169828 | EJ36: 464.5169828 | EK36: 464.5169828 | EL36: 464.5169828 | EM36: 464.5169828 | EN36: 464.5169828 | EO36: 464.5169828 | EP36: 464.5169828 | EQ36: 464.5169828 | ER36: 464.5169828 | ES36: 464.5169828 | ET36: 464.5169828 | EU36: 464.5169828 | EV36: 464.5169828 | EW36: 464.5169828 | EX36: 464.5169828 | EY36: 464.5169828 | EZ36: 464.5169828 | FA36: 464.5169828 | FB36: 464.5169828 | FC36: 464.5169828 | FD36: 464.5169828 | FE36: 464.5169828 | FF36: 464.5169828 | FG36: 464.5169828 | FH36: 464.5169828 | FI36: 464.5169828 | FJ36: 464.5169828 | FK36: 464.5169828 | FL36: 464.5169828 | FM36: 464.5169828 | FN36: 464.5169828 | FO36: 464.5169828 | FP36: 464.5169828 | FQ36: 464.5169828 | FR36: 464.5169828 | FS36: 464.5169828 | FT36: 464.5169828 | FU36: 464.5169828 | FV36: 464.5169828 | FW36: 464.5169828 | FX36: 464.5169828 | FY36: 464.5169828 | FZ36: 464.5169828 | GA36: 464.5169828 | GB36: 464.5169828 | GC36: 464.5169828 | GD36: 464.5169828 | GE36: 464.5169828 | GF36: 464.5169828 | GG36: 464.5169828 | GH36: 464.5169828 | GI36: 464.5169828 | GJ36: 464.5169828 | GK36: 464.5169828 | GL36: 464.5169828 | GM36: 464.5169828 | GN36: 464.5169828 | GO36: 464.5169828 | GP36: 464.5169828 | GQ36: 464.5169828 | GR36: 464.5169828 | GS36: 464.5169828 | GT36: 464.5169828 | GU36: 464.5169828 | GV36: 464.5169828 | GW36: 464.5169828 | GX36: 464.5169828 | GY36: 464.5169828 | GZ36: 464.5169828 | HA36: 464.5169828 | HB36: 464.5169828 | HC36: 464.5169828 | HD36: 464.5169828 | HE36: 464.5169828 | HF36: 464.5169828 | HG36: 464.5169828 | HH36: 464.5169828 | HI36: 464.5169828 | HJ36: 464.5169828 | HK36: 464.5169828 | HL36: 464.5169828 | HM36: 464.5169828 | HN36: 464.5169828 | HO36: 464.5169828 | HP36: 464.5169828 | HQ36: 464.5169828 | HR36: 464.5169828 | HS36: 464.5169828 | HT36: 464.5169828 | HU36: 464.5169828 | HV36: 464.5169828 | HW36: 464.5169828 | HX36: 464.5169828 | HY36: 464.5169828 | HZ36: 464.5169828 | IA36: 464.5169828 | IB36: 464.5169828 | IC36: 464.5169828 | ID36: 464.5169828 | IE36: 464.5169828 | IF36: 464.5169828 | IG36: 464.5169828 | IH36: 464.5169828 | II36: 464.5169828 | IJ36: 464.5169828 | IK36: 464.5169828 | IL36: 464.5169828 | IM36: 464.5169828 | IN36: 464.5169828 | IO36: 464.5169828 | IP36: 464.5169828 | IQ36: 464.5169828 | IR36: 464.5169828 | IS36: 464.5169828 | IT36: 464.5169828 | IU36: 464.5169828 | IV36: 464.5169828 | IW36: 464.5169828 | IX36: 464.5169828 | IY36: 464.5169828 | IZ36: 464.5169828 | JA36: 464.5169828 | JB36: 464.5169828 | JC36: 464.5169828 | JD36: 464.5169828 | JE36: 464.5169828 | JF36: 464.5169828 | JG36: 464.5169828 | JH36: 464.5169828 | JI36: 464.5169828 | JJ36: 464.5169828 | JK36: 464.5169828 | JL36: 464.5169828 | JM36: 464.5169828 | JN36: 464.5169828 | JO36: 464.5169828 | JP36: 464.5169828 | JQ36: 464.5169828 | JR36: 464.5169828 | JS36: 464.5169828 | JT36: 464.5169828 | JU36: 423.1768764 | JV36: 385.5158699 | JW36: 351.2065386 | JX36: 319.950597 | JY36: 291.4763061 | JZ36: 265.5361102 | KA36: 241.9044854 | KB36: 220.3759783 | KC36: 200.7634201 | KD36: 182.896299 | KE36: 166.6192785 | KF36: 151.7908461 | KG36: 138.2820833 | KH36: 125.975545 | KI36: 114.7642382 | KJ36: 104.5506916 | KK36: 95.24610886 | KL36: 86.76959579 | KM36: 0 | KN36: 0 | KO36: 0 | KP36: 0 | KQ36: 0 | KR36: 0 | KS36: 0 | KT36: 0 | KU36: 0 | KV36: 0 | KW36: 0 | KX36: 0 | KY36: 0 | KZ36: 0 | LA36: 0 | LB36: 0 | LC36: 0 | LD36: 0 | LE36: 0 | LF36: 0 | LG36: 0 | LH36: 0 | LI36: 0 | LJ36: 0 | LK36: 0 | LL36: 0 | LM36: 0 | LN36: 0 | LO36: 0 | LP36: 0 | LQ36: 0 | LR36: 0 | LS36: 0 | LT36: 0 | LU36: 0 | LV36: 0 | LW36: 0 | LX36: 0 | LY36: 0 | LZ36: 0 | MA36: 0 | MB36: 0 | MC36: 0 | MD36: 0 | ME36: 0 | MF36: 0 | MG36: 0 | MH36: 0 | MI36: 0 | MJ36: 0 | MK36: 0 | ML36: 0 | MM36: 0 | MN36: 0 | MO36: 0 | MP36: 0 | MQ36: 0 | MR36: 0 | MS36: 0 | MT36: 0
G37: Sonst. Girokonten | H37: 69.95818223 | I37: 66.09587102 | J37: 73.37299911 | K37: 65.82841844 | L37: 65.72092907 | M37: 102.109503 | N37: 141.5051374 | O37: 88.9581111 | P37: 88.83448784 | Q37: 89.23333454 | R37: 89.23333454 | S37: 91.96406023 | T37: 91.96406023 | U37: 91.96406023 | V37: 91.96406023 | W37: 91.96406023 | X37: 91.96406023 | Y37: 346.7572037 | Z37: 92.01527688 | AA37: 92.01527688 | AB37: 92.01527688 | AC37: 92.09362323 | AD37: 95.00883636 | AE37: 95.00883636 | AF37: 95.00883636 | AG37: 95.00883636 | AH37: 91.05725586 | AI37: 91.05725586 | AJ37: 91.05725586 | AK37: 91.03142889 | AL37: 91.03142889 | AM37: 91.03142889 | AN37: 91.03142889 | AO37: 91.03142889 | AP37: 91.03142889 | AQ37: 91.82909497 | AR37: 91.82909497 | AS37: 95.59586007 | AT37: 95.59586007 | AU37: 96.53008566 | AV37: 96.53008566 | AW37: 96.53008566 | AX37: 96.53008566 | AY37: 96.53008566 | AZ37: 96.53008566 | BA37: 96.53008566 | BB37: 96.09644771 | BC37: 91.03142889 | BD37: 309.6094628 | BE37: 309.6094628 | BF37: 309.6003528 | BG37: 309.6302064 | BH37: 309.6302064 | BI37: 309.7354638 | BJ37: 309.3395232 | BK37: 305.9718781 | BL37: 305.9718781 | BM37: 305.9718781 | BN37: 305.9718781 | BO37: 369.7421652 | BP37: 117.0450052 | BQ37: 250.2993971 | BR37: 205.8631132 | BS37: 205.8631132 | BT37: 205.6701626 | BU37: 205.6701626 | BV37: 199.6493365 | BW37: 118.8942889 | BX37: 118.9398391 | BY37: 114.424174 | BZ37: 114.424174 | CA37: 91.00560192 | CB37: 90.82887624 | CC37: 90.80291262 | CD37: 90.80291262 | CE37: 90.80291262 | CF37: 90.80291262 | CG37: 90.80291262 | CH37: 90.80291262 | CI37: 90.80291262 | CJ37: 76.226847 | CK37: 486.1786925 | CL37: 198.9868178 | CM37: 103.4178415 | CN37: 103.4178415 | CO37: 103.4178415 | CP37: 103.3349219 | CQ37: 261.8313517 | CR37: 261.8313517 | CS37: 76.226847 | CT37: 76.226847 | CU37: 76.20102004 | CV37: 76.20102004 | CW37: 76.20102004 | CX37: 76.20102004 | CY37: 75.8147543 | CZ37: 75.8147543 | DA37: 75.8147543 | DB37: 75.8147543 | DC37: 101.6012173 | DD37: 101.7112484 | DE37: 147.2614535 | DF37: 104.8060478 | DG37: 104.8836198 | DH37: 104.5720564 | DI37: 104.5720564 | DJ37: 104.5294214 | DK37: 104.5294214 | DL37: 264.8661432 | DM37: 264.8661432 | DN37: 264.8661432 | DO37: 115.8752942 | DP37: 115.8752942 | DQ37: 115.8661842 | DR37: 114.8917651 | DS37: 114.8247425 | DT37: 114.9158429 | DU37: 114.5796277 | DV37: 116.3370548 | DW37: 112.9694098 | DX37: 113.0619131 | DY37: 113.0619131 | DZ37: 119.4746805 | EA37: 130.4875722 | EB37: 81.4294821 | EC37: 81.4294821 | ED37: 122.1982457 | EE37: 122.1982457 | EF37: 122.1982457 | EG37: 100.4252477 | EH37: 100.4252477 | EI37: 97.3689018 | EJ37: 81.4294821 | EK37: 81.4294821 | EL37: 81.4294821 | EM37: 81.40365514 | EN37: 81.40365514 | EO37: 81.40365514 | EP37: 81.40365514 | EQ37: 81.40365514 | ER37: 81.40365514 | ES37: 81.40365514 | ET37: 427.5852136 | EU37: 427.5852136 | EV37: 81.40365514 | EW37: 94.10122119 | EX37: 86.98995962 | EY37: 86.98995962 | EZ37: 84.6463469 | FA37: 175.746757 | FB37: 158.0203026 | FC37: 158.0203026 | FD37: 261.2462957 | FE37: 253.4178097 | FF37: 253.4086997 | FG37: 253.5198968 | FH37: 252.7160997 | FI37: 250.3160958 | FJ37: 248.5946078 | FK37: 248.5946078 | FL37: 248.2302062 | FM37: 521.5314365 | FN37: 275.7849464 | FO37: 275.5797883 | FP37: 275.5797883 | FQ37: 231.0602204 | FR37: 266.4776092 | FS37: 266.4776092 | FT37: 265.379412 | FU37: 265.379412 | FV37: 247.8881333 | FW37: 245.3311725 | FX37: 245.3311725 | FY37: 116.4807384 | FZ37: 116.4807384 | GA37: 116.4807384 | GB37: 116.5153383 | GC37: 116.5153383 | GD37: 116.5153383 | GE37: 116.5153383 | GF37: 116.5153383 | GG37: 116.5153383 | GH37: 116.5153383 | GI37: 389.7561418 | GJ37: 151.8063254 | GK37: 116.4549114 | GL37: 203.2697487 | GM37: 203.2697487 | GN37: 203.584036 | GO37: 203.4897471 | GP37: 186.7272717 | GQ37: 186.7272717 | GR37: 186.5998404 | GS37: 263.9110191 | GT37: 199.9916462 | GU37: 134.0708155 | GV37: 134.0708155 | GW37: 134.1706889 | GX37: 134.0915864 | GY37: 134.0915864 | GZ37: 134.0915864 | HA37: 131.85877 | HB37: 131.85877 | HC37: 131.85877 | HD37: 405.1600004 | HE37: 405.1600004 | HF37: 165.5599729 | HG37: 119.2597382 | HH37: 119.2597382 | HI37: 119.3602128 | HJ37: 119.3602128 | HK37: 119.3602128 | HL37: 119.6425968 | HM37: 124.8735003 | HN37: 124.8735003 | HO37: 116.3346589 | HP37: 116.3346589 | HQ37: 116.3346589 | HR37: 174.1677683 | HS37: 174.1677683 | HT37: 174.1677683 | HU37: 174.1677683 | HV37: 174.1677683 | HW37: 174.1677683 | HX37: 174.1677683 | HY37: 174.1677683 | HZ37: 174.1677683 | IA37: 178.8595852 | IB37: 178.8518416 | IC37: 178.8518416 | ID37: 178.8518416 | IE37: 178.8518416 | IF37: 178.8518416 | IG37: 178.8518416 | IH37: 178.8518416 | II37: 178.8518416 | IJ37: 178.8518416 | IK37: 178.8518416 | IL37: 201.2955755 | IM37: 201.2955755 | IN37: 201.2864655 | IO37: 201.2028535 | IP37: 201.2028535 | IQ37: 201.2028535 | IR37: 201.2028535 | IS37: 199.0994453 | IT37: 200.4497173 | IU37: 200.4497173 | IV37: 199.4083576 | IW37: 199.5253215 | IX37: 199.5253215 | IY37: 174.1419413 | IZ37: 174.1419413 | JA37: 174.1419413 | JB37: 174.1419413 | JC37: 187.3489773 | JD37: 174.5949199 | JE37: 402.3346943 | JF37: 402.3346943 | JG37: 402.3346943 | JH37: 207.4134053 | JI37: 207.4134053 | JJ37: 206.7665924 | JK37: 206.6920267 | JL37: 206.6009263 | JM37: 206.6009263 | JN37: 204.4975181 | JO37: 204.1438572 | JP37: 204.1438572 | JQ37: 204.1438572 | JR37: 386.3446774 | JS37: 212.8554523 | JT37: 212.8554523 | JU37: 162.2825941 | JV37: 147.8401088 | JW37: 134.6829454 | JX37: 141.7988492 | JY37: 129.1793332 | JZ37: 109.2196671 | KA37: 93.05582902 | KB37: 85.20923279 | KC37: 77.62596053 | KD37: 70.7175684 | KE37: 64.42399484 | KF37: 58.69052352 | KG37: 53.46730762 | KH37: 51.56458465 | KI37: 46.97554809 | KJ37: 42.79491697 | KK37: 40.44940834 | KL37: 36.97978354 | KM37: 0 | KN37: 0 | KO37: 0 | KP37: 0 | KQ37: 0 | KR37: 0 | KS37: 0 | KT37: 0 | KU37: 0 | KV37: 0 | KW37: 0 | KX37: 0 | KY37: 0 | KZ37: 0 | LA37: 0 | LB37: 0 | LC37: 0 | LD37: 0 | LE37: 0 | LF37: 0 | LG37: 0 | LH37: 0 | LI37: 0 | LJ37: 0 | LK37: 0 | LL37: 0 | LM37: 0 | LN37: 0 | LO37: 0 | LP37: 0 | LQ37: 0 | LR37: 0 | LS37: 0 | LT37: 0 | LU37: 0 | LV37: 0 | LW37: 0 | LX37: 0 | LY37: 0 | LZ37: 0 | MA37: 0 | MB37: 0 | MC37: 0 | MD37: 0 | ME37: 0 | MF37: 0 | MG37: 0 | MH37: 0 | MI37: 0 | MJ37: 0 | MK37: 0 | ML37: 0 | MM37: 0 | MN37: 0 | MO37: 0 | MP37: 0 | MQ37: 0 | MR37: 0 | MS37: 0 | MT37: 0
G38: Gesamte Girokonten | H38: =SUM(H33:H37) -> 3414.886921 | I38: 1842.517629 | J38: 1805.749867 | K38: 1189.081353 | L38: 1293.171879 | M38: 3226.788552 | N38: 3272.786461 | O38: 2832.740023 | P38: 3349.336714 | Q38: 3310.302903 | R38: 4062.220508 | S38: 4473.19614 | T38: 4435.255953 | U38: 4423.332321 | V38: 4439.12855 | W38: 5052.182528 | X38: 5143.148146 | Y38: 5079.57971 | Z38: 4627.853535 | AA38: 3931.282772 | AB38: 3967.817918 | AC38: 3802.542442 | AD38: 4076.377913 | AE38: 4475.909538 | AF38: 4802.485915 | AG38: 4764.005075 | AH38: 4802.812009 | AI38: 4171.093032 | AJ38: 4231.560592 | AK38: 4125.36192 | AL38: 4091.548563 | AM38: 4033.82093 | AN38: 4240.233433 | AO38: 4174.017765 | AP38: 4146.260728 | AQ38: 4076.171816 | AR38: 4126.33418 | AS38: 3840.127174 | AT38: 4058.059306 | AU38: 4239.732746 | AV38: 4431.339273 | AW38: 4486.168529 | AX38: 4726.985302 | AY38: 4928.820466 | AZ38: 4991.515003 | BA38: 4878.982082 | BB38: 4874.005185 | BC38: 4879.483335 | BD38: 4720.300136 | BE38: 4141.518304 | BF38: 3947.963403 | BG38: 4573.05795 | BH38: 4589.900831 | BI38: 4651.384634 | BJ38: 4838.678869 | BK38: 5148.788983 | BL38: 5108.681955 | BM38: 5081.70051 | BN38: 5179.065822 | BO38: 5012.78427 | BP38: 4641.987353 | BQ38: 4843.054112 | BR38: 4487.516059 | BS38: 3513.019472 | BT38: =SUM(BT33:BT37) -> 4165.530924 | BU38: 4348.951141 | BV38: 4140.33921 | BW38: 4270.113256 | BX38: 4019.073577 | BY38: 4271.737231 | BZ38: 3369.931939 | CA38: 3019.912065 | CB38: 3356.743688 | CC38: 3147.184221 | CD38: 4806.83155 | CE38: 5207.60544 | CF38: 4755.866064 | CG38: 5597.489978 | CH38: 5751.367872 | CI38: 6243.027011 | CJ38: 6066.265167 | CK38: 6680.69284 | CL38: 7114.290836 | CM38: 6735.773596 | CN38: 6118.396557 | CO38: 6871.009532 | CP38: 7381.453638 | CQ38: 7912.373437 | CR38: 8080.604355 | CS38: 7673.453118 | CT38: 6866.985335 | CU38: 6679.811453 | CV38: 6479.802333 | CW38: 6577.250146 | CX38: 6468.21857 | CY38: 6400.307769 | CZ38: 6232.658518 | DA38: 6027.04798 | DB38: 6234.178729 | DC38: 6328.233744 | DD38: 6642.57907 | DE38: 6643.342036 | DF38: 6756.241135 | DG38: 5880.204705 | DH38: 6157.648116 | DI38: 5965.930656 | DJ38: 6094.539737 | DK38: 6218.145567 | DL38: 6557.287295 | DM38: 6677.701868 | DN38: 6846.284325 | DO38: 5889.480959 | DP38: 5830.017298 | DQ38: 6557.911433 | DR38: 6467.753894 | DS38: 6341.936885 | DT38: 6032.011896 | DU38: 6157.407074 | DV38: 6007.756576 | DW38: 6030.629438 | DX38: 6445.526159 | DY38: 6750.744027 | DZ38: 6615.962819 | EA38: 6530.578832 | EB38: 6311.464882 | EC38: 6255.014331 | ED38: 6027.818909 | EE38: 5208.094275 | EF38: =SUM(EF33:EF37) -> 6063.744592 | EG38: 6749.212529 | EH38: 6565.976279 | EI38: 7168.02889 | EJ38: 7292.165944 | EK38: 6476.222169 | EL38: 7060.787036 | EM38: 7116.311169 | EN38: 7551.395085 | EO38: 7590.652694 | EP38: 7302.458778 | EQ38: 8154.953869 | ER38: 8031.26082 | ES38: 8264.562029 | ET38: 8816.492879 | EU38: 8928.250772 | EV38: 8321.387048 | EW38: 7825.075776 | EX38: 8453.838682 | EY38: 8424.483487 | EZ38: 8840.014067 | FA38: 9277.310329 | FB38: 9867.180046 | FC38: 9823.522689 | FD38: 9470.578073 | FE38: 9490.267686 | FF38: 8698.586948 | FG38: 9121.306352 | FH38: 9767.293448 | FI38: 9752.461937 | FJ38: 9920.141515 | FK38: 10108.38249 | FL38: 10007.1021 | FM38: 10106.7708 | FN38: 9718.319762 | FO38: 9649.404379 | FP38: 9616.953493 | FQ38: 9524.245771 | FR38: 8156.281502 | FS38: 8138.873344 | FT38: 7980.276494 | FU38: 8854.162389 | FV38: 8732.891436 | FW38: 9082.97498 | FX38: 8333.709126 | FY38: 8181.356225 | FZ38: 8839.645156 | GA38: 8901.594446 | GB38: 8968.837563 | GC38: 9334.881816 | GD38: 9663.776826 | GE38: 8985.00917 | GF38: 8785.880336 | GG38: 9445.971652 | GH38: 9539.145471 | GI38: 9314.038689 | GJ38: 9042.150709 | GK38: 8857.160166 | GL38: 8667.927743 | GM38: 7765.691163 | GN38: 7908.798028 | GO38: 7715.335047 | GP38: 8012.029378 | GQ38: 8478.152106 | GR38: =SUM(GR33:GR37) -> 8406.672701 | GS38: 7993.063867 | GT38: 7526.737694 | GU38: 7174.726055 | GV38: 7343.800582 | GW38: 7186.173596 | GX38: 7037.241224 | GY38: 7435.265548 | GZ38: 7877.536494 | HA38: 8200.005217 | HB38: 8069.386041 | HC38: 8059.448307 | HD38: 8014.344777 | HE38: 8096.502306 | HF38: 7888.925457 | HG38: 8203.431394 | HH38: 7810.093421 | HI38: 7931.670572 | HJ38: 8204.062811 | HK38: 8240.153368 | HL38: 8022.781476 | HM38: 7912.282391 | HN38: 7970.382935 | HO38: 7571.80442 | HP38: 7078.202601 | HQ38: 7124.578969 | HR38: 7515.851614 | HS38: 7730.318222 | HT38: 7926.900882 | HU38: 8001.587084 | HV38: 8478.337905 | HW38: 8557.417725 | HX38: 8627.77183 | HY38: 8503.476298 | HZ38: 8634.632055 | IA38: 8282.240637 | IB38: 8356.292179 | IC38: 8113.192238 | ID38: 7096.595064 | IE38: 7267.889689 | IF38: 7631.840228 | IG38: 7445.414307 | IH38: 7493.603645 | II38: 7513.114702 | IJ38: 7852.305652 | IK38: 7278.067236 | IL38: 7262.481896 | IM38: 7464.74391 | IN38: 7324.876649 | IO38: 7303.812977 | IP38: 7452.597939 | IQ38: 7385.810707 | IR38: 7358.48195 | IS38: 7482.953998 | IT38: 7849.587426 | IU38: 7710.699767 | IV38: 8096.509886 | IW38: 8093.760147 | IX38: 8214.776493 | IY38: 8162.552026 | IZ38: 8077.248225 | JA38: 7018.854438 | JB38: 7342.493364 | JC38: 7352.760535 | JD38: =SUM(JD33:JD37) -> 7425.309221 | JE38: 7487.394861 | JF38: 7882.103595 | JG38: 7676.823078 | JH38: 7087.220904 | JI38: 7050.393837 | JJ38: 6850.692473 | JK38: 6865.551852 | JL38: 6956.074294 | JM38: 6828.191947 | JN38: 6784.72714 | JO38: 6702.450907 | JP38: 6872.540902 | JQ38: 7510.681201 | JR38: 7842.362061 | JS38: 7492.842447 | JT38: 7797.95257 | JU38: 6705.642616 | JV38: 6561.123607 | JW38: 6781.805674 | JX38: 7142.122023 | JY38: 7689.405216 | JZ38: 7560.9776 | KA38: 7380.302287 | KB38: 7309.996025 | KC38: 7373.072502 | KD38: 6358.210443 | KE38: 6605.520495 | KF38: 6456.29178 | KG38: 6376.910793 | KH38: 6631.015747 | KI38: 6783.475128 | KJ38: 6645.484241 | KK38: 6634.040476 | KL38: 6951.380758 | KM38: 0 | KN38: 0 | KO38: 0 | KP38: 0 | KQ38: 0 | KR38: 0 | KS38: 0 | KT38: 0 | KU38: 0 | KV38: 0 | KW38: 0 | KX38: 0 | KY38: 0 | KZ38: 0 | LA38: 0 | LB38: 0 | LC38: 0 | LD38: 0 | LE38: 0 | LF38: 0 | LG38: 0 | LH38: 0 | LI38: 0 | LJ38: 0 | LK38: 0 | LL38: 0 | LM38: 0 | LN38: 0 | LO38: 0 | LP38: =SUM(LP33:LP37) -> 0 | LQ38: 0 | LR38: 0 | LS38: 0 | LT38: 0 | LU38: 0 | LV38: 0 | LW38: 0 | LX38: 0 | LY38: 0 | LZ38: 0 | MA38: 0 | MB38: 0 | MC38: 0 | MD38: 0 | ME38: 0 | MF38: 0 | MG38: 0 | MH38: 0 | MI38: 0 | MJ38: 0 | MK38: 0 | ML38: 0 | MM38: 0 | MN38: 0 | MO38: 0 | MP38: 0 | MQ38: 0 | MR38: 0 | MS38: 0 | MT38: 0
G40: Sonstige Konten | H40: =SUMIF($G$9:$G$28,$G40,H$9:H$28)/1000 -> 4148.106076 | I40: 4148.106076 | J40: 4148.106076 | K40: 4148.106076 | L40: 3692.604025 | M40: 3237.101974 | N40: 3237.101974 | O40: 3237.101974 | P40: 3237.101974 | Q40: 3237.101974 | R40: 3237.101974 | S40: 3237.101974 | T40: 3237.101974 | U40: 3237.101974 | V40: 3237.101974 | W40: 3237.101974 | X40: 3237.101974 | Y40: 3237.101974 | Z40: 3237.101974 | AA40: 3237.101974 | AB40: 3237.101974 | AC40: 3237.101974 | AD40: 3237.101974 | AE40: 3237.101974 | AF40: 3237.101974 | AG40: 3237.101974 | AH40: 3237.101974 | AI40: 3237.101974 | AJ40: 3237.101974 | AK40: 3237.101974 | AL40: 3237.101974 | AM40: 3237.101974 | AN40: 3237.101974 | AO40: 3237.101974 | AP40: 3237.101974 | AQ40: 3237.101974 | AR40: 3237.101974 | AS40: 3237.101974 | AT40: 3237.101974 | AU40: 3237.101974 | AV40: 3237.101974 | AW40: 3237.101974 | AX40: 3237.101974 | AY40: 3237.101974 | AZ40: 3237.101974 | BA40: 3237.101974 | BB40: 3237.101974 | BC40: 3237.101974 | BD40: 3237.101974 | BE40: 3237.101974 | BF40: 3237.101974 | BG40: 3237.101974 | BH40: 3237.101974 | BI40: 3237.101974 | BJ40: 3237.101974 | BK40: 3237.101974 | BL40: 3237.101974 | BM40: 3237.101974 | BN40: 3237.101974 | BO40: 3237.101974 | BP40: 3237.101974 | BQ40: 3237.101974 | BR40: 3237.101974 | BS40: 3237.101974 | BT40: =SUMIF($G$9:$G$28,$G40,BT$9:BT$28)/1000 -> 3237.101974 | BU40: 3237.101974 | BV40: 3237.101974 | BW40: 3237.101974 | BX40: 3237.101974 | BY40: 3237.101974 | BZ40: 3237.101974 | CA40: 3237.101974 | CB40: 3237.101974 | CC40: 3237.101974 | CD40: 3237.101974 | CE40: 3237.101974 | CF40: 3237.101974 | CG40: 3237.101974 | CH40: 3237.101974 | CI40: 3237.101974 | CJ40: 3237.101974 | CK40: 3237.101974 | CL40: 3237.101974 | CM40: 3237.101974 | CN40: 3237.101974 | CO40: 3237.101974 | CP40: 3237.101974 | CQ40: 3237.101974 | CR40: 3237.101974 | CS40: 3237.101974 | CT40: 3237.101974 | CU40: 3237.101974 | CV40: 3237.101974 | CW40: 3237.101974 | CX40: 3237.101974 | CY40: 3237.101974 | CZ40: 3237.101974 | DA40: 3237.101974 | DB40: 3237.101974 | DC40: 3237.101974 | DD40: 3237.101974 | DE40: 3237.101974 | DF40: 3237.101974 | DG40: 3237.101974 | DH40: 3237.101974 | DI40: 3237.101974 | DJ40: 3237.101974 | DK40: 3237.101974 | DL40: 3237.101974 | DM40: 3237.101974 | DN40: 3237.101974 | DO40: 3237.101974 | DP40: 3237.101974 | DQ40: 3237.101974 | DR40: 3237.101974 | DS40: 3237.101974 | DT40: 3237.101974 | DU40: 3237.101974 | DV40: 3237.101974 | DW40: 3237.101974 | DX40: 3237.101974 | DY40: 3237.101974 | DZ40: 3237.101974 | EA40: 3237.101974 | EB40: 3237.101974 | EC40: 3237.101974 | ED40: 3237.101974 | EE40: 3237.101974 | EF40: =SUMIF($G$9:$G$28,$G40,EF$9:EF$28)/1000 -> 3237.101974 | EG40: 3237.101974 | EH40: 3237.101974 | EI40: 3237.101974 | EJ40: 3237.101974 | EK40: 3237.101974 | EL40: 3237.101974 | EM40: 3237.101974 | EN40: 3237.101974 | EO40: 3237.101974 | EP40: 3237.101974 | EQ40: 3237.101974 | ER40: 3237.101974 | ES40: 3237.101974 | ET40: 3237.101974 | EU40: 3237.101974 | EV40: 3237.101974 | EW40: 3237.101974 | EX40: 3237.101974 | EY40: 3237.101974 | EZ40: 3237.101974 | FA40: 3237.101974 | FB40: 3237.101974 | FC40: 3237.101974 | FD40: 3237.101974 | FE40: 3237.101974 | FF40: 3237.101974 | FG40: 3237.101974 | FH40: 3237.101974 | FI40: 3237.101974 | FJ40: 3237.101974 | FK40: 3237.101974 | FL40: 3237.101974 | FM40: 3237.101974 | FN40: 3237.101974 | FO40: 3237.101974 | FP40: 3237.101974 | FQ40: 3237.101974 | FR40: 3237.101974 | FS40: 3237.101974 | FT40: 3237.101974 | FU40: 3237.101974 | FV40: 3237.101974 | FW40: 3237.101974 | FX40: 3237.101974 | FY40: 3237.101974 | FZ40: 3237.101974 | GA40: 3237.101974 | GB40: 3237.101974 | GC40: 3237.101974 | GD40: 3237.101974 | GE40: 3237.101974 | GF40: 3237.101974 | GG40: 3237.101974 | GH40: 3237.101974 | GI40: 3237.101974 | GJ40: 3237.101974 | GK40: 3237.101974 | GL40: 3237.101974 | GM40: 3237.101974 | GN40: 3237.101974 | GO40: 3237.101974 | GP40: 3237.101974 | GQ40: 3237.101974 | GR40: =SUMIF($G$9:$G$28,$G40,GR$9:GR$28)/1000 -> 3237.101974 | GS40: 3237.101974 | GT40: 3237.101974 | GU40: 3237.101974 | GV40: 3237.101974 | GW40: 3237.101974 | GX40: 3237.101974 | GY40: 3237.101974 | GZ40: 3237.101974 | HA40: 3237.101974 | HB40: 3237.101974 | HC40: 3237.101974 | HD40: 3237.101974 | HE40: 3237.101974 | HF40: 3237.101974 | HG40: 3237.101974 | HH40: 3237.101974 | HI40: 3237.101974 | HJ40: 3237.101974 | HK40: 3237.101974 | HL40: 3237.101974 | HM40: 3237.101974 | HN40: 3237.101974 | HO40: 3237.101974 | HP40: 3237.101974 | HQ40: 3237.101974 | HR40: 3357.88677 | HS40: 3357.88677 | HT40: 3357.88677 | HU40: 3357.88677 | HV40: 3357.88677 | HW40: 3357.88677 | HX40: 3357.88677 | HY40: 3357.88677 | HZ40: 3357.88677 | IA40: 3357.88677 | IB40: 3357.88677 | IC40: 3357.88677 | ID40: 3357.88677 | IE40: 3357.88677 | IF40: 3357.88677 | IG40: 3357.88677 | IH40: 3357.88677 | II40: 3357.88677 | IJ40: 3357.88677 | IK40: 3357.88677 | IL40: 3357.88677 | IM40: 3357.88677 | IN40: 3357.88677 | IO40: 3357.88677 | IP40: 3357.88677 | IQ40: 3357.88677 | IR40: 3357.88677 | IS40: 3357.88677 | IT40: 3357.88677 | IU40: 3357.88677 | IV40: 3357.88677 | IW40: 3357.88677 | IX40: 3357.88677 | IY40: 3357.88677 | IZ40: 3357.88677 | JA40: 3357.88677 | JB40: 3357.88677 | JC40: 3357.88677 | JD40: =SUMIF($G$9:$G$28,$G40,JD$9:JD$28)/1000 -> 3357.88677 | JE40: 3357.88677 | JF40: 3357.88677 | JG40: 3357.88677 | JH40: 3357.88677 | JI40: 3357.88677 | JJ40: 3357.88677 | JK40: =SUMIF($G$9:$G$28,$G40,JK$9:JK$28)/1000 -> 3357.88677 | JL40: 3357.88677 | JM40: 3357.88677 | JN40: 3357.88677 | JO40: 3357.88677 | JP40: 3357.88677 | JQ40: 3357.88677 | JR40: 3357.88677 | JS40: 3357.88677 | JT40: 3357.88677 | JU40: 3059.048619 | JV40: 2786.805838 | JW40: 2538.791547 | JX40: 2312.849512 | JY40: 2107.015391 | JZ40: 1919.499662 | KA40: 1748.672064 | KB40: 1593.047422 | KC40: 1451.272735 | KD40: 1322.115414 | KE40: 1204.452564 | KF40: 1097.261226 | KG40: 999.6094766 | KH40: 910.6483328 | KI40: 829.6043659 | KJ40: 755.7729797 | KK40: 688.5122841 | KL40: 627.2375145 | KM40: 0 | KN40: 0 | KO40: 0 | KP40: 0 | KQ40: 0 | KR40: 0 | KS40: 0 | KT40: 0 | KU40: 0 | KV40: 0 | KW40: 0 | KX40: 0 | KY40: 0 | KZ40: 0 | LA40: 0 | LB40: 0 | LC40: 0 | LD40: 0 | LE40: 0 | LF40: 0 | LG40: 0 | LH40: 0 | LI40: 0 | LJ40: 0 | LK40: 0 | LL40: 0 | LM40: 0 | LN40: 0 | LO40: 0 | LP40: 0 | LQ40: 0 | LR40: 0 | LS40: 0 | LT40: 0 | LU40: 0 | LV40: 0 | LW40: 0 | LX40: 0 | LY40: 0 | LZ40: 0 | MA40: 0 | MB40: 0 | MC40: 0 | MD40: 0 | ME40: 0 | MF40: 0 | MG40: 0 | MH40: 0 | MI40: 0 | MJ40: 0 | MK40: 0 | ML40: 0 | MM40: 0 | MN40: 0 | MO40: 0 | MP40: 0 | MQ40: 0 | MR40: 0 | MS40: 0 | MT40: 0

Sheet Wunschergebnis
C7: Datum: | D7: 12.11.2024
C8: Reporting: | D8: Tagesgeldkonten
C9: Wunschergebnis: | D9: =GETPIVOTDATA("12.11.2024",Pivot!$A$3,"Reporting",$D$8) -> 86769.59579
